"Body Name","Body","Service Area Categorisation","Service Division Categorisation","Responsible Unit","Expenses Type","Detailed Expenses Type","Payment Date","Transaction Number","Payment Amount","Supplier Type","Supplier Name","Supplier Id"
"Portsmouth City Council","PCC","Housing Revenue Account","Special Services","Housing, Neighbourhood and Building Services","Transport-Related Expenditure","Direct transport costs","02/10/2020","6,387,405","47.60","VENDOR","REL BOARHUNT LIMITED","103,726"
"Portsmouth City Council","PCC","Costs below Net Cost of Services","Trading","Finance & Resources","Transport-Related Expenditure","Direct transport costs","02/10/2020","6,387,405","47.60","VENDOR","REL BOARHUNT LIMITED","103,726"
"Portsmouth City Council","PCC","Support Service / Transparency Costs Unallocated","AMS","Housing, Neighbourhood and Building Services","Transport-Related Expenditure","Direct transport costs","02/10/2020","6,387,405","47.60","VENDOR","REL BOARHUNT LIMITED","103,726"
"Portsmouth City Council","PCC","Support Service / Transparency Costs Unallocated","AMS","Housing, Neighbourhood and Building Services","Transport-Related Expenditure","Direct transport costs","07/10/2020","6,387,870","48.90","VENDOR","REL BOARHUNT LIMITED","103,726"
"Portsmouth City Council","PCC","Highways and Transport Services","Parking Services","Regeneration","Third Party Payments","Private contractors","07/10/2020","6,387,870","52.00","VENDOR","REL BOARHUNT LIMITED","103,726"
"Portsmouth City Council","PCC","Highways and Transport Services","Parking Services","Regeneration","Third Party Payments","Private contractors","07/10/2020","6,387,870","35.00","VENDOR","REL BOARHUNT LIMITED","103,726"
"Portsmouth City Council","PCC","Highways and Transport Services","Parking Services","Regeneration","Third Party Payments","Private contractors","07/10/2020","6,387,870","46.00","VENDOR","REL BOARHUNT LIMITED","103,726"
"Portsmouth City Council","PCC","Highways and Transport Services","Parking Services","Regeneration","Third Party Payments","Private contractors","07/10/2020","6,387,870","46.00","VENDOR","REL BOARHUNT LIMITED","103,726"
"Portsmouth City Council","PCC","Highways and Transport Services","Parking Services","Regeneration","Premises-Related Expenditure","Rents","07/10/2020","6,387,870","1,600.00","VENDOR","REL BOARHUNT LIMITED","103,726"
"Portsmouth City Council","PCC","Highways and Transport Services","Parking Services","Regeneration","Third Party Payments","Private contractors","28/10/2020","6,391,856","46.00","VENDOR","REL BOARHUNT LIMITED","103,726"
"Portsmouth City Council","PCC","Highways and Transport Services","Parking Services","Regeneration","Third Party Payments","Private contractors","28/10/2020","6,391,856","46.00","VENDOR","REL BOARHUNT LIMITED","103,726"
"Portsmouth City Council","PCC","Highways and Transport Services","Parking Services","Regeneration","Third Party Payments","Private contractors","28/10/2020","6,391,856","406.25","VENDOR","REL BOARHUNT LIMITED","103,726"
"Portsmouth City Council","PCC","Highways and Transport Services","Parking Services","Regeneration","Third Party Payments","Private contractors","28/10/2020","6,391,856","195.00","VENDOR","REL BOARHUNT LIMITED","103,726"
"Portsmouth City Council","PCC","Highways and Transport Services","Parking Services","Regeneration","Third Party Payments","Private contractors","28/10/2020","6,391,856","52.00","VENDOR","REL BOARHUNT LIMITED","103,726"
"Portsmouth City Council","PCC","Highways and Transport Services","Parking Services","Regeneration","Third Party Payments","Private contractors","28/10/2020","6,391,856","52.00","VENDOR","REL BOARHUNT LIMITED","103,726"
"Portsmouth City Council","PCC","Highways and Transport Services","Parking Services","Regeneration","Third Party Payments","Private contractors","28/10/2020","6,391,856","52.00","VENDOR","REL BOARHUNT LIMITED","103,726"
"Portsmouth City Council","PCC","Highways and Transport Services","Parking Services","Regeneration","Third Party Payments","Private contractors","28/10/2020","6,391,856","52.00","VENDOR","REL BOARHUNT LIMITED","103,726"
"Portsmouth City Council","PCC","Highways and Transport Services","Parking Services","Regeneration","Third Party Payments","Private contractors","28/10/2020","6,391,856","35.00","VENDOR","REL BOARHUNT LIMITED","103,726"
"Portsmouth City Council","PCC","Highways and Transport Services","Parking Services","Regeneration","Third Party Payments","Private contractors","28/10/2020","6,391,856","52.00","VENDOR","REL BOARHUNT LIMITED","103,726"
"Portsmouth City Council","PCC","Highways and Transport Services","Parking Services","Regeneration","Third Party Payments","Private contractors","28/10/2020","6,391,856","52.00","VENDOR","REL BOARHUNT LIMITED","103,726"
"Portsmouth City Council","PCC","Highways and Transport Services","Parking Services","Regeneration","Third Party Payments","Private contractors","28/10/2020","6,391,856","46.00","VENDOR","REL BOARHUNT LIMITED","103,726"
"Portsmouth City Council","PCC","Highways and Transport Services","Parking Services","Regeneration","Third Party Payments","Private contractors","28/10/2020","6,391,856","46.00","VENDOR","REL BOARHUNT LIMITED","103,726"
"Portsmouth City Council","PCC","Highways and Transport Services","Parking Services","Regeneration","Third Party Payments","Private contractors","28/10/2020","6,391,856","46.00","VENDOR","REL BOARHUNT LIMITED","103,726"
"Portsmouth City Council","PCC","Children's and Education Services","Children Looked After","Children's Services and Education","Third Party Payments","Other establishments","05/10/2020","6,387,661","117,020.96","VENDOR","PRIORS COURT SCHOOL","126,243"
"Portsmouth City Council","PCC","Children's and Education Services","Children Looked After","Children's Services and Education","Third Party Payments","Other establishments","05/10/2020","6,387,661","23,116.80","VENDOR","PRIORS COURT SCHOOL","126,243"
"Portsmouth City Council","PCC","Other","Suspense and Capital Schemes","Capital - Environment & Climate Change","Capital Charges","Capital Expenditure (WIP)","05/10/2020","6,387,662","899.30","VENDOR","PRODUCT DEVELOPMENT CORPORATION","134,173"
"Portsmouth City Council","PCC","Other","Suspense and Capital Schemes","Finance & Resources","Transport-Related Expenditure","Public transport","15/10/2020","6,389,462","757.20","VENDOR","ATOC LTD","103,839"
"Portsmouth City Council","PCC","Children's and Education Services","Children Looked After","Children's Services and Education","Third Party Payments","Other establishments","27/10/2020","6,391,372","514.28","VENDOR","KEYS PCE LIMITED","137,236"
"Portsmouth City Council","PCC","Children's and Education Services","Children Looked After","Children's Services and Education","Third Party Payments","Other establishments","27/10/2020","6,391,372","-1,028.56","VENDOR","KEYS PCE LIMITED","137,236"
"Portsmouth City Council","PCC","Children's and Education Services","Children Looked After","Children's Services and Education","Third Party Payments","Other establishments","27/10/2020","6,391,372","18,728.57","VENDOR","KEYS PCE LIMITED","137,236"
"Portsmouth City Council","PCC","Children's and Education Services","Children Looked After","Children's Services and Education","Third Party Payments","Other establishments","27/10/2020","6,391,372","-0.01","VENDOR","KEYS PCE LIMITED","137,236"
"Portsmouth City Council","PCC","Children's and Education Services","Children Looked After","Children's Services and Education","Third Party Payments","Other establishments","27/10/2020","6,391,372","27,857.15","VENDOR","KEYS PCE LIMITED","137,236"
"Portsmouth City Council","PCC","Children's and Education Services","Children Looked After","Children's Services and Education","Third Party Payments","Other establishments","27/10/2020","6,391,372","0.01","VENDOR","KEYS PCE LIMITED","137,236"
"Portsmouth City Council","PCC","Children's and Education Services","Children Looked After","Children's Services and Education","Third Party Payments","Other establishments","27/10/2020","6,391,372","18,214.28","VENDOR","KEYS PCE LIMITED","137,236"
"Portsmouth City Council","PCC","Children's and Education Services","Children Looked After","Children's Services and Education","Third Party Payments","Other establishments","27/10/2020","6,391,372","22,500.00","VENDOR","KEYS PCE LIMITED","137,236"
"Portsmouth City Council","PCC","Planning Services","Business support","Regeneration","Supplies and Services","Communications and computing","30/10/2020","6,392,264","60.31","VENDOR","TECHNOLOGY WITHIN LIMITED","143,958"
"Portsmouth City Council","PCC","Planning Services","Business support","Regeneration","Supplies and Services","Communications and computing","30/10/2020","6,392,264","773.50","VENDOR","TECHNOLOGY WITHIN LIMITED","143,958"
"Portsmouth City Council","PCC","Cultural and Related Services","Open Spaces","Culture, Leisure & Regulatory Services","Premises-Related Expenditure","Grounds maintenance costs","22/10/2020","6,390,896","4,999.59","COMPANY","J B CORRIE AND CO LTD","100,911"
"Portsmouth City Council","PCC","Other","Suspense and Capital Schemes","Capital - Resources","Capital Charges","Capital Expenditure (WIP)","02/10/2020","6,387,462","162,957.03","COMPANY","EVOENERGY LTD","147,138"
"Portsmouth City Council","PCC","Other","Suspense and Capital Schemes","Capital - Housing General Fund","Capital Charges","Capital Expenditure (WIP)","30/10/2020","6,392,189","54,319.01","COMPANY","EVOENERGY LTD","147,138"
"Portsmouth City Council","PCC","Children's and Education Services","Children Looked After","Children's Services and Education","Third Party Payments","Other establishments","05/10/2020","6,387,643","-44.33","VENDOR","HORIZON CARE AND EDUCATION GROUP LTD","138,450"
"Portsmouth City Council","PCC","Children's and Education Services","Children Looked After","Children's Services and Education","Third Party Payments","Other establishments","05/10/2020","6,387,643","-540.73","VENDOR","HORIZON CARE AND EDUCATION GROUP LTD","138,450"
"Portsmouth City Council","PCC","Children's and Education Services","Children Looked After","Children's Services and Education","Third Party Payments","Other establishments","05/10/2020","6,387,643","3,011.43","VENDOR","HORIZON CARE AND EDUCATION GROUP LTD","138,450"
"Portsmouth City Council","PCC","Children's and Education Services","Safeguarding Children and Young Peoples Services","Children's Services and Education","Third Party Payments","Other establishments","05/10/2020","6,387,643","2,470.70","VENDOR","HORIZON CARE AND EDUCATION GROUP LTD","138,450"
"Portsmouth City Council","PCC","Children's and Education Services","Children Looked After","Children's Services and Education","Third Party Payments","Other establishments","05/10/2020","6,387,643","-3,011.34","VENDOR","HORIZON CARE AND EDUCATION GROUP LTD","138,450"
"Portsmouth City Council","PCC","Children's and Education Services","Safeguarding Children and Young Peoples Services","Children's Services and Education","Third Party Payments","Other establishments","05/10/2020","6,387,643","-2,495.19","VENDOR","HORIZON CARE AND EDUCATION GROUP LTD","138,450"
"Portsmouth City Council","PCC","Children's and Education Services","Children Looked After","Children's Services and Education","Third Party Payments","Other establishments","05/10/2020","6,387,643","-540.73","VENDOR","HORIZON CARE AND EDUCATION GROUP LTD","138,450"
"Portsmouth City Council","PCC","Children's and Education Services","Children Looked After","Children's Services and Education","Third Party Payments","Other establishments","05/10/2020","6,387,643","3,011.43","VENDOR","HORIZON CARE AND EDUCATION GROUP LTD","138,450"
"Portsmouth City Council","PCC","Children's and Education Services","Safeguarding Children and Young Peoples Services","Children's Services and Education","Third Party Payments","Other establishments","05/10/2020","6,387,643","-540.73","VENDOR","HORIZON CARE AND EDUCATION GROUP LTD","138,450"
"Portsmouth City Council","PCC","Children's and Education Services","Safeguarding Children and Young Peoples Services","Children's Services and Education","Third Party Payments","Other establishments","05/10/2020","6,387,643","3,011.43","VENDOR","HORIZON CARE AND EDUCATION GROUP LTD","138,450"
"Portsmouth City Council","PCC","Children's and Education Services","Children Looked After","Children's Services and Education","Third Party Payments","Other establishments","05/10/2020","6,387,643","-487.32","VENDOR","HORIZON CARE AND EDUCATION GROUP LTD","138,450"
"Portsmouth City Council","PCC","Children's and Education Services","Children Looked After","Children's Services and Education","Third Party Payments","Other establishments","05/10/2020","6,387,643","3,038.00","VENDOR","HORIZON CARE AND EDUCATION GROUP LTD","138,450"
"Portsmouth City Council","PCC","Children's and Education Services","Asylum seekers","Children's Services and Education","Third Party Payments","Other establishments","05/10/2020","6,387,643","0.04","VENDOR","HORIZON CARE AND EDUCATION GROUP LTD","138,450"
"Portsmouth City Council","PCC","Children's and Education Services","Asylum seekers","Children's Services and Education","Third Party Payments","Other establishments","05/10/2020","6,387,643","3,082.29","VENDOR","HORIZON CARE AND EDUCATION GROUP LTD","138,450"
"Portsmouth City Council","PCC","Housing Services","Homelessness","Housing, Neighbourhood and Building Services","Supplies and Services","Grants and subscriptions","02/10/2020","6,387,397","790.00","VENDOR","APEX PROPERTY VENTURES LTD","108,437"
"Portsmouth City Council","PCC","Environmental and Regulatory Services","Regulatory Services","Culture, Leisure & Regulatory Services","Supplies and Services","Services","30/10/2020","6,392,187","1,416.00","VENDOR","ESSENTRA FILTER PRODUCTS INTERNATIONAL LIMITED","146,526"
"Portsmouth City Council","PCC","Children's and Education Services","Children Looked After","Children's Services and Education","Third Party Payments","Other establishments","01/10/2020","6,387,315","-0.01","VENDOR","FIVE RIVERS CHILD CARE LIMITED","106,901"
"Portsmouth City Council","PCC","Children's and Education Services","Children Looked After","Children's Services and Education","Third Party Payments","Other establishments","01/10/2020","6,387,315","3,436.72","VENDOR","FIVE RIVERS CHILD CARE LIMITED","106,901"
"Portsmouth City Council","PCC","Children's and Education Services","Children Looked After","Children's Services and Education","Third Party Payments","Other establishments","01/10/2020","6,387,315","-0.01","VENDOR","FIVE RIVERS CHILD CARE LIMITED","106,901"
"Portsmouth City Council","PCC","Children's and Education Services","Children Looked After","Children's Services and Education","Third Party Payments","Other establishments","01/10/2020","6,387,315","3,407.15","VENDOR","FIVE RIVERS CHILD CARE LIMITED","106,901"
"Portsmouth City Council","PCC","Children's and Education Services","Children Looked After","Children's Services and Education","Third Party Payments","Other establishments","29/10/2020","6,392,052","3,520.71","VENDOR","FIVE RIVERS CHILD CARE LIMITED","106,901"
"Portsmouth City Council","PCC","Other","Suspense and Capital Schemes","Capital - Planning Policy & City Development","Capital Charges","Capital Expenditure (WIP)","13/10/2020","6,388,874","1,583.33","VENDOR","HISTORIC BUILDINGS & MONUMENTS COMMISSION FOR ENGLAND","106,883"
"Portsmouth City Council","PCC","Other","Suspense and Capital Schemes","Capital - Planning Policy & City Development","Capital Charges","Capital Expenditure (WIP)","13/10/2020","6,388,874","6,196.67","VENDOR","HISTORIC BUILDINGS & MONUMENTS COMMISSION FOR ENGLAND","106,883"
"Portsmouth City Council","PCC","Adult Social Care","Physical Support Older People (85+)","Adult Services","Third Party Payments","Other establishments","05/10/2020","6,387,584","1,456.00","VENDOR","ABICARE SERVICES LTD","146,674"
"Portsmouth City Council","PCC","Adult Social Care","Physical Support Older People (85+)","Adult Services","Third Party Payments","Other establishments","05/10/2020","6,387,584","1,877.68","VENDOR","ABICARE SERVICES LTD","146,674"
"Portsmouth City Council","PCC","Adult Social Care","Social Care Activities","Adult Services","Third Party Payments","Other establishments","26/10/2020","6,391,167","10,157.36","VENDOR","ACCESS CARE LTD","106,309"
"Portsmouth City Council","PCC","Solent LEP","Business support","OTHER","Supplies and Services","Equipment, furniture and materials","01/10/2020","6,387,348","765.65","VENDOR","PORTSDOWN OFFICE LTD","100,059"
"Portsmouth City Council","PCC","Support Service / Transparency Costs Unallocated","AMS","Housing, Neighbourhood and Building Services","Supplies and Services","Equipment, furniture and materials","26/10/2020","6,391,264","131.74","VENDOR","PORTSDOWN OFFICE LTD","100,059"
"Portsmouth City Council","PCC","Support Service / Transparency Costs Unallocated","AMS","Housing, Neighbourhood and Building Services","Supplies and Services","Equipment, furniture and materials","26/10/2020","6,391,264","987.32","VENDOR","PORTSDOWN OFFICE LTD","100,059"
"Portsmouth City Council","PCC","Housing Revenue Account","HRA services share of CDC","Housing, Neighbourhood and Building Services","Supplies and Services","Services","28/10/2020","6,391,603","4,275.00","VENDOR","ECOLOGICAL SURVEY & ASSESSMENT LTD","145,077"
"Portsmouth City Council","PCC","Housing Revenue Account","HRA services share of CDC","Housing, Neighbourhood and Building Services","Supplies and Services","Services","28/10/2020","6,391,603","1,205.25","VENDOR","ECOLOGICAL SURVEY & ASSESSMENT LTD","145,077"
"Portsmouth City Council","PCC","Housing Revenue Account","HRA services share of CDC","Housing, Neighbourhood and Building Services","Supplies and Services","Services","28/10/2020","6,391,603","64.75","VENDOR","ECOLOGICAL SURVEY & ASSESSMENT LTD","145,077"
"Portsmouth City Council","PCC","Children's and Education Services","Other Children and Family Services","Children's Services and Education","Supplies and Services","Services","09/10/2020","6,388,432","744.00","VENDOR","ABBOTT TOXICOLOGY LIMITED","121,708"
"Portsmouth City Council","PCC","Housing Services","Homelessness","Housing, Neighbourhood and Building Services","Supplies and Services","Grants and subscriptions","12/10/2020","6,388,722","800.00","SOLETRADER","Classified as 'personal data' (under the Data Protection Act 2018)","147,299"
"Portsmouth City Council","PCC","Adult Social Care","Physical Support Older People (85+)","Adult Services","Third Party Payments","Other establishments","05/10/2020","6,387,585","3,744.60","VENDOR","AGINCARE UK","134,367"
"Portsmouth City Council","PCC","Adult Social Care","Physical Support Older People (85+)","Adult Services","Third Party Payments","Other establishments","30/10/2020","6,392,111","3,744.60","VENDOR","AGINCARE UK","134,367"
"Portsmouth City Council","PCC","Adult Social Care","Physical Support Adults (18 - 64)","Adult Services","Third Party Payments","Other establishments","12/10/2020","6,388,602","3,702.33","VENDOR","AGINCARE UK","134,367"
"Portsmouth City Council","PCC","Other","Suspense and Capital Schemes","Corporate Services","Supplies and Services","Communications and computing","07/10/2020","6,388,280","1,373.92","VENDOR","TRINSIC LIMITED","146,365"
"Portsmouth City Council","PCC","Other","Suspense and Capital Schemes","Capital - Housing General Fund","Capital Charges","Capital Expenditure (WIP)","27/10/2020","6,391,402","14,175.90","COMPANY","SIMER ENVIRONMENTAL SERVICES LTD","117,627"
"Portsmouth City Council","PCC","Housing Services","Private Sector Housing Renewal","Housing, Neighbourhood and Building Services","Supplies and Services","Grants and subscriptions","28/10/2020","6,391,842","15,000.00","COMPANY","PORTSMOUTH BUILDING SPECIALISTS LTD","146,493"
"Portsmouth City Council","PCC","Highways and Transport Services","Transport Planning, Policy and Strategy","Regeneration","Supplies and Services","Services","14/10/2020","6,389,162","15,288.00","VENDOR","INTEGRATED TRANSPORT PLANNING LTD","125,772"
"Portsmouth City Council","PCC","Children's and Education Services","Safeguarding Children and Young Peoples Services","Children's Services and Education","Third Party Payments","Other establishments","27/10/2020","6,391,418","-7.40","VENDOR","TWO SAINTS LTD","102,584"
"Portsmouth City Council","PCC","Children's and Education Services","Safeguarding Children and Young Peoples Services","Children's Services and Education","Third Party Payments","Other establishments","27/10/2020","6,391,418","739.60","VENDOR","TWO SAINTS LTD","102,584"
"Portsmouth City Council","PCC","Children's and Education Services","Safeguarding Children and Young Peoples Services","Children's Services and Education","Third Party Payments","Other establishments","27/10/2020","6,391,418","-7.40","VENDOR","TWO SAINTS LTD","102,584"
"Portsmouth City Council","PCC","Children's and Education Services","Safeguarding Children and Young Peoples Services","Children's Services and Education","Third Party Payments","Other establishments","27/10/2020","6,391,418","739.60","VENDOR","TWO SAINTS LTD","102,584"
"Portsmouth City Council","PCC","Children's and Education Services","Children Looked After","Children's Services and Education","Third Party Payments","Other establishments","06/10/2020","6,387,798","-1.33","VENDOR","TWO SAINTS LTD","102,584"
"Portsmouth City Council","PCC","Children's and Education Services","Children Looked After","Children's Services and Education","Third Party Payments","Other establishments","06/10/2020","6,387,798","132.08","VENDOR","TWO SAINTS LTD","102,584"
"Portsmouth City Council","PCC","Children's and Education Services","Safeguarding Children and Young Peoples Services","Children's Services and Education","Third Party Payments","Other establishments","06/10/2020","6,387,798","-7.40","VENDOR","TWO SAINTS LTD","102,584"
"Portsmouth City Council","PCC","Children's and Education Services","Safeguarding Children and Young Peoples Services","Children's Services and Education","Third Party Payments","Other establishments","06/10/2020","6,387,798","739.60","VENDOR","TWO SAINTS LTD","102,584"
"Portsmouth City Council","PCC","Children's and Education Services","Children Looked After","Children's Services and Education","Third Party Payments","Other establishments","06/10/2020","6,387,798","231.60","VENDOR","TWO SAINTS LTD","102,584"
"Portsmouth City Council","PCC","Children's and Education Services","Children Looked After","Children's Services and Education","Third Party Payments","Other establishments","06/10/2020","6,387,798","-234.40","VENDOR","TWO SAINTS LTD","102,584"
"Portsmouth City Council","PCC","Children's and Education Services","Children Looked After","Children's Services and Education","Third Party Payments","Other establishments","06/10/2020","6,387,798","739.76","VENDOR","TWO SAINTS LTD","102,584"
"Portsmouth City Council","PCC","Other","Suspense and Capital Schemes","Capital - Children, Families and Education","Capital Charges","Capital Expenditure (WIP)","02/10/2020","6,387,548","500.00","VENDOR","SERVELEC GROUP LTD","144,037"
"Portsmouth City Council","PCC","Children's and Education Services","Children Looked After","Children's Services and Education","Third Party Payments","Other establishments","06/10/2020","6,387,798","115.80","VENDOR","TWO SAINTS LTD","102,584"
"Portsmouth City Council","PCC","Housing Services","Supporting People","Housing, Neighbourhood and Building Services","Third Party Payments","Other establishments","01/10/2020","6,387,373","49,983.41","VENDOR","TWO SAINTS LTD","102,584"
"Portsmouth City Council","PCC","Housing Services","Supporting People","Housing, Neighbourhood and Building Services","Third Party Payments","Other establishments","01/10/2020","6,387,373","34,883.06","VENDOR","TWO SAINTS LTD","102,584"
"Portsmouth City Council","PCC","Housing Services","Homelessness","Housing, Neighbourhood and Building Services","Third Party Payments","Private contractors","23/10/2020","6,391,152","16,887.13","VENDOR","TWO SAINTS LTD","102,584"
"Portsmouth City Council","PCC","Children's and Education Services","Children Looked After","Children's Services and Education","Third Party Payments","Other establishments","29/10/2020","6,392,101","-2.83","VENDOR","TWO SAINTS LTD","102,584"
"Portsmouth City Council","PCC","Children's and Education Services","Children Looked After","Children's Services and Education","Third Party Payments","Other establishments","29/10/2020","6,392,101","792.43","VENDOR","TWO SAINTS LTD","102,584"
"Portsmouth City Council","PCC","Children's and Education Services","Children Looked After","Children's Services and Education","Third Party Payments","Other establishments","29/10/2020","6,392,101","-16.54","VENDOR","TWO SAINTS LTD","102,584"
"Portsmouth City Council","PCC","Children's and Education Services","Children Looked After","Children's Services and Education","Third Party Payments","Other establishments","29/10/2020","6,392,101","248.14","VENDOR","TWO SAINTS LTD","102,584"
"Portsmouth City Council","PCC","Children's and Education Services","Safeguarding Children and Young Peoples Services","Children's Services and Education","Third Party Payments","Other establishments","23/10/2020","6,391,153","-7.93","VENDOR","TWO SAINTS LTD","102,584"
"Portsmouth City Council","PCC","Children's and Education Services","Safeguarding Children and Young Peoples Services","Children's Services and Education","Third Party Payments","Other establishments","23/10/2020","6,391,153","792.43","VENDOR","TWO SAINTS LTD","102,584"
"Portsmouth City Council","PCC","Children's and Education Services","Safeguarding Children and Young Peoples Services","Children's Services and Education","Third Party Payments","Other establishments","23/10/2020","6,391,153","-7.93","VENDOR","TWO SAINTS LTD","102,584"
"Portsmouth City Council","PCC","Children's and Education Services","Safeguarding Children and Young Peoples Services","Children's Services and Education","Third Party Payments","Other establishments","23/10/2020","6,391,153","792.43","VENDOR","TWO SAINTS LTD","102,584"
"Portsmouth City Council","PCC","Children's and Education Services","Safeguarding Children and Young Peoples Services","Children's Services and Education","Third Party Payments","Other establishments","23/10/2020","6,391,153","-7.93","VENDOR","TWO SAINTS LTD","102,584"
"Portsmouth City Council","PCC","Children's and Education Services","Safeguarding Children and Young Peoples Services","Children's Services and Education","Third Party Payments","Other establishments","23/10/2020","6,391,153","792.43","VENDOR","TWO SAINTS LTD","102,584"
"Portsmouth City Council","PCC","Children's and Education Services","Safeguarding Children and Young Peoples Services","Children's Services and Education","Third Party Payments","Other establishments","23/10/2020","6,391,153","-7.93","VENDOR","TWO SAINTS LTD","102,584"
"Portsmouth City Council","PCC","Children's and Education Services","Safeguarding Children and Young Peoples Services","Children's Services and Education","Third Party Payments","Other establishments","23/10/2020","6,391,153","792.43","VENDOR","TWO SAINTS LTD","102,584"
"Portsmouth City Council","PCC","Children's and Education Services","Children Looked After","Children's Services and Education","Third Party Payments","Other establishments","23/10/2020","6,391,153","-2.11","VENDOR","TWO SAINTS LTD","102,584"
"Portsmouth City Council","PCC","Children's and Education Services","Children Looked After","Children's Services and Education","Third Party Payments","Other establishments","23/10/2020","6,391,153","211.31","VENDOR","TWO SAINTS LTD","102,584"
"Portsmouth City Council","PCC","Children's and Education Services","Children Looked After","Children's Services and Education","Third Party Payments","Other establishments","29/10/2020","6,392,101","-3.53","VENDOR","TWO SAINTS LTD","102,584"
"Portsmouth City Council","PCC","Children's and Education Services","Children Looked After","Children's Services and Education","Third Party Payments","Other establishments","29/10/2020","6,392,101","818.85","VENDOR","TWO SAINTS LTD","102,584"
"Portsmouth City Council","PCC","Children's and Education Services","Safeguarding Children and Young Peoples Services","Children's Services and Education","Third Party Payments","Other establishments","26/10/2020","6,391,294","-8.20","VENDOR","TWO SAINTS LTD","102,584"
"Portsmouth City Council","PCC","Children's and Education Services","Safeguarding Children and Young Peoples Services","Children's Services and Education","Third Party Payments","Other establishments","26/10/2020","6,391,294","818.85","VENDOR","TWO SAINTS LTD","102,584"
"Portsmouth City Council","PCC","Children's and Education Services","Safeguarding Children and Young Peoples Services","Children's Services and Education","Third Party Payments","Other establishments","23/10/2020","6,391,153","-8.20","VENDOR","TWO SAINTS LTD","102,584"
"Portsmouth City Council","PCC","Children's and Education Services","Safeguarding Children and Young Peoples Services","Children's Services and Education","Third Party Payments","Other establishments","23/10/2020","6,391,153","818.85","VENDOR","TWO SAINTS LTD","102,584"
"Portsmouth City Council","PCC","Children's and Education Services","Safeguarding Children and Young Peoples Services","Children's Services and Education","Third Party Payments","Other establishments","23/10/2020","6,391,153","-8.20","VENDOR","TWO SAINTS LTD","102,584"
"Portsmouth City Council","PCC","Children's and Education Services","Safeguarding Children and Young Peoples Services","Children's Services and Education","Third Party Payments","Other establishments","23/10/2020","6,391,153","818.85","VENDOR","TWO SAINTS LTD","102,584"
"Portsmouth City Council","PCC","Children's and Education Services","Safeguarding Children and Young Peoples Services","Children's Services and Education","Third Party Payments","Other establishments","23/10/2020","6,391,153","-8.20","VENDOR","TWO SAINTS LTD","102,584"
"Portsmouth City Council","PCC","Children's and Education Services","Safeguarding Children and Young Peoples Services","Children's Services and Education","Third Party Payments","Other establishments","23/10/2020","6,391,153","818.85","VENDOR","TWO SAINTS LTD","102,584"
"Portsmouth City Council","PCC","Children's and Education Services","Safeguarding Children and Young Peoples Services","Children's Services and Education","Third Party Payments","Other establishments","23/10/2020","6,391,153","1.07","VENDOR","TWO SAINTS LTD","102,584"
"Portsmouth City Council","PCC","Children's and Education Services","Safeguarding Children and Young Peoples Services","Children's Services and Education","Third Party Payments","Other establishments","23/10/2020","6,391,153","814.85","VENDOR","TWO SAINTS LTD","102,584"
"Portsmouth City Council","PCC","Children's and Education Services","Children Looked After","Children's Services and Education","Third Party Payments","Other establishments","23/10/2020","6,391,153","-8.20","VENDOR","TWO SAINTS LTD","102,584"
"Portsmouth City Council","PCC","Children's and Education Services","Children Looked After","Children's Services and Education","Third Party Payments","Other establishments","23/10/2020","6,391,153","818.85","VENDOR","TWO SAINTS LTD","102,584"
"Portsmouth City Council","PCC","Children's and Education Services","Children Looked After","Children's Services and Education","Third Party Payments","Other establishments","29/10/2020","6,392,101","-2.45","VENDOR","TWO SAINTS LTD","102,584"
"Portsmouth City Council","PCC","Children's and Education Services","Children Looked After","Children's Services and Education","Third Party Payments","Other establishments","29/10/2020","6,392,101","686.77","VENDOR","TWO SAINTS LTD","102,584"
"Portsmouth City Council","PCC","Children's and Education Services","Children Looked After","Children's Services and Education","Third Party Payments","Other establishments","29/10/2020","6,392,101","173.70","VENDOR","TWO SAINTS LTD","102,584"
"Portsmouth City Council","PCC","Children's and Education Services","Safeguarding Children and Young Peoples Services","Children's Services and Education","Third Party Payments","Other establishments","27/10/2020","6,391,418","-8.19","VENDOR","TWO SAINTS LTD","102,584"
"Portsmouth City Council","PCC","Children's and Education Services","Safeguarding Children and Young Peoples Services","Children's Services and Education","Third Party Payments","Other establishments","27/10/2020","6,391,418","818.84","VENDOR","TWO SAINTS LTD","102,584"
"Portsmouth City Council","PCC","Children's and Education Services","Safeguarding Children and Young Peoples Services","Children's Services and Education","Third Party Payments","Other establishments","27/10/2020","6,391,418","-8.19","VENDOR","TWO SAINTS LTD","102,584"
"Portsmouth City Council","PCC","Children's and Education Services","Safeguarding Children and Young Peoples Services","Children's Services and Education","Third Party Payments","Other establishments","27/10/2020","6,391,418","818.84","VENDOR","TWO SAINTS LTD","102,584"
"Portsmouth City Council","PCC","Children's and Education Services","Safeguarding Children and Young Peoples Services","Children's Services and Education","Third Party Payments","Other establishments","27/10/2020","6,391,418","-8.19","VENDOR","TWO SAINTS LTD","102,584"
"Portsmouth City Council","PCC","Children's and Education Services","Safeguarding Children and Young Peoples Services","Children's Services and Education","Third Party Payments","Other establishments","27/10/2020","6,391,418","818.84","VENDOR","TWO SAINTS LTD","102,584"
"Portsmouth City Council","PCC","Children's and Education Services","Safeguarding Children and Young Peoples Services","Children's Services and Education","Third Party Payments","Other establishments","27/10/2020","6,391,418","-8.19","VENDOR","TWO SAINTS LTD","102,584"
"Portsmouth City Council","PCC","Children's and Education Services","Safeguarding Children and Young Peoples Services","Children's Services and Education","Third Party Payments","Other establishments","27/10/2020","6,391,418","818.84","VENDOR","TWO SAINTS LTD","102,584"
"Portsmouth City Council","PCC","Children's and Education Services","Safeguarding Children and Young Peoples Services","Children's Services and Education","Third Party Payments","Other establishments","27/10/2020","6,391,418","1.06","VENDOR","TWO SAINTS LTD","102,584"
"Portsmouth City Council","PCC","Children's and Education Services","Safeguarding Children and Young Peoples Services","Children's Services and Education","Third Party Payments","Other establishments","27/10/2020","6,391,418","814.86","VENDOR","TWO SAINTS LTD","102,584"
"Portsmouth City Council","PCC","Children's and Education Services","Children Looked After","Children's Services and Education","Third Party Payments","Other establishments","27/10/2020","6,391,418","-8.19","VENDOR","TWO SAINTS LTD","102,584"
"Portsmouth City Council","PCC","Children's and Education Services","Children Looked After","Children's Services and Education","Third Party Payments","Other establishments","27/10/2020","6,391,418","818.84","VENDOR","TWO SAINTS LTD","102,584"
"Portsmouth City Council","PCC","Children's and Education Services","Safeguarding Children and Young Peoples Services","Children's Services and Education","Third Party Payments","Other establishments","29/10/2020","6,392,101","-7.93","VENDOR","TWO SAINTS LTD","102,584"
"Portsmouth City Council","PCC","Children's and Education Services","Safeguarding Children and Young Peoples Services","Children's Services and Education","Third Party Payments","Other establishments","29/10/2020","6,392,101","792.43","VENDOR","TWO SAINTS LTD","102,584"
"Portsmouth City Council","PCC","Children's and Education Services","Safeguarding Children and Young Peoples Services","Children's Services and Education","Third Party Payments","Other establishments","29/10/2020","6,392,101","-7.93","VENDOR","TWO SAINTS LTD","102,584"
"Portsmouth City Council","PCC","Children's and Education Services","Safeguarding Children and Young Peoples Services","Children's Services and Education","Third Party Payments","Other establishments","29/10/2020","6,392,101","792.43","VENDOR","TWO SAINTS LTD","102,584"
"Portsmouth City Council","PCC","Children's and Education Services","Safeguarding Children and Young Peoples Services","Children's Services and Education","Third Party Payments","Other establishments","29/10/2020","6,392,101","-7.93","VENDOR","TWO SAINTS LTD","102,584"
"Portsmouth City Council","PCC","Children's and Education Services","Safeguarding Children and Young Peoples Services","Children's Services and Education","Third Party Payments","Other establishments","29/10/2020","6,392,101","792.43","VENDOR","TWO SAINTS LTD","102,584"
"Portsmouth City Council","PCC","Children's and Education Services","Safeguarding Children and Young Peoples Services","Children's Services and Education","Third Party Payments","Other establishments","29/10/2020","6,392,101","-7.93","VENDOR","TWO SAINTS LTD","102,584"
"Portsmouth City Council","PCC","Children's and Education Services","Safeguarding Children and Young Peoples Services","Children's Services and Education","Third Party Payments","Other establishments","29/10/2020","6,392,101","792.43","VENDOR","TWO SAINTS LTD","102,584"
"Portsmouth City Council","PCC","Children's and Education Services","Safeguarding Children and Young Peoples Services","Children's Services and Education","Third Party Payments","Other establishments","29/10/2020","6,392,101","1.03","VENDOR","TWO SAINTS LTD","102,584"
"Portsmouth City Council","PCC","Children's and Education Services","Safeguarding Children and Young Peoples Services","Children's Services and Education","Third Party Payments","Other establishments","29/10/2020","6,392,101","788.57","VENDOR","TWO SAINTS LTD","102,584"
"Portsmouth City Council","PCC","Children's and Education Services","Children Looked After","Children's Services and Education","Third Party Payments","Other establishments","29/10/2020","6,392,101","-7.93","VENDOR","TWO SAINTS LTD","102,584"
"Portsmouth City Council","PCC","Children's and Education Services","Children Looked After","Children's Services and Education","Third Party Payments","Other establishments","29/10/2020","6,392,101","792.43","VENDOR","TWO SAINTS LTD","102,584"
"Portsmouth City Council","PCC","Support Service / Transparency Costs Unallocated","AMS","Housing, Neighbourhood and Building Services","Supplies and Services","Grants and subscriptions","19/10/2020","6,389,912","683.33","VENDOR","ROYAL INSTITUTION OF CHARTERED SURVEYORS","100,075"
"Portsmouth City Council","PCC","Support Service / Transparency Costs Unallocated","AMS","Regeneration","Supplies and Services","Grants and subscriptions","19/10/2020","6,389,912","683.33","VENDOR","ROYAL INSTITUTION OF CHARTERED SURVEYORS","100,075"
"Portsmouth City Council","PCC","Support Service / Transparency Costs Unallocated","AMS","Housing, Neighbourhood and Building Services","Supplies and Services","Grants and subscriptions","19/10/2020","6,389,912","683.34","VENDOR","ROYAL INSTITUTION OF CHARTERED SURVEYORS","100,075"
"Portsmouth City Council","PCC","Other","Suspense and Capital Schemes","Capital - Traffic & Transportation","Capital Charges","Capital Expenditure (WIP)","21/10/2020","6,390,644","4,200.00","VENDOR","PLEYDELL TECHNOLOGY CONSULTING LTD","144,609"
"Portsmouth City Council","PCC","Adult Social Care","Support with Memory and Cognition Older People (65 - 74)","Adult Services","Third Party Payments","Private contractors","02/10/2020","6,387,390","502.38","VENDOR","A24 GROUP LIMITED T/A AMBITION 24 HOURS","139,614"
"Portsmouth City Council","PCC","Adult Social Care","Learning Disability Support  Adults (18 - 64)","Adult Services","Premises-Related Expenditure","Water Services","21/10/2020","6,390,293","125.35","VENDOR","ADVANCED DEMAND SIDE MANAGEMENT LIMITED","143,817"
"Portsmouth City Council","PCC","Adult Social Care","Learning Disability Support  Adults (18 - 64)","Adult Services","Premises-Related Expenditure","Water Services","21/10/2020","6,390,293","38.89","VENDOR","ADVANCED DEMAND SIDE MANAGEMENT LIMITED","143,817"
"Portsmouth City Council","PCC","Adult Social Care","Learning Disability Support  Adults (18 - 64)","Adult Services","Premises-Related Expenditure","Water Services","21/10/2020","6,390,293","556.71","VENDOR","ADVANCED DEMAND SIDE MANAGEMENT LIMITED","143,817"
"Portsmouth City Council","PCC","Adult Social Care","Support with Memory and Cognition Older People (65 - 74)","Adult Services","Premises-Related Expenditure","Water Services","21/10/2020","6,390,293","282.45","VENDOR","ADVANCED DEMAND SIDE MANAGEMENT LIMITED","143,817"
"Portsmouth City Council","PCC","Adult Social Care","Information and Early Intervention","Adult Services","Premises-Related Expenditure","Water Services","21/10/2020","6,390,293","73.79","VENDOR","ADVANCED DEMAND SIDE MANAGEMENT LIMITED","143,817"
"Portsmouth City Council","PCC","Adult Social Care","Support with Memory and Cognition Older People (65 - 74)","Adult Services","Premises-Related Expenditure","Water Services","21/10/2020","6,390,293","1,084.28","VENDOR","ADVANCED DEMAND SIDE MANAGEMENT LIMITED","143,817"
"Portsmouth City Council","PCC","Adult Social Care","Support with Memory and Cognition Older People (65 - 74)","Adult Services","Premises-Related Expenditure","Water Services","21/10/2020","6,390,293","76.37","VENDOR","ADVANCED DEMAND SIDE MANAGEMENT LIMITED","143,817"
"Portsmouth City Council","PCC","Adult Social Care","Learning Disability Support  Adults (18 - 64)","Adult Services","Premises-Related Expenditure","Water Services","23/10/2020","6,390,982","121.74","VENDOR","ADVANCED DEMAND SIDE MANAGEMENT LIMITED","143,817"
"Portsmouth City Council","PCC","Adult Social Care","Learning Disability Support  Adults (18 - 64)","Adult Services","Premises-Related Expenditure","Water Services","23/10/2020","6,390,982","40.68","VENDOR","ADVANCED DEMAND SIDE MANAGEMENT LIMITED","143,817"
"Portsmouth City Council","PCC","Adult Social Care","Learning Disability Support  Adults (18 - 64)","Adult Services","Premises-Related Expenditure","Water Services","23/10/2020","6,390,982","539.28","VENDOR","ADVANCED DEMAND SIDE MANAGEMENT LIMITED","143,817"
"Portsmouth City Council","PCC","Adult Social Care","Support with Memory and Cognition Older People (65 - 74)","Adult Services","Premises-Related Expenditure","Water Services","23/10/2020","6,390,982","273.17","VENDOR","ADVANCED DEMAND SIDE MANAGEMENT LIMITED","143,817"
"Portsmouth City Council","PCC","Adult Social Care","Information and Early Intervention","Adult Services","Premises-Related Expenditure","Water Services","23/10/2020","6,390,982","70.98","VENDOR","ADVANCED DEMAND SIDE MANAGEMENT LIMITED","143,817"
"Portsmouth City Council","PCC","Adult Social Care","Support with Memory and Cognition Older People (65 - 74)","Adult Services","Premises-Related Expenditure","Water Services","23/10/2020","6,390,982","1,048.86","VENDOR","ADVANCED DEMAND SIDE MANAGEMENT LIMITED","143,817"
"Portsmouth City Council","PCC","Adult Social Care","Support with Memory and Cognition Older People (65 - 74)","Adult Services","Premises-Related Expenditure","Water Services","23/10/2020","6,390,982","73.12","VENDOR","ADVANCED DEMAND SIDE MANAGEMENT LIMITED","143,817"
"Portsmouth City Council","PCC","Adult Social Care","Learning Disability Support  Adults (18 - 64)","Adult Services","Third Party Payments","Other establishments","12/10/2020","6,388,603","7,687.69","VENDOR","AITCH CARE HOMES (LONDON) LIMITED","125,606"
"Portsmouth City Council","PCC","Adult Social Care","Learning Disability Support  Adults (18 - 64)","Adult Services","Third Party Payments","Other establishments","12/10/2020","6,388,603","8,018.77","VENDOR","AITCH CARE HOMES (LONDON) LIMITED","125,606"
"Portsmouth City Council","PCC","Adult Social Care","Learning Disability Support  Adults (18 - 64)","Adult Services","Third Party Payments","Other establishments","12/10/2020","6,388,603","8,753.78","VENDOR","AITCH CARE HOMES (LONDON) LIMITED","125,606"
"Portsmouth City Council","PCC","Adult Social Care","Social Care Activities","Adult Services","Third Party Payments","Other establishments","02/10/2020","6,387,392","6,369.88","VENDOR","ALBANY CARE (PORTCHESTER) LIMITED","146,887"
"Portsmouth City Council","PCC","Adult Social Care","Social Care Activities","Adult Services","Third Party Payments","Other establishments","23/10/2020","6,390,983","6,405.80","VENDOR","ALBANY CARE (PORTCHESTER) LIMITED","146,887"
"Portsmouth City Council","PCC","Adult Social Care","Social Care Activities","Adult Services","Third Party Payments","Other establishments","23/10/2020","6,390,983","6,199.16","VENDOR","ALBANY CARE (PORTCHESTER) LIMITED","146,887"
"Portsmouth City Council","PCC","Adult Social Care","Social Care Activities","Adult Services","Third Party Payments","Other establishments","14/10/2020","6,388,947","2,747.20","VENDOR","ALBANY CARE (PORTCHESTER) LIMITED","146,887"
"Portsmouth City Council","PCC","Adult Social Care","Learning Disability Support  Adults (18 - 64)","Adult Services","Transport-Related Expenditure","Public transport","06/10/2020","6,387,695","1,243.60","VENDOR","AQUA CARS LIMITED","100,011"
"Portsmouth City Council","PCC","Adult Social Care","Learning Disability Support  Adults (18 - 64)","Adult Services","Transport-Related Expenditure","Public transport","13/10/2020","6,388,817","2,721.40","VENDOR","AQUA CARS LIMITED","100,011"
"Portsmouth City Council","PCC","Adult Social Care","Learning Disability Support  Adults (18 - 64)","Adult Services","Transport-Related Expenditure","Public transport","20/10/2020","6,390,153","2,989.90","VENDOR","AQUA CARS LIMITED","100,011"
"Portsmouth City Council","PCC","Adult Social Care","Social Care Activities","Adult Services","Transport-Related Expenditure","Direct transport costs","20/10/2020","6,390,153","5.50","VENDOR","AQUA CARS LIMITED","100,011"
"Portsmouth City Council","PCC","Adult Social Care","Learning Disability Support  Adults (18 - 64)","Adult Services","Transport-Related Expenditure","Public transport","27/10/2020","6,391,309","3,047.40","VENDOR","AQUA CARS LIMITED","100,011"
"Portsmouth City Council","PCC","Adult Social Care","Social Care Activities","Adult Services","Transport-Related Expenditure","Direct transport costs","27/10/2020","6,391,309","3.90","VENDOR","AQUA CARS LIMITED","100,011"
"Portsmouth City Council","PCC","Adult Social Care","Social Care Activities","Adult Services","Third Party Payments","Other establishments","23/10/2020","6,390,991","1,089.43","VENDOR","AQUA CARS LIMITED","100,011"
"Portsmouth City Council","PCC","Adult Social Care","Social Care Activities","Adult Services","Third Party Payments","Other establishments","23/10/2020","6,390,991","270.00","VENDOR","AQUA CARS LIMITED","100,011"
"Portsmouth City Council","PCC","Adult Social Care","Social Care Activities","Adult Services","Third Party Payments","Other establishments","23/10/2020","6,390,991","14.57","VENDOR","AQUA CARS LIMITED","100,011"
"Portsmouth City Council","PCC","Adult Social Care","Social Care Activities","Adult Services","Third Party Payments","Other establishments","14/10/2020","6,388,955","968.00","VENDOR","AQUA CARS LIMITED","100,011"
"Portsmouth City Council","PCC","Adult Social Care","Support with Memory and Cognition Older People (85+)","Adult Services","Third Party Payments","Other establishments","12/10/2020","6,388,620","2,338.64","VENDOR","AVENUE CARE (FAREHAM) LIMITED","125,285"
"Portsmouth City Council","PCC","Adult Social Care","Physical Support Older People (85+)","Adult Services","Third Party Payments","Other establishments","12/10/2020","6,388,624","3,275.15","VENDOR","BEAUMONT LODGE LIMITED","146,467"
"Portsmouth City Council","PCC","Adult Social Care","Physical Support Adults (18 - 64)","Adult Services","Third Party Payments","Other establishments","12/10/2020","6,388,632","1,800.00","VENDOR","BRAEMAR RCH LIMITED","102,015"
"Portsmouth City Council","PCC","Adult Social Care","Social Care Activities","Adult Services","Third Party Payments","Other establishments","12/10/2020","6,388,632","3,256.86","VENDOR","BRAEMAR RCH LIMITED","102,015"
"Portsmouth City Council","PCC","Adult Social Care","Physical Support Older People (85+)","Adult Services","Third Party Payments","Other establishments","12/10/2020","6,388,632","1,650.00","VENDOR","BRAEMAR RCH LIMITED","102,015"
"Portsmouth City Council","PCC","Adult Social Care","Physical Support Older People (85+)","Adult Services","Third Party Payments","Other establishments","12/10/2020","6,388,632","2,550.00","VENDOR","BRAEMAR RCH LIMITED","102,015"
"Portsmouth City Council","PCC","Adult Social Care","Support with Memory and Cognition Older People (85+)","Adult Services","Third Party Payments","Other establishments","12/10/2020","6,388,632","2,338.64","VENDOR","BRAEMAR RCH LIMITED","102,015"
"Portsmouth City Council","PCC","Adult Social Care","Support with Memory and Cognition Older People (85+)","Adult Services","Third Party Payments","Other establishments","12/10/2020","6,388,632","2,338.64","VENDOR","BRAEMAR RCH LIMITED","102,015"
"Portsmouth City Council","PCC","Adult Social Care","Support with Memory and Cognition Older People (85+)","Adult Services","Third Party Payments","Other establishments","12/10/2020","6,388,632","2,700.00","VENDOR","BRAEMAR RCH LIMITED","102,015"
"Portsmouth City Council","PCC","Adult Social Care","Support with Memory and Cognition Older People (85+)","Adult Services","Third Party Payments","Other establishments","12/10/2020","6,388,632","2,790.00","VENDOR","BRAEMAR RCH LIMITED","102,015"
"Portsmouth City Council","PCC","Adult Social Care","Support with Memory and Cognition Older People (85+)","Adult Services","Third Party Payments","Other establishments","12/10/2020","6,388,632","2,790.00","VENDOR","BRAEMAR RCH LIMITED","102,015"
"Portsmouth City Council","PCC","Adult Social Care","Support with Memory and Cognition Older People (85+)","Adult Services","Third Party Payments","Other establishments","12/10/2020","6,388,632","2,610.00","VENDOR","BRAEMAR RCH LIMITED","102,015"
"Portsmouth City Council","PCC","Adult Social Care","Support with Memory and Cognition Older People (85+)","Adult Services","Third Party Payments","Other establishments","12/10/2020","6,388,632","2,790.00","VENDOR","BRAEMAR RCH LIMITED","102,015"
"Portsmouth City Council","PCC","Adult Social Care","Support with Memory and Cognition Older People (85+)","Adult Services","Third Party Payments","Other establishments","12/10/2020","6,388,632","2,790.00","VENDOR","BRAEMAR RCH LIMITED","102,015"
"Portsmouth City Council","PCC","Adult Social Care","Support with Memory and Cognition Older People (85+)","Adult Services","Third Party Payments","Other establishments","12/10/2020","6,388,632","2,700.00","VENDOR","BRAEMAR RCH LIMITED","102,015"
"Portsmouth City Council","PCC","Adult Social Care","Support with Memory and Cognition Older People (85+)","Adult Services","Third Party Payments","Other establishments","12/10/2020","6,388,632","2,790.00","VENDOR","BRAEMAR RCH LIMITED","102,015"
"Portsmouth City Council","PCC","Adult Social Care","Support with Memory and Cognition Older People (85+)","Adult Services","Third Party Payments","Other establishments","12/10/2020","6,388,632","2,790.00","VENDOR","BRAEMAR RCH LIMITED","102,015"
"Portsmouth City Council","PCC","Adult Social Care","Support with Memory and Cognition Older People (85+)","Adult Services","Third Party Payments","Other establishments","12/10/2020","6,388,632","2,700.00","VENDOR","BRAEMAR RCH LIMITED","102,015"
"Portsmouth City Council","PCC","Adult Social Care","Support with Memory and Cognition Older People (85+)","Adult Services","Third Party Payments","Other establishments","12/10/2020","6,388,632","2,790.00","VENDOR","BRAEMAR RCH LIMITED","102,015"
"Portsmouth City Council","PCC","Adult Social Care","Support with Memory and Cognition Older People (85+)","Adult Services","Third Party Payments","Other establishments","12/10/2020","6,388,632","2,700.00","VENDOR","BRAEMAR RCH LIMITED","102,015"
"Portsmouth City Council","PCC","Adult Social Care","Support with Memory and Cognition Older People (85+)","Adult Services","Third Party Payments","Other establishments","12/10/2020","6,388,632","2,700.00","VENDOR","BRAEMAR RCH LIMITED","102,015"
"Portsmouth City Council","PCC","Adult Social Care","Support with Memory and Cognition Older People (85+)","Adult Services","Third Party Payments","Other establishments","12/10/2020","6,388,632","2,790.00","VENDOR","BRAEMAR RCH LIMITED","102,015"
"Portsmouth City Council","PCC","Adult Social Care","Support with Memory and Cognition Older People (85+)","Adult Services","Third Party Payments","Other establishments","12/10/2020","6,388,632","2,790.00","VENDOR","BRAEMAR RCH LIMITED","102,015"
"Portsmouth City Council","PCC","Adult Social Care","Support with Memory and Cognition Older People (85+)","Adult Services","Third Party Payments","Other establishments","12/10/2020","6,388,632","2,700.00","VENDOR","BRAEMAR RCH LIMITED","102,015"
"Portsmouth City Council","PCC","Adult Social Care","Support with Memory and Cognition Older People (85+)","Adult Services","Third Party Payments","Other establishments","12/10/2020","6,388,632","2,790.00","VENDOR","BRAEMAR RCH LIMITED","102,015"
"Portsmouth City Council","PCC","Adult Social Care","Support with Memory and Cognition Older People (85+)","Adult Services","Third Party Payments","Other establishments","12/10/2020","6,388,632","2,790.00","VENDOR","BRAEMAR RCH LIMITED","102,015"
"Portsmouth City Council","PCC","Adult Social Care","Support with Memory and Cognition Older People (85+)","Adult Services","Third Party Payments","Other establishments","12/10/2020","6,388,632","2,700.00","VENDOR","BRAEMAR RCH LIMITED","102,015"
"Portsmouth City Council","PCC","Adult Social Care","Support with Memory and Cognition Older People (85+)","Adult Services","Third Party Payments","Other establishments","12/10/2020","6,388,632","1,276.58","VENDOR","BRAEMAR RCH LIMITED","102,015"
"Portsmouth City Council","PCC","Adult Social Care","Support with Memory and Cognition Older People (85+)","Adult Services","Third Party Payments","Other establishments","12/10/2020","6,388,632","3,478.20","VENDOR","BRAEMAR RCH LIMITED","102,015"
"Portsmouth City Council","PCC","Adult Social Care","Support with Memory and Cognition Older People (85+)","Adult Services","Third Party Payments","Other establishments","12/10/2020","6,388,632","2,338.64","VENDOR","BRAEMAR RCH LIMITED","102,015"
"Portsmouth City Council","PCC","Adult Social Care","Support with Memory and Cognition Older People (85+)","Adult Services","Third Party Payments","Other establishments","12/10/2020","6,388,632","-1,320.00","VENDOR","BRAEMAR RCH LIMITED","102,015"
"Portsmouth City Council","PCC","Adult Social Care","Support with Memory and Cognition Older People (85+)","Adult Services","Third Party Payments","Other establishments","12/10/2020","6,388,632","3,410.00","VENDOR","BRAEMAR RCH LIMITED","102,015"
"Portsmouth City Council","PCC","Adult Social Care","Support with Memory and Cognition Older People (85+)","Adult Services","Third Party Payments","Other establishments","12/10/2020","6,388,632","2,338.64","VENDOR","BRAEMAR RCH LIMITED","102,015"
"Portsmouth City Council","PCC","Adult Social Care","Support with Memory and Cognition Older People (85+)","Adult Services","Third Party Payments","Other establishments","12/10/2020","6,388,632","2,338.64","VENDOR","BRAEMAR RCH LIMITED","102,015"
"Portsmouth City Council","PCC","Adult Social Care","Support with Memory and Cognition Older People (85+)","Adult Services","Third Party Payments","Other establishments","12/10/2020","6,388,632","3,720.00","VENDOR","BRAEMAR RCH LIMITED","102,015"
"Portsmouth City Council","PCC","Adult Social Care","Support with Memory and Cognition Older People (85+)","Adult Services","Third Party Payments","Other establishments","12/10/2020","6,388,632","4,030.00","VENDOR","BRAEMAR RCH LIMITED","102,015"
"Portsmouth City Council","PCC","Adult Social Care","Support with Memory and Cognition Older People (85+)","Adult Services","Third Party Payments","Other establishments","12/10/2020","6,388,632","3,410.00","VENDOR","BRAEMAR RCH LIMITED","102,015"
"Portsmouth City Council","PCC","Adult Social Care","Support with Memory and Cognition Older People (85+)","Adult Services","Third Party Payments","Other establishments","12/10/2020","6,388,632","2,852.00","VENDOR","BRAEMAR RCH LIMITED","102,015"
"Portsmouth City Council","PCC","Adult Social Care","Support with Memory and Cognition Older People (85+)","Adult Services","Third Party Payments","Other establishments","12/10/2020","6,388,632","2,338.64","VENDOR","BRAEMAR RCH LIMITED","102,015"
"Portsmouth City Council","PCC","Adult Social Care","Support with Memory and Cognition Older People (85+)","Adult Services","Third Party Payments","Other establishments","12/10/2020","6,388,632","-1,326.00","VENDOR","BRAEMAR RCH LIMITED","102,015"
"Portsmouth City Council","PCC","Adult Social Care","Support with Memory and Cognition Older People (85+)","Adult Services","Third Party Payments","Other establishments","12/10/2020","6,388,632","2,289.35","VENDOR","BRAEMAR RCH LIMITED","102,015"
"Portsmouth City Council","PCC","Adult Social Care","Social Care Activities","Adult Services","Third Party Payments","Other establishments","29/10/2020","6,392,004","11,988.26","VENDOR","BRAEMAR RCH LIMITED","102,015"
"Portsmouth City Council","PCC","Adult Social Care","Physical Support Older People (85+)","Adult Services","Third Party Payments","Other establishments","06/10/2020","6,387,703","35,120.00","VENDOR","BRAEMAR RCH LIMITED","102,015"
"Portsmouth City Council","PCC","Public Health","Miscellaneous Public Services","Public Health","Third Party Payments","Other establishments","21/10/2020","6,390,343","384.79","VENDOR","BRIGHTON COURT LIMITED T/A MERALI PHARMACY","137,773"
"Portsmouth City Council","PCC","Public Health","Miscellaneous Public Services","Public Health","Third Party Payments","Other establishments","21/10/2020","6,390,343","234.39","VENDOR","BRIGHTON COURT LIMITED T/A MERALI PHARMACY","137,773"
"Portsmouth City Council","PCC","Adult Social Care","Learning Disability Support  Adults (18 - 64)","Adult Services","Third Party Payments","Other establishments","12/10/2020","6,388,633","11,798.29","VENDOR","BROOKLANDS CARE LIMITED","128,129"
"Portsmouth City Council","PCC","Adult Social Care","Learning Disability Support  Adults (18 - 64)","Adult Services","Third Party Payments","Other establishments","12/10/2020","6,388,636","11,986.77","VENDOR","CARE MANAGEMENT GROUP LIMITED","101,894"
"Portsmouth City Council","PCC","Adult Social Care","Learning Disability Support  Adults (18 - 64)","Adult Services","Third Party Payments","Other establishments","12/10/2020","6,388,636","6,623.15","VENDOR","CARE MANAGEMENT GROUP LIMITED","101,894"
"Portsmouth City Council","PCC","Adult Social Care","Learning Disability Support  Adults (18 - 64)","Adult Services","Third Party Payments","Other establishments","12/10/2020","6,388,636","4,472.37","VENDOR","CARE MANAGEMENT GROUP LIMITED","101,894"
"Portsmouth City Council","PCC","Adult Social Care","Learning Disability Support  Adults (18 - 64)","Adult Services","Third Party Payments","Other establishments","12/10/2020","6,388,636","7,808.28","VENDOR","CARE MANAGEMENT GROUP LIMITED","101,894"
"Portsmouth City Council","PCC","Adult Social Care","Learning Disability Support  Adults (18 - 64)","Adult Services","Third Party Payments","Other establishments","12/10/2020","6,388,636","6,607.03","VENDOR","CARE MANAGEMENT GROUP LIMITED","101,894"
"Portsmouth City Council","PCC","Children's and Education Services","Other Children and Family Services","Children's Services and Education","Third Party Payments","Other establishments","02/10/2020","6,387,398","-310.40","VENDOR","APPLETREE SUPPORT LTD","126,285"
"Portsmouth City Council","PCC","Children's and Education Services","Other Children and Family Services","Children's Services and Education","Third Party Payments","Other establishments","02/10/2020","6,387,398","620.80","VENDOR","APPLETREE SUPPORT LTD","126,285"
"Portsmouth City Council","PCC","Children's and Education Services","Other Children and Family Services","Children's Services and Education","Third Party Payments","Other establishments","02/10/2020","6,387,398","-659.60","VENDOR","APPLETREE SUPPORT LTD","126,285"
"Portsmouth City Council","PCC","Children's and Education Services","Other Children and Family Services","Children's Services and Education","Third Party Payments","Other establishments","02/10/2020","6,387,398","1,164.00","VENDOR","APPLETREE SUPPORT LTD","126,285"
"Portsmouth City Council","PCC","Children's and Education Services","Other Children and Family Services","Children's Services and Education","Third Party Payments","Other establishments","09/10/2020","6,388,438","-164.90","VENDOR","APPLETREE SUPPORT LTD","126,285"
"Portsmouth City Council","PCC","Children's and Education Services","Other Children and Family Services","Children's Services and Education","Third Party Payments","Other establishments","09/10/2020","6,388,438","620.80","VENDOR","APPLETREE SUPPORT LTD","126,285"
"Portsmouth City Council","PCC","Other","Suspense and Capital Schemes","Capital - Housing General Fund","Capital Charges","REFCUS","07/10/2020","6,388,179","1,901.90","VENDOR","PORTSMOUTH BATHROOM SPECIALISTS LTD","138,960"
"Portsmouth City Council","PCC","Housing Services","Private Sector Housing Renewal","Housing, Neighbourhood and Building Services","Income","Other grants reimbursements and contributions","07/10/2020","6,388,179","-864.50","VENDOR","PORTSMOUTH BATHROOM SPECIALISTS LTD","138,960"
"Portsmouth City Council","PCC","Other","Suspense and Capital Schemes","Capital - Housing General Fund","Capital Charges","REFCUS","05/10/2020","6,387,656","7,780.50","VENDOR","PORTSMOUTH BATHROOM SPECIALISTS LTD","138,960"
"Portsmouth City Council","PCC","Adult Social Care","Physical Support Adults (18 - 64)","Adult Services","Third Party Payments","Other establishments","26/10/2020","6,391,167","496.16","VENDOR","ACCESS CARE LTD","106,309"
"Portsmouth City Council","PCC","Adult Social Care","Physical Support Adults (18 - 64)","Adult Services","Third Party Payments","Other establishments","26/10/2020","6,391,167","3,120.32","VENDOR","ACCESS CARE LTD","106,309"
"Portsmouth City Council","PCC","Adult Social Care","Social Care Activities","Adult Services","Third Party Payments","Other establishments","20/10/2020","6,390,151","243.60","VENDOR","ADMIRAL CARE LTD","138,025"
"Portsmouth City Council","PCC","Adult Social Care","Social Care Activities","Adult Services","Third Party Payments","Other establishments","20/10/2020","6,390,151","243.60","VENDOR","ADMIRAL CARE LTD","138,025"
"Portsmouth City Council","PCC","Adult Social Care","Social Care Activities","Adult Services","Third Party Payments","Other establishments","20/10/2020","6,390,151","974.40","VENDOR","ADMIRAL CARE LTD","138,025"
"Portsmouth City Council","PCC","Adult Social Care","Social Care Activities","Adult Services","Third Party Payments","Other establishments","20/10/2020","6,390,151","1,096.20","VENDOR","ADMIRAL CARE LTD","138,025"
"Portsmouth City Council","PCC","Adult Social Care","Social Care Activities","Adult Services","Third Party Payments","Other establishments","20/10/2020","6,390,151","1,096.20","VENDOR","ADMIRAL CARE LTD","138,025"
"Portsmouth City Council","PCC","Adult Social Care","Social Care Activities","Adult Services","Third Party Payments","Other establishments","20/10/2020","6,390,151","487.20","VENDOR","ADMIRAL CARE LTD","138,025"
"Portsmouth City Council","PCC","Adult Social Care","Social Care Activities","Adult Services","Third Party Payments","Other establishments","20/10/2020","6,390,151","213.15","VENDOR","ADMIRAL CARE LTD","138,025"
"Portsmouth City Council","PCC","Adult Social Care","Social Care Activities","Adult Services","Third Party Payments","Other establishments","20/10/2020","6,390,151","213.15","VENDOR","ADMIRAL CARE LTD","138,025"
"Portsmouth City Council","PCC","Adult Social Care","Social Care Activities","Adult Services","Third Party Payments","Other establishments","20/10/2020","6,390,151","43.50","VENDOR","ADMIRAL CARE LTD","138,025"
"Portsmouth City Council","PCC","Adult Social Care","Social Care Activities","Adult Services","Third Party Payments","Other establishments","20/10/2020","6,390,151","156.60","VENDOR","ADMIRAL CARE LTD","138,025"
"Portsmouth City Council","PCC","Adult Social Care","Learning Disability Support  Adults (18 - 64)","Adult Services","Third Party Payments","Other establishments","12/10/2020","6,388,636","8,304.28","VENDOR","CARE MANAGEMENT GROUP LIMITED","101,894"
"Portsmouth City Council","PCC","Costs below Net Cost of Services","Trading","Housing, Neighbourhood and Building Services","Third Party Payments","Private contractors","14/10/2020","6,389,086","545.00","OTHER LOCAL AUTHORITY","EASTLEIGH BOROUGH COUNCIL","103,886"
"Portsmouth City Council","PCC","Housing Services","Homelessness","Housing, Neighbourhood and Building Services","Third Party Payments","Private contractors","30/10/2020","6,392,198","3,855.00","VENDOR","HAMILTON HOUSE ROOMS LIMITED","146,877"
"Portsmouth City Council","PCC","Other","Suspense and Capital Schemes","Housing, Neighbourhood and Building Services","Supplies and Services","Services","16/10/2020","6,389,730","8,021.00","VENDOR","WICOR BUILDING SERVICES LIMITED","144,144"
"Portsmouth City Council","PCC","Highways and Transport Services","Airports, Harbours and Toll Facilities","Portsmouth International Port","Supplies and Services","Services","01/10/2020","6,387,324","5,000.00","VENDOR","JONES LANG LASALLE LIMITED","120,687"
"Portsmouth City Council","PCC","Support Service / Transparency Costs Unallocated","AMS","Regeneration","Supplies and Services","Communications and computing","13/10/2020","6,388,822","6,000.00","VENDOR","BELL ROCK WORKPLACE MANAGEMENT LIMITED","146,165"
"Portsmouth City Council","PCC","Costs below Net Cost of Services","Trading","Regeneration","Premises-Related Expenditure","Repairs, alterations and maintenance of buildings","29/10/2020","6,392,090","2,155.60","COMPANY","SSE CONTRACTING LTD","101,806"
"Portsmouth City Council","PCC","Support Service / Transparency Costs Unallocated","Financial Services","Finance & Resources","Premises-Related Expenditure","Repairs, alterations and maintenance of buildings","29/10/2020","6,392,090","1,242.00","COMPANY","SSE CONTRACTING LTD","101,806"
"Portsmouth City Council","PCC","Support Service / Transparency Costs Unallocated","AMS","Housing, Neighbourhood and Building Services","Supplies and Services","Services","29/10/2020","6,392,107","1,367.00","VENDOR","WILCE SERVICES UK LTD","146,062"
"Portsmouth City Council","PCC","Other","Suspense and Capital Schemes","Housing, Neighbourhood and Building Services","Premises-Related Expenditure","Repairs, alterations and maintenance of buildings","27/10/2020","6,391,406","16,575.63","COMPANY","SSE CONTRACTING LTD","101,806"
"Portsmouth City Council","PCC","Other","Suspense and Capital Schemes","Housing, Neighbourhood and Building Services","Premises-Related Expenditure","Repairs, alterations and maintenance of buildings","27/10/2020","6,391,406","960.38","COMPANY","SSE CONTRACTING LTD","101,806"
"Portsmouth City Council","PCC","Highways and Transport Services","Airports, Harbours and Toll Facilities","Portsmouth International Port","Supplies and Services","Printing, stationery and general office expenses","30/10/2020","6,392,243","358.80","VENDOR","PORTICO SHIPPING LTD","114,936"
"Portsmouth City Council","PCC","Highways and Transport Services","Airports, Harbours and Toll Facilities","Portsmouth International Port","Supplies and Services","Expenses","30/10/2020","6,392,243","708.04","VENDOR","PORTICO SHIPPING LTD","114,936"
"Portsmouth City Council","PCC","Highways and Transport Services","Airports, Harbours and Toll Facilities","Portsmouth International Port","Supplies and Services","Expenses","30/10/2020","6,392,243","555.23","VENDOR","PORTICO SHIPPING LTD","114,936"
"Portsmouth City Council","PCC","Adult Social Care","Physical Support Older People (85+)","Adult Services","Third Party Payments","Other establishments","12/10/2020","6,388,602","2,896.64","VENDOR","AGINCARE UK","134,367"
"Portsmouth City Council","PCC","Environmental and Regulatory Services","Regulatory Services","Culture, Leisure & Regulatory Services","Third Party Payments","Private contractors","15/10/2020","327,324","3,052.32","SOLETRADER","Classified as 'personal data' (under the Data Protection Act 2018)","129,646"
"Portsmouth City Council","PCC","Highways and Transport Services","Parking Services","Regeneration","Supplies and Services","Communications and computing","12/10/2020","6,388,695","1,364.26","VENDOR","EASY NETWORKS LTD","100,142"
"Portsmouth City Council","PCC","Adult Social Care","Social Care Activities","Adult Services","Third Party Payments","Other establishments","12/10/2020","6,388,605","1,426.00","VENDOR","ALEXANDRA ROSE RESIDENTIAL CARE HOME","101,952"
"Portsmouth City Council","PCC","Adult Social Care","Support with Memory and Cognition Older People (85+)","Adult Services","Third Party Payments","Other establishments","12/10/2020","6,388,605","4,118.66","VENDOR","ALEXANDRA ROSE RESIDENTIAL CARE HOME","101,952"
"Portsmouth City Council","PCC","Adult Social Care","Support with Memory and Cognition Older People (85+)","Adult Services","Third Party Payments","Other establishments","12/10/2020","6,388,605","1,271.31","VENDOR","ALEXANDRA ROSE RESIDENTIAL CARE HOME","101,952"
"Portsmouth City Council","PCC","Adult Social Care","Support with Memory and Cognition Older People (85+)","Adult Services","Third Party Payments","Other establishments","12/10/2020","6,388,605","3,920.00","VENDOR","ALEXANDRA ROSE RESIDENTIAL CARE HOME","101,952"
"Portsmouth City Council","PCC","Adult Social Care","Social Care Activities","Adult Services","Third Party Payments","Other establishments","26/10/2020","6,391,169","10,960.70","VENDOR","ALEXANDRA ROSE RESIDENTIAL CARE HOME","101,952"
"Portsmouth City Council","PCC","Adult Social Care","Support with Memory and Cognition Older People (85+)","Adult Services","Third Party Payments","Other establishments","12/10/2020","6,388,610","2,861.30","VENDOR","ALTON HOUSE PARTNERSHIP","119,112"
"Portsmouth City Council","PCC","Adult Social Care","Support with Memory and Cognition Older People (85+)","Adult Services","Third Party Payments","Other establishments","12/10/2020","6,388,610","2,861.30","VENDOR","ALTON HOUSE PARTNERSHIP","119,112"
"Portsmouth City Council","PCC","Adult Social Care","Support with Memory and Cognition Older People (85+)","Adult Services","Third Party Payments","Other establishments","12/10/2020","6,388,610","2,861.30","VENDOR","ALTON HOUSE PARTNERSHIP","119,112"
"Portsmouth City Council","PCC","Adult Social Care","Social Care Activities","Adult Services","Third Party Payments","Other establishments","12/10/2020","6,388,611","3,100.00","VENDOR","ALTON MANOR CARE HOME","130,289"
"Portsmouth City Council","PCC","Housing Services","Homelessness","Housing, Neighbourhood and Building Services","Third Party Payments","Private contractors","02/10/2020","6,387,519","420.00","VENDOR","M J H REMOVALS LTD","105,441"
"Portsmouth City Council","PCC","Housing Services","Homelessness","Housing, Neighbourhood and Building Services","Third Party Payments","Private contractors","02/10/2020","6,387,519","340.00","VENDOR","M J H REMOVALS LTD","105,441"
"Portsmouth City Council","PCC","Highways and Transport Services","Airports, Harbours and Toll Facilities","Portsmouth International Port","Supplies and Services","Services","01/10/2020","6,387,323","89,613.00","VENDOR","INTEGRITY TESTING LTD","146,015"
"Portsmouth City Council","PCC","Children's and Education Services","Other Education and Community Budget","Children's Services and Education","Transport-Related Expenditure","Car allowances","30/10/2020","6,392,213","1,350.00","VENDOR","AJS TRAVEL","146,803"
"Portsmouth City Council","PCC","Adult Social Care","Social Care Activities","Adult Services","Third Party Payments","Other establishments","20/10/2020","6,390,151","609.00","VENDOR","ADMIRAL CARE LTD","138,025"
"Portsmouth City Council","PCC","Adult Social Care","Social Care Activities","Adult Services","Third Party Payments","Other establishments","20/10/2020","6,390,151","609.00","VENDOR","ADMIRAL CARE LTD","138,025"
"Portsmouth City Council","PCC","Adult Social Care","Social Care Activities","Adult Services","Third Party Payments","Other establishments","20/10/2020","6,390,151","104.40","VENDOR","ADMIRAL CARE LTD","138,025"
"Portsmouth City Council","PCC","Adult Social Care","Social Care Activities","Adult Services","Third Party Payments","Other establishments","20/10/2020","6,390,151","30.45","VENDOR","ADMIRAL CARE LTD","138,025"
"Portsmouth City Council","PCC","Adult Social Care","Social Care Activities","Adult Services","Third Party Payments","Other establishments","20/10/2020","6,390,151","30.45","VENDOR","ADMIRAL CARE LTD","138,025"
"Portsmouth City Council","PCC","Adult Social Care","Social Care Activities","Adult Services","Third Party Payments","Other establishments","20/10/2020","6,390,151","104.40","VENDOR","ADMIRAL CARE LTD","138,025"
"Portsmouth City Council","PCC","Adult Social Care","Social Care Activities","Adult Services","Third Party Payments","Other establishments","20/10/2020","6,390,151","152.25","VENDOR","ADMIRAL CARE LTD","138,025"
"Portsmouth City Council","PCC","Adult Social Care","Social Care Activities","Adult Services","Third Party Payments","Other establishments","20/10/2020","6,390,151","352.35","VENDOR","ADMIRAL CARE LTD","138,025"
"Portsmouth City Council","PCC","Adult Social Care","Physical Support Older People (85+)","Adult Services","Third Party Payments","Other establishments","20/10/2020","6,390,151","255.12","VENDOR","ADMIRAL CARE LTD","138,025"
"Portsmouth City Council","PCC","Adult Social Care","Mental Health Support Older People (65 - 74)","Adult Services","Third Party Payments","Other establishments","20/10/2020","6,390,151","556.80","VENDOR","ADMIRAL CARE LTD","138,025"
"Portsmouth City Council","PCC","Adult Social Care","Mental Health Support Older People (65 - 74)","Adult Services","Third Party Payments","Other establishments","20/10/2020","6,390,151","34.80","VENDOR","ADMIRAL CARE LTD","138,025"
"Portsmouth City Council","PCC","Adult Social Care","Mental Health Support Older People (65 - 74)","Adult Services","Third Party Payments","Other establishments","20/10/2020","6,390,151","261.00","VENDOR","ADMIRAL CARE LTD","138,025"
"Portsmouth City Council","PCC","Adult Social Care","Mental Health Support Older People (65 - 74)","Adult Services","Third Party Payments","Other establishments","20/10/2020","6,390,151","69.60","VENDOR","ADMIRAL CARE LTD","138,025"
"Portsmouth City Council","PCC","Adult Social Care","Mental Health Support Older People (65 - 74)","Adult Services","Third Party Payments","Other establishments","20/10/2020","6,390,151","69.60","VENDOR","ADMIRAL CARE LTD","138,025"
"Portsmouth City Council","PCC","Adult Social Care","Mental Health Support Older People (65 - 74)","Adult Services","Third Party Payments","Other establishments","20/10/2020","6,390,151","139.20","VENDOR","ADMIRAL CARE LTD","138,025"
"Portsmouth City Council","PCC","Adult Social Care","Mental Health Support Older People (65 - 74)","Adult Services","Third Party Payments","Other establishments","20/10/2020","6,390,151","139.20","VENDOR","ADMIRAL CARE LTD","138,025"
"Portsmouth City Council","PCC","Adult Social Care","Mental Health Support Older People (65 - 74)","Adult Services","Third Party Payments","Other establishments","20/10/2020","6,390,151","217.50","VENDOR","ADMIRAL CARE LTD","138,025"
"Portsmouth City Council","PCC","Adult Social Care","Mental Health Support Older People (65 - 74)","Adult Services","Third Party Payments","Other establishments","20/10/2020","6,390,151","226.20","VENDOR","ADMIRAL CARE LTD","138,025"
"Portsmouth City Council","PCC","Adult Social Care","Mental Health Support Older People (65 - 74)","Adult Services","Third Party Payments","Other establishments","20/10/2020","6,390,151","121.80","VENDOR","ADMIRAL CARE LTD","138,025"
"Portsmouth City Council","PCC","Adult Social Care","Mental Health Support Older People (65 - 74)","Adult Services","Third Party Payments","Other establishments","20/10/2020","6,390,151","78.30","VENDOR","ADMIRAL CARE LTD","138,025"
"Portsmouth City Council","PCC","Adult Social Care","Physical Support Older People (85+)","Adult Services","Third Party Payments","Other establishments","20/10/2020","6,390,151","1,774.80","VENDOR","ADMIRAL CARE LTD","138,025"
"Portsmouth City Council","PCC","Adult Social Care","Physical Support Older People (85+)","Adult Services","Third Party Payments","Other establishments","20/10/2020","6,390,151","156.60","VENDOR","ADMIRAL CARE LTD","138,025"
"Portsmouth City Council","PCC","Adult Social Care","Physical Support Older People (85+)","Adult Services","Third Party Payments","Other establishments","20/10/2020","6,390,151","130.50","VENDOR","ADMIRAL CARE LTD","138,025"
"Portsmouth City Council","PCC","Adult Social Care","Physical Support Older People (85+)","Adult Services","Third Party Payments","Other establishments","20/10/2020","6,390,151","130.50","VENDOR","ADMIRAL CARE LTD","138,025"
"Portsmouth City Council","PCC","Adult Social Care","Physical Support Older People (85+)","Adult Services","Third Party Payments","Other establishments","20/10/2020","6,390,151","278.40","VENDOR","ADMIRAL CARE LTD","138,025"
"Portsmouth City Council","PCC","Adult Social Care","Physical Support Older People (85+)","Adult Services","Third Party Payments","Other establishments","20/10/2020","6,390,151","78.30","VENDOR","ADMIRAL CARE LTD","138,025"
"Portsmouth City Council","PCC","Adult Social Care","Physical Support Older People (85+)","Adult Services","Third Party Payments","Other establishments","20/10/2020","6,390,151","356.70","VENDOR","ADMIRAL CARE LTD","138,025"
"Portsmouth City Council","PCC","Adult Social Care","Physical Support Older People (85+)","Adult Services","Third Party Payments","Other establishments","20/10/2020","6,390,151","574.20","VENDOR","ADMIRAL CARE LTD","138,025"
"Portsmouth City Council","PCC","Adult Social Care","Physical Support Older People (85+)","Adult Services","Third Party Payments","Other establishments","20/10/2020","6,390,151","408.90","VENDOR","ADMIRAL CARE LTD","138,025"
"Portsmouth City Council","PCC","Adult Social Care","Physical Support Older People (85+)","Adult Services","Third Party Payments","Other establishments","20/10/2020","6,390,151","974.40","VENDOR","ADMIRAL CARE LTD","138,025"
"Portsmouth City Council","PCC","Adult Social Care","Physical Support Older People (85+)","Adult Services","Third Party Payments","Other establishments","20/10/2020","6,390,151","974.40","VENDOR","ADMIRAL CARE LTD","138,025"
"Portsmouth City Council","PCC","Adult Social Care","Physical Support Older People (85+)","Adult Services","Third Party Payments","Other establishments","20/10/2020","6,390,151","822.15","VENDOR","ADMIRAL CARE LTD","138,025"
"Portsmouth City Council","PCC","Adult Social Care","Physical Support Older People (85+)","Adult Services","Third Party Payments","Other establishments","20/10/2020","6,390,151","822.15","VENDOR","ADMIRAL CARE LTD","138,025"
"Portsmouth City Council","PCC","Adult Social Care","Physical Support Older People (65-74)","Adult Services","Supplies and Services","Equipment, furniture and materials","28/10/2020","6,391,441","1,041.69","VENDOR","ADMIRAL CLEANING SUPPLIES LTD","146,161"
"Portsmouth City Council","PCC","Adult Social Care","Learning Disability Support  Adults (18 - 64)","Adult Services","Third Party Payments","Other establishments","12/10/2020","6,388,601","7,440.31","VENDOR","AFFINITY TRUST LTD","135,643"
"Portsmouth City Council","PCC","Adult Social Care","Learning Disability Support  Adults (18 - 64)","Adult Services","Third Party Payments","Other establishments","12/10/2020","6,388,601","9,376.26","VENDOR","AFFINITY TRUST LTD","135,643"
"Portsmouth City Council","PCC","Adult Social Care","Learning Disability Support  Adults (18 - 64)","Adult Services","Third Party Payments","Other establishments","12/10/2020","6,388,601","7,359.09","VENDOR","AFFINITY TRUST LTD","135,643"
"Portsmouth City Council","PCC","Adult Social Care","Learning Disability Support  Adults (18 - 64)","Adult Services","Third Party Payments","Other establishments","12/10/2020","6,388,601","6,873.94","VENDOR","AFFINITY TRUST LTD","135,643"
"Portsmouth City Council","PCC","Adult Social Care","Learning Disability Support  Adults (18 - 64)","Adult Services","Third Party Payments","Other establishments","12/10/2020","6,388,601","8,817.02","VENDOR","AFFINITY TRUST LTD","135,643"
"Portsmouth City Council","PCC","Adult Social Care","Learning Disability Support  Adults (18 - 64)","Adult Services","Third Party Payments","Other establishments","12/10/2020","6,388,601","9,376.26","VENDOR","AFFINITY TRUST LTD","135,643"
"Portsmouth City Council","PCC","Adult Social Care","Learning Disability Support  Adults (18 - 64)","Adult Services","Third Party Payments","Other establishments","12/10/2020","6,388,601","7,189.83","VENDOR","AFFINITY TRUST LTD","135,643"
"Portsmouth City Council","PCC","Adult Social Care","Social Care Activities","Adult Services","Third Party Payments","Other establishments","29/10/2020","6,391,993","1,370.09","VENDOR","AFFINITY TRUST LTD","135,643"
"Portsmouth City Council","PCC","Adult Social Care","Learning Disability Support  Adults (18 - 64)","Adult Services","Third Party Payments","Other establishments","12/10/2020","6,388,604","6,956.09","VENDOR","ALBANY FARM CARE (HAMPSHIRE) LTD","140,215"
"Portsmouth City Council","PCC","Adult Social Care","Mental Health Support Adults (18 - 64)","Adult Services","Third Party Payments","Other establishments","12/10/2020","6,388,604","2,739.16","VENDOR","ALBANY FARM CARE (HAMPSHIRE) LTD","140,215"
"Portsmouth City Council","PCC","Adult Social Care","Learning Disability Support  Adults (18 - 64)","Adult Services","Third Party Payments","Other establishments","12/10/2020","6,388,606","4,404.48","VENDOR","ALLIED CARE LTD","123,734"
"Portsmouth City Council","PCC","Adult Social Care","Learning Disability Support  Adults (18 - 64)","Adult Services","Third Party Payments","Other establishments","12/10/2020","6,388,608","4,498.72","VENDOR","ALLIED CARE LTD","123,734"
"Portsmouth City Council","PCC","Adult Social Care","Learning Disability Support  Adults (18 - 64)","Adult Services","Third Party Payments","Other establishments","12/10/2020","6,388,607","832.68","VENDOR","ALLIED CARE LTD","123,734"
"Portsmouth City Council","PCC","Adult Social Care","Learning Disability Support  Adults (18 - 64)","Adult Services","Third Party Payments","Other establishments","23/10/2020","6,390,985","1,309.84","VENDOR","ALLIED CARE LTD","123,734"
"Portsmouth City Council","PCC","Adult Social Care","Support with Memory and Cognition Older People (85+)","Adult Services","Third Party Payments","Other establishments","12/10/2020","6,388,613","2,385.14","VENDOR","ANEXAS CARE LTD","146,269"
"Portsmouth City Council","PCC","Adult Social Care","Information and Early Intervention","Adult Services","Third Party Payments","Other establishments","01/10/2020","6,387,270","21,175.00","VENDOR","APETITO LTD","100,127"
"Portsmouth City Council","PCC","Adult Social Care","Information and Early Intervention","Adult Services","Third Party Payments","Other establishments","01/10/2020","6,387,270","1,248.00","VENDOR","APETITO LTD","100,127"
"Portsmouth City Council","PCC","Adult Social Care","Information and Early Intervention","Adult Services","Income","Customer and client receipts","01/10/2020","6,387,270","-21,175.00","VENDOR","APETITO LTD","100,127"
"Portsmouth City Council","PCC","Adult Social Care","Information and Early Intervention","Adult Services","Income","Customer and client receipts","01/10/2020","6,387,270","-1,248.00","VENDOR","APETITO LTD","100,127"
"Portsmouth City Council","PCC","Adult Social Care","Social Care Activities","Adult Services","Third Party Payments","Other establishments","23/10/2020","6,390,989","8.70","VENDOR","APEX PROPERTY VENTURES LTD","108,437"
"Portsmouth City Council","PCC","Adult Social Care","Social Care Activities","Adult Services","Third Party Payments","Other establishments","23/10/2020","6,390,989","626.40","VENDOR","APEX PROPERTY VENTURES LTD","108,437"
"Portsmouth City Council","PCC","Adult Social Care","Social Care Activities","Adult Services","Third Party Payments","Other establishments","23/10/2020","6,390,989","382.80","VENDOR","APEX PROPERTY VENTURES LTD","108,437"
"Portsmouth City Council","PCC","Adult Social Care","Social Care Activities","Adult Services","Third Party Payments","Other establishments","23/10/2020","6,390,989","382.80","VENDOR","APEX PROPERTY VENTURES LTD","108,437"
"Portsmouth City Council","PCC","Adult Social Care","Social Care Activities","Adult Services","Third Party Payments","Other establishments","23/10/2020","6,390,989","243.60","VENDOR","APEX PROPERTY VENTURES LTD","108,437"
"Portsmouth City Council","PCC","Adult Social Care","Social Care Activities","Adult Services","Third Party Payments","Other establishments","23/10/2020","6,390,989","208.80","VENDOR","APEX PROPERTY VENTURES LTD","108,437"
"Portsmouth City Council","PCC","Adult Social Care","Social Care Activities","Adult Services","Third Party Payments","Other establishments","23/10/2020","6,390,989","539.40","VENDOR","APEX PROPERTY VENTURES LTD","108,437"
"Portsmouth City Council","PCC","Adult Social Care","Social Care Activities","Adult Services","Third Party Payments","Other establishments","23/10/2020","6,390,989","26.10","VENDOR","APEX PROPERTY VENTURES LTD","108,437"
"Portsmouth City Council","PCC","Adult Social Care","Social Care Activities","Adult Services","Third Party Payments","Other establishments","23/10/2020","6,390,989","87.00","VENDOR","APEX PROPERTY VENTURES LTD","108,437"
"Portsmouth City Council","PCC","Adult Social Care","Social Care Activities","Adult Services","Third Party Payments","Other establishments","23/10/2020","6,390,989","34.80","VENDOR","APEX PROPERTY VENTURES LTD","108,437"
"Portsmouth City Council","PCC","Adult Social Care","Social Care Activities","Adult Services","Third Party Payments","Other establishments","23/10/2020","6,390,989","60.90","VENDOR","APEX PROPERTY VENTURES LTD","108,437"
"Portsmouth City Council","PCC","Adult Social Care","Social Care Activities","Adult Services","Third Party Payments","Other establishments","23/10/2020","6,390,989","361.05","VENDOR","APEX PROPERTY VENTURES LTD","108,437"
"Portsmouth City Council","PCC","Adult Social Care","Social Care Activities","Adult Services","Third Party Payments","Other establishments","23/10/2020","6,390,989","34.80","VENDOR","APEX PROPERTY VENTURES LTD","108,437"
"Portsmouth City Council","PCC","Adult Social Care","Social Care Activities","Adult Services","Third Party Payments","Other establishments","23/10/2020","6,390,989","17.40","VENDOR","APEX PROPERTY VENTURES LTD","108,437"
"Portsmouth City Council","PCC","Adult Social Care","Social Care Activities","Adult Services","Third Party Payments","Other establishments","23/10/2020","6,390,989","17.40","VENDOR","APEX PROPERTY VENTURES LTD","108,437"
"Portsmouth City Council","PCC","Adult Social Care","Social Care Activities","Adult Services","Third Party Payments","Other establishments","23/10/2020","6,390,989","313.20","VENDOR","APEX PROPERTY VENTURES LTD","108,437"
"Portsmouth City Council","PCC","Adult Social Care","Social Care Activities","Adult Services","Third Party Payments","Other establishments","23/10/2020","6,390,989","452.40","VENDOR","APEX PROPERTY VENTURES LTD","108,437"
"Portsmouth City Council","PCC","Adult Social Care","Social Care Activities","Adult Services","Third Party Payments","Other establishments","23/10/2020","6,390,989","522.00","VENDOR","APEX PROPERTY VENTURES LTD","108,437"
"Portsmouth City Council","PCC","Adult Social Care","Social Care Activities","Adult Services","Third Party Payments","Other establishments","23/10/2020","6,390,989","548.10","VENDOR","APEX PROPERTY VENTURES LTD","108,437"
"Portsmouth City Council","PCC","Adult Social Care","Social Care Activities","Adult Services","Third Party Payments","Other establishments","23/10/2020","6,390,989","1,087.50","VENDOR","APEX PROPERTY VENTURES LTD","108,437"
"Portsmouth City Council","PCC","Adult Social Care","Social Care Activities","Adult Services","Third Party Payments","Other establishments","23/10/2020","6,390,989","1,087.50","VENDOR","APEX PROPERTY VENTURES LTD","108,437"
"Portsmouth City Council","PCC","Adult Social Care","Social Care Activities","Adult Services","Third Party Payments","Other establishments","23/10/2020","6,390,989","308.85","VENDOR","APEX PROPERTY VENTURES LTD","108,437"
"Portsmouth City Council","PCC","Adult Social Care","Social Care Activities","Adult Services","Third Party Payments","Other establishments","23/10/2020","6,390,989","487.20","VENDOR","APEX PROPERTY VENTURES LTD","108,437"
"Portsmouth City Council","PCC","Adult Social Care","Social Care Activities","Adult Services","Third Party Payments","Other establishments","23/10/2020","6,390,989","356.70","VENDOR","APEX PROPERTY VENTURES LTD","108,437"
"Portsmouth City Council","PCC","Adult Social Care","Social Care Activities","Adult Services","Third Party Payments","Other establishments","23/10/2020","6,390,989","600.30","VENDOR","APEX PROPERTY VENTURES LTD","108,437"
"Portsmouth City Council","PCC","Adult Social Care","Social Care Activities","Adult Services","Third Party Payments","Other establishments","23/10/2020","6,390,989","247.95","VENDOR","APEX PROPERTY VENTURES LTD","108,437"
"Portsmouth City Council","PCC","Adult Social Care","Social Care Activities","Adult Services","Third Party Payments","Other establishments","23/10/2020","6,390,989","60.90","VENDOR","APEX PROPERTY VENTURES LTD","108,437"
"Portsmouth City Council","PCC","Adult Social Care","Social Care Activities","Adult Services","Third Party Payments","Other establishments","23/10/2020","6,390,989","21.75","VENDOR","APEX PROPERTY VENTURES LTD","108,437"
"Portsmouth City Council","PCC","Adult Social Care","Social Care Activities","Adult Services","Third Party Payments","Other establishments","23/10/2020","6,390,989","39.15","VENDOR","APEX PROPERTY VENTURES LTD","108,437"
"Portsmouth City Council","PCC","Adult Social Care","Social Care Activities","Adult Services","Third Party Payments","Other establishments","23/10/2020","6,390,989","174.00","VENDOR","APEX PROPERTY VENTURES LTD","108,437"
"Portsmouth City Council","PCC","Adult Social Care","Social Care Activities","Adult Services","Third Party Payments","Other establishments","23/10/2020","6,390,989","113.10","VENDOR","APEX PROPERTY VENTURES LTD","108,437"
"Portsmouth City Council","PCC","Adult Social Care","Social Care Activities","Adult Services","Third Party Payments","Other establishments","23/10/2020","6,390,989","604.65","VENDOR","APEX PROPERTY VENTURES LTD","108,437"
"Portsmouth City Council","PCC","Adult Social Care","Social Care Activities","Adult Services","Third Party Payments","Other establishments","23/10/2020","6,390,989","130.50","VENDOR","APEX PROPERTY VENTURES LTD","108,437"
"Portsmouth City Council","PCC","Adult Social Care","Social Care Activities","Adult Services","Third Party Payments","Other establishments","23/10/2020","6,390,989","765.60","VENDOR","APEX PROPERTY VENTURES LTD","108,437"
"Portsmouth City Council","PCC","Adult Social Care","Social Care Activities","Adult Services","Third Party Payments","Other establishments","23/10/2020","6,390,989","974.40","VENDOR","APEX PROPERTY VENTURES LTD","108,437"
"Portsmouth City Council","PCC","Adult Social Care","Social Care Activities","Adult Services","Third Party Payments","Other establishments","23/10/2020","6,390,989","30.45","VENDOR","APEX PROPERTY VENTURES LTD","108,437"
"Portsmouth City Council","PCC","Adult Social Care","Social Care Activities","Adult Services","Third Party Payments","Other establishments","23/10/2020","6,390,989","200.10","VENDOR","APEX PROPERTY VENTURES LTD","108,437"
"Portsmouth City Council","PCC","Adult Social Care","Social Care Activities","Adult Services","Third Party Payments","Other establishments","23/10/2020","6,390,989","121.80","VENDOR","APEX PROPERTY VENTURES LTD","108,437"
"Portsmouth City Council","PCC","Adult Social Care","Social Care Activities","Adult Services","Third Party Payments","Other establishments","23/10/2020","6,390,989","95.70","VENDOR","APEX PROPERTY VENTURES LTD","108,437"
"Portsmouth City Council","PCC","Adult Social Care","Social Care Activities","Adult Services","Third Party Payments","Other establishments","23/10/2020","6,390,989","208.80","VENDOR","APEX PROPERTY VENTURES LTD","108,437"
"Portsmouth City Council","PCC","Adult Social Care","Social Care Activities","Adult Services","Third Party Payments","Other establishments","23/10/2020","6,390,989","243.60","VENDOR","APEX PROPERTY VENTURES LTD","108,437"
"Portsmouth City Council","PCC","Adult Social Care","Social Care Activities","Adult Services","Third Party Payments","Other establishments","23/10/2020","6,390,989","1,461.60","VENDOR","APEX PROPERTY VENTURES LTD","108,437"
"Portsmouth City Council","PCC","Adult Social Care","Social Care Activities","Adult Services","Third Party Payments","Other establishments","23/10/2020","6,390,989","1,461.60","VENDOR","APEX PROPERTY VENTURES LTD","108,437"
"Portsmouth City Council","PCC","Adult Social Care","Social Care Activities","Adult Services","Third Party Payments","Other establishments","23/10/2020","6,390,989","65.25","VENDOR","APEX PROPERTY VENTURES LTD","108,437"
"Portsmouth City Council","PCC","Adult Social Care","Social Care Activities","Adult Services","Third Party Payments","Other establishments","23/10/2020","6,390,989","274.05","VENDOR","APEX PROPERTY VENTURES LTD","108,437"
"Portsmouth City Council","PCC","Adult Social Care","Social Care Activities","Adult Services","Third Party Payments","Other establishments","23/10/2020","6,390,989","835.20","VENDOR","APEX PROPERTY VENTURES LTD","108,437"
"Portsmouth City Council","PCC","Adult Social Care","Social Care Activities","Adult Services","Third Party Payments","Other establishments","23/10/2020","6,390,989","208.80","VENDOR","APEX PROPERTY VENTURES LTD","108,437"
"Portsmouth City Council","PCC","Adult Social Care","Social Care Activities","Adult Services","Third Party Payments","Other establishments","23/10/2020","6,390,989","674.25","VENDOR","APEX PROPERTY VENTURES LTD","108,437"
"Portsmouth City Council","PCC","Adult Social Care","Mental Health Support Older People (65 - 74)","Adult Services","Third Party Payments","Other establishments","23/10/2020","6,390,989","852.60","VENDOR","APEX PROPERTY VENTURES LTD","108,437"
"Portsmouth City Council","PCC","Highways and Transport Services","Airports, Harbours and Toll Facilities","Portsmouth International Port","Premises-Related Expenditure","Repairs, alterations and maintenance of buildings","30/10/2020","6,392,128","6,925.00","VENDOR","BARTER FOR THINGS LIMITED","147,196"
"Portsmouth City Council","PCC","Children's and Education Services","Special Schools","Children's Services and Education","Third Party Payments","Other establishments","15/10/2020","6,389,472","12,155.00","VENDOR","BRYN MELYN CARE LTD","137,131"
"Portsmouth City Council","PCC","Adult Social Care","Mental Health Support Older People (65 - 74)","Adult Services","Third Party Payments","Other establishments","23/10/2020","6,390,989","261.00","VENDOR","APEX PROPERTY VENTURES LTD","108,437"
"Portsmouth City Council","PCC","Adult Social Care","Mental Health Support Older People (65 - 74)","Adult Services","Third Party Payments","Other establishments","23/10/2020","6,390,989","26.10","VENDOR","APEX PROPERTY VENTURES LTD","108,437"
"Portsmouth City Council","PCC","Adult Social Care","Mental Health Support Older People (65 - 74)","Adult Services","Third Party Payments","Other establishments","23/10/2020","6,390,989","234.90","VENDOR","APEX PROPERTY VENTURES LTD","108,437"
"Portsmouth City Council","PCC","Adult Social Care","Social Care Activities","Adult Services","Third Party Payments","Other establishments","23/10/2020","6,390,989","104.40","VENDOR","APEX PROPERTY VENTURES LTD","108,437"
"Portsmouth City Council","PCC","Highways and Transport Services","Airports, Harbours and Toll Facilities","Portsmouth International Port","Third Party Payments","Private contractors","30/10/2020","6,392,123","1,285.50","VENDOR","BAILEYS BUS SERVICE","100,562"
"Portsmouth City Council","PCC","Cultural and Related Services","Library Service","Culture, Leisure & Regulatory Services","Supplies and Services","Miscellaneous expenses","12/10/2020","6,388,682","1,948.48","VENDOR","CUSTODIAN REIT PLC","139,735"
"Portsmouth City Council","PCC","Housing Services","Housing Benefits Administration","Finance & Resources","Supplies and Services","Communications and computing","16/10/2020","6,389,683","795.00","VENDOR","OVALTECH LTD","118,198"
"Portsmouth City Council","PCC","Other","Suspense and Capital Schemes","Capital - Traffic & Transportation","Capital Charges","Capital Expenditure (WIP)","26/10/2020","6,391,278","6,685.91","COMPANY","SIEMENS PLC","106,546"
"Portsmouth City Council","PCC","Children's and Education Services","Other Children and Family Services","Children's Services and Education","Third Party Payments","Private contractors","02/10/2020","6,387,533","3,761.00","VENDOR","PARAFFIN LIMITED","144,079"
"Portsmouth City Council","PCC","Children's and Education Services","Other Children and Family Services","Children's Services and Education","Supplies and Services","Services","16/10/2020","6,389,647","624.00","VENDOR","DSP PSYCHOLOGY LTD","139,244"
"Portsmouth City Council","PCC","Other","Suspense and Capital Schemes","Portsmouth International Port","Supplies and Services","Miscellaneous expenses","15/10/2020","6,389,464","2,426.89","COMPANY","AVERY WEIGH-TRONIX","107,623"
"Portsmouth City Council","PCC","Solent LEP","Business support","OTHER","Supplies and Services","Services","16/10/2020","6,389,644","1,725.00","VENDOR","DEEP SOUTH MEDIA LTD","143,218"
"Portsmouth City Council","PCC","Housing Revenue Account","Rents, Rates, Taxes and Other Charges","Housing, Neighbourhood and Building Services","Supplies and Services","Miscellaneous expenses","07/10/2020","6,388,057","848.84","VENDOR","LIDL UK GMBH","133,340"
"Portsmouth City Council","PCC","Support Service / Transparency Costs Unallocated","Personnel","Corporate Services","Employees","Direct employee expenses","02/10/2020","6,387,415","91,247.03","VENDOR","COMENSURA LTD","140,265"
"Portsmouth City Council","PCC","Support Service / Transparency Costs Unallocated","Personnel","Corporate Services","Employees","Direct employee expenses","09/10/2020","6,388,456","112,963.61","VENDOR","COMENSURA LTD","140,265"
"Portsmouth City Council","PCC","Support Service / Transparency Costs Unallocated","Personnel","Corporate Services","Employees","Direct employee expenses","16/10/2020","6,389,601","108,125.67","VENDOR","COMENSURA LTD","140,265"
"Portsmouth City Council","PCC","Support Service / Transparency Costs Unallocated","Personnel","Corporate Services","Employees","Direct employee expenses","23/10/2020","6,391,017","114,238.65","VENDOR","COMENSURA LTD","140,265"
"Portsmouth City Council","PCC","Support Service / Transparency Costs Unallocated","Personnel","Corporate Services","Employees","Direct employee expenses","30/10/2020","6,392,143","100,603.14","VENDOR","COMENSURA LTD","140,265"
"Portsmouth City Council","PCC","Cultural and Related Services","Culture and Heritage","Culture, Leisure & Regulatory Services","Third Party Payments","Private contractors","20/10/2020","6,390,158","1,560.00","VENDOR","BARNSTORM GLOBAL LTD","147,129"
"Portsmouth City Council","PCC","Highways and Transport Services","Airports, Harbours and Toll Facilities","Portsmouth International Port","Premises-Related Expenditure","Repairs, alterations and maintenance of buildings","15/10/2020","6,389,530","1,575.18","COMPANY","KELLER LIMITED","124,900"
"Portsmouth City Council","PCC","Support Service / Transparency Costs Unallocated","Information Services","Corporate Services","Supplies and Services","Communications and computing","16/10/2020","6,389,598","432.86","VENDOR","CIVICA UK LTD","104,001"
"Portsmouth City Council","PCC","Other","Suspense and Capital Schemes","Capital - Leader - Port","Capital Charges","Capital Expenditure (WIP)","01/10/2020","6,387,334","1,150.00","VENDOR","LYMINGTON TECHNICAL SERVICES LTD","129,180"
"Portsmouth City Council","PCC","Children's and Education Services","Family Support Services","Children's Services and Education","Third Party Payments","Private contractors","02/10/2020","6,387,540","1,241.84","VENDOR","RESTORE - RECORD STORAGE MANAGEMENT LIMITED","142,168"
"Portsmouth City Council","PCC","Highways and Transport Services","Airports, Harbours and Toll Facilities","Portsmouth International Port","Supplies and Services","Services","22/10/2020","6,390,884","17,889.94","VENDOR","HASKONINGDHV UK LIMITED","109,400"
"Portsmouth City Council","PCC","Costs below Net Cost of Services","Trading","Regeneration","Supplies and Services","Services","12/10/2020","6,388,621","5,143.03","VENDOR","GVA GRIMLEY LTD","113,804"
"Portsmouth City Council","PCC","Support Service / Transparency Costs Unallocated","Information Services","Corporate Services","Supplies and Services","Communications and computing","30/10/2020","6,392,110","1,782.00","VENDOR","AERIOUS LIMITED","134,295"
"Portsmouth City Council","PCC","Costs below Net Cost of Services","Trading","Regeneration","Supplies and Services","Services","06/10/2020","6,387,792","1,776.09","VENDOR","THE OYSTER PARTNERSHIP","120,530"
"Portsmouth City Council","PCC","Costs below Net Cost of Services","Trading","Regeneration","Supplies and Services","Services","06/10/2020","6,387,792","1,934.50","VENDOR","THE OYSTER PARTNERSHIP","120,530"
"Portsmouth City Council","PCC","Costs below Net Cost of Services","Trading","Regeneration","Supplies and Services","Services","13/10/2020","6,388,917","2,305.34","VENDOR","THE OYSTER PARTNERSHIP","120,530"
"Portsmouth City Council","PCC","Costs below Net Cost of Services","Trading","Regeneration","Supplies and Services","Services","28/10/2020","6,391,927","1,946.91","VENDOR","THE OYSTER PARTNERSHIP","120,530"
"Portsmouth City Council","PCC","Costs below Net Cost of Services","Trading","Regeneration","Supplies and Services","Services","28/10/2020","6,391,927","2,220.66","VENDOR","THE OYSTER PARTNERSHIP","120,530"
"Portsmouth City Council","PCC","Highways and Transport Services","Airports, Harbours and Toll Facilities","Portsmouth International Port","Premises-Related Expenditure","Repairs, alterations and maintenance of buildings","30/10/2020","6,392,127","1,930.00","VENDOR","BARNES GROUP (UK) LTD ASSOCIATED SPRING SPEC","146,940"
"Portsmouth City Council","PCC","Costs below Net Cost of Services","Trading","Regeneration","Supplies and Services","Services","30/10/2020","6,392,141","7,656.48","VENDOR","CLYDE AND CO","134,667"
"Portsmouth City Council","PCC","Support Service / Transparency Costs Unallocated","AMS","Housing, Neighbourhood and Building Services","Supplies and Services","Services","07/10/2020","6,387,849","4,482.00","VENDOR","BAKER STUART LIMITED","146,369"
"Portsmouth City Council","PCC","Support Service / Transparency Costs Unallocated","Financial Services","Finance & Resources","Supplies and Services","Printing, stationery and general office expenses","02/10/2020","6,387,542","22.07","VENDOR","ROYAL MAIL","100,182"
"Portsmouth City Council","PCC","Cultural and Related Services","Tourism","Culture, Leisure & Regulatory Services","Supplies and Services","Printing, stationery and general office expenses","02/10/2020","6,387,542","101.29","VENDOR","ROYAL MAIL","100,182"
"Portsmouth City Council","PCC","Children's and Education Services","Children Looked After","Children's Services and Education","Third Party Payments","Private contractors","23/10/2020","6,391,096","1,512.00","VENDOR","PERSONAL SECURITY SERVICE LTD","142,603"
"Portsmouth City Council","PCC","Children's and Education Services","Children Looked After","Children's Services and Education","Third Party Payments","Private contractors","23/10/2020","6,391,096","1,373.73","VENDOR","PERSONAL SECURITY SERVICE LTD","142,603"
"Portsmouth City Council","PCC","Children's and Education Services","Safeguarding Children and Young Peoples Services","Children's Services and Education","Third Party Payments","Other establishments","01/10/2020","6,387,276","-2,193.82","VENDOR","BLUE SKY FOSTERING","119,870"
"Portsmouth City Council","PCC","Children's and Education Services","Safeguarding Children and Young Peoples Services","Children's Services and Education","Third Party Payments","Other establishments","01/10/2020","6,387,276","3,355.72","VENDOR","BLUE SKY FOSTERING","119,870"
"Portsmouth City Council","PCC","Children's and Education Services","Children Looked After","Children's Services and Education","Third Party Payments","Other establishments","01/10/2020","6,387,276","-0.25","VENDOR","BLUE SKY FOSTERING","119,870"
"Portsmouth City Council","PCC","Children's and Education Services","Children Looked After","Children's Services and Education","Third Party Payments","Other establishments","01/10/2020","6,387,276","3,312.85","VENDOR","BLUE SKY FOSTERING","119,870"
"Portsmouth City Council","PCC","Children's and Education Services","Children Looked After","Children's Services and Education","Third Party Payments","Other establishments","01/10/2020","6,387,276","0.05","VENDOR","BLUE SKY FOSTERING","119,870"
"Portsmouth City Council","PCC","Children's and Education Services","Children Looked After","Children's Services and Education","Third Party Payments","Other establishments","01/10/2020","6,387,276","3,312.85","VENDOR","BLUE SKY FOSTERING","119,870"
"Portsmouth City Council","PCC","Adult Social Care","Social Care Activities","Adult Services","Third Party Payments","Other establishments","12/10/2020","6,388,611","1,700.00","VENDOR","ALTON MANOR CARE HOME","130,289"
"Portsmouth City Council","PCC","Support Service / Transparency Costs Unallocated","Procurement","Finance & Resources","Third Party Payments","Private contractors","05/10/2020","6,387,684","10,982.25","VENDOR","TRL LTD","106,263"
"Portsmouth City Council","PCC","Support Service / Transparency Costs Unallocated","Procurement","Finance & Resources","Third Party Payments","Private contractors","28/10/2020","6,391,937","24,819.00","VENDOR","TRL LTD","106,263"
"Portsmouth City Council","PCC","Children's and Education Services","Safeguarding Children and Young Peoples Services","Children's Services and Education","Third Party Payments","Other establishments","30/10/2020","6,392,132","-2,266.94","VENDOR","BLUE SKY FOSTERING","119,870"
"Portsmouth City Council","PCC","Children's and Education Services","Safeguarding Children and Young Peoples Services","Children's Services and Education","Third Party Payments","Other establishments","30/10/2020","6,392,132","3,467.57","VENDOR","BLUE SKY FOSTERING","119,870"
"Portsmouth City Council","PCC","Children's and Education Services","Children Looked After","Children's Services and Education","Third Party Payments","Other establishments","30/10/2020","6,392,132","-0.27","VENDOR","BLUE SKY FOSTERING","119,870"
"Portsmouth City Council","PCC","Children's and Education Services","Children Looked After","Children's Services and Education","Third Party Payments","Other establishments","30/10/2020","6,392,132","3,423.29","VENDOR","BLUE SKY FOSTERING","119,870"
"Portsmouth City Council","PCC","Children's and Education Services","Children Looked After","Children's Services and Education","Third Party Payments","Other establishments","30/10/2020","6,392,132","0.04","VENDOR","BLUE SKY FOSTERING","119,870"
"Portsmouth City Council","PCC","Children's and Education Services","Children Looked After","Children's Services and Education","Third Party Payments","Other establishments","30/10/2020","6,392,132","3,423.29","VENDOR","BLUE SKY FOSTERING","119,870"
"Portsmouth City Council","PCC","Other","Suspense and Capital Schemes","Housing, Neighbourhood and Building Services","Third Party Payments","Private contractors","28/10/2020","6,391,658","450,000.00","OTHER LOCAL AUTHORITY","HAMPSHIRE COUNTY COUNCIL","100,030"
"Portsmouth City Council","PCC","Central Services","Elections","Corporate Services","Supplies and Services","Printing, stationery and general office expenses","01/10/2020","6,387,314","859.20","VENDOR","FINANCIAL DATA MANANGEMENT PLC","102,246"
"Portsmouth City Council","PCC","Children's and Education Services","Asylum seekers","Children's Services and Education","Third Party Payments","Other establishments","20/10/2020","6,390,256","248.15","VENDOR","SILVER BIRCH CARE LIMITED","146,315"
"Portsmouth City Council","PCC","Children's and Education Services","Asylum seekers","Children's Services and Education","Third Party Payments","Other establishments","20/10/2020","6,390,256","-42.87","VENDOR","SILVER BIRCH CARE LIMITED","146,315"
"Portsmouth City Council","PCC","Children's and Education Services","Asylum seekers","Children's Services and Education","Third Party Payments","Other establishments","20/10/2020","6,390,256","3,750.00","VENDOR","SILVER BIRCH CARE LIMITED","146,315"
"Portsmouth City Council","PCC","Children's and Education Services","Children Looked After","Children's Services and Education","Third Party Payments","Other establishments","28/10/2020","6,391,887","-42.86","VENDOR","SILVER BIRCH CARE LIMITED","146,315"
"Portsmouth City Council","PCC","Children's and Education Services","Children Looked After","Children's Services and Education","Third Party Payments","Other establishments","28/10/2020","6,391,887","3,783.85","VENDOR","SILVER BIRCH CARE LIMITED","146,315"
"Portsmouth City Council","PCC","Adult Social Care","Learning Disability Support  Adults (18 - 64)","Adult Services","Third Party Payments","Other establishments","23/10/2020","6,391,008","4,151.95","VENDOR","CARE MANAGEMENT GROUP LIMITED","101,894"
"Portsmouth City Council","PCC","Adult Social Care","Learning Disability Support  Adults (18 - 64)","Adult Services","Third Party Payments","Other establishments","23/10/2020","6,391,008","605.83","VENDOR","CARE MANAGEMENT GROUP LIMITED","101,894"
"Portsmouth City Council","PCC","Adult Social Care","Learning Disability Support  Adults (18 - 64)","Adult Services","Third Party Payments","Other establishments","23/10/2020","6,391,008","4,382.16","VENDOR","CARE MANAGEMENT GROUP LIMITED","101,894"
"Portsmouth City Council","PCC","Other","Suspense and Capital Schemes","Corporate Services","Supplies and Services","Communications and computing","08/10/2020","6,388,382","19,872.00","VENDOR","HUGH SYMONS EXCHANGE LTD T/A CLOVE TECHNOLOGY","146,363"
"Portsmouth City Council","PCC","Adult Social Care","Physical Support Adults (18 - 64)","Adult Services","Third Party Payments","Other establishments","12/10/2020","6,388,611","111.43","VENDOR","ALTON MANOR CARE HOME","130,289"
"Portsmouth City Council","PCC","Adult Social Care","Support with Memory and Cognition Older People (85+)","Adult Services","Third Party Payments","Other establishments","12/10/2020","6,388,611","2,338.64","VENDOR","ALTON MANOR CARE HOME","130,289"
"Portsmouth City Council","PCC","Housing Services","Homelessness","Housing, Neighbourhood and Building Services","Supplies and Services","Grants and subscriptions","02/10/2020","6,387,522","1,600.00","SOLETRADER","Classified as 'personal data' (under the Data Protection Act 2018)","147,267"
"Portsmouth City Council","PCC","Other","Suspense and Capital Schemes","Corporate Services","Supplies and Services","Communications and computing","20/10/2020","6,390,221","10.00","VENDOR","HUGH SYMONS EXCHANGE LTD T/A CLOVE TECHNOLOGY","146,363"
"Portsmouth City Council","PCC","Other","Suspense and Capital Schemes","Corporate Services","Supplies and Services","Communications and computing","20/10/2020","6,390,221","1,224.50","VENDOR","HUGH SYMONS EXCHANGE LTD T/A CLOVE TECHNOLOGY","146,363"
"Portsmouth City Council","PCC","Housing Services","Homelessness","Housing, Neighbourhood and Building Services","Supplies and Services","Grants and subscriptions","30/10/2020","6,392,192","1,000.00","VENDOR","FLATS IN SOUTHSEA LTD","147,353"
"Portsmouth City Council","PCC","Support Service / Transparency Costs Unallocated","Information Services","Corporate Services","Supplies and Services","Communications and computing","05/10/2020","6,387,659","5,647.95","COMPANY","POWERWORKS MAINTENANCE SERVICES LTD","141,178"
"Portsmouth City Council","PCC","Support Service / Transparency Costs Unallocated","Personnel","Corporate Services","Employees","Indirect employee expenses","02/10/2020","6,387,524","1,246.00","VENDOR","MG CARE EXECUTIVE LTD","145,566"
"Portsmouth City Council","PCC","Support Service / Transparency Costs Unallocated","Personnel","Corporate Services","Employees","Indirect employee expenses","02/10/2020","6,387,524","128.00","VENDOR","MG CARE EXECUTIVE LTD","145,566"
"Portsmouth City Council","PCC","Planning Services","Business support","Regeneration","Premises-Related Expenditure","Repairs, alterations and maintenance of buildings","08/10/2020","6,388,397","20.16","VENDOR","SIX DEGREES TECHNOLOGY GROUP LTD","137,034"
"Portsmouth City Council","PCC","Planning Services","Business support","Regeneration","Premises-Related Expenditure","Repairs, alterations and maintenance of buildings","08/10/2020","6,388,397","37.32","VENDOR","SIX DEGREES TECHNOLOGY GROUP LTD","137,034"
"Portsmouth City Council","PCC","Cultural and Related Services","Recreation and Sport","Culture, Leisure & Regulatory Services","Premises-Related Expenditure","Repairs, alterations and maintenance of buildings","08/10/2020","6,388,397","37.32","VENDOR","SIX DEGREES TECHNOLOGY GROUP LTD","137,034"
"Portsmouth City Council","PCC","Support Service / Transparency Costs Unallocated","LLM","Housing, Neighbourhood and Building Services","Premises-Related Expenditure","Repairs, alterations and maintenance of buildings","08/10/2020","6,388,397","57.48","VENDOR","SIX DEGREES TECHNOLOGY GROUP LTD","137,034"
"Portsmouth City Council","PCC","Support Service / Transparency Costs Unallocated","LLM","Housing, Neighbourhood and Building Services","Premises-Related Expenditure","Repairs, alterations and maintenance of buildings","08/10/2020","6,388,397","18.66","VENDOR","SIX DEGREES TECHNOLOGY GROUP LTD","137,034"
"Portsmouth City Council","PCC","Support Service / Transparency Costs Unallocated","LLM","Housing, Neighbourhood and Building Services","Premises-Related Expenditure","Repairs, alterations and maintenance of buildings","08/10/2020","6,388,397","18.66","VENDOR","SIX DEGREES TECHNOLOGY GROUP LTD","137,034"
"Portsmouth City Council","PCC","Support Service / Transparency Costs Unallocated","LLM","Housing, Neighbourhood and Building Services","Premises-Related Expenditure","Repairs, alterations and maintenance of buildings","08/10/2020","6,388,397","18.66","VENDOR","SIX DEGREES TECHNOLOGY GROUP LTD","137,034"
"Portsmouth City Council","PCC","Support Service / Transparency Costs Unallocated","LLM","Housing, Neighbourhood and Building Services","Premises-Related Expenditure","Repairs, alterations and maintenance of buildings","08/10/2020","6,388,397","40.32","VENDOR","SIX DEGREES TECHNOLOGY GROUP LTD","137,034"
"Portsmouth City Council","PCC","Support Service / Transparency Costs Unallocated","LLM","Housing, Neighbourhood and Building Services","Premises-Related Expenditure","Repairs, alterations and maintenance of buildings","08/10/2020","6,388,397","40.32","VENDOR","SIX DEGREES TECHNOLOGY GROUP LTD","137,034"
"Portsmouth City Council","PCC","Support Service / Transparency Costs Unallocated","LLM","Housing, Neighbourhood and Building Services","Premises-Related Expenditure","Repairs, alterations and maintenance of buildings","08/10/2020","6,388,397","20.16","VENDOR","SIX DEGREES TECHNOLOGY GROUP LTD","137,034"
"Portsmouth City Council","PCC","Support Service / Transparency Costs Unallocated","LLM","Housing, Neighbourhood and Building Services","Premises-Related Expenditure","Repairs, alterations and maintenance of buildings","08/10/2020","6,388,397","20.16","VENDOR","SIX DEGREES TECHNOLOGY GROUP LTD","137,034"
"Portsmouth City Council","PCC","Support Service / Transparency Costs Unallocated","LLM","Housing, Neighbourhood and Building Services","Premises-Related Expenditure","Repairs, alterations and maintenance of buildings","08/10/2020","6,388,397","20.16","VENDOR","SIX DEGREES TECHNOLOGY GROUP LTD","137,034"
"Portsmouth City Council","PCC","Support Service / Transparency Costs Unallocated","LLM","Housing, Neighbourhood and Building Services","Premises-Related Expenditure","Repairs, alterations and maintenance of buildings","08/10/2020","6,388,397","18.66","VENDOR","SIX DEGREES TECHNOLOGY GROUP LTD","137,034"
"Portsmouth City Council","PCC","Support Service / Transparency Costs Unallocated","LLM","Housing, Neighbourhood and Building Services","Premises-Related Expenditure","Repairs, alterations and maintenance of buildings","08/10/2020","6,388,397","18.66","VENDOR","SIX DEGREES TECHNOLOGY GROUP LTD","137,034"
"Portsmouth City Council","PCC","Housing Revenue Account","Repairs and Maintenance","Housing, Neighbourhood and Building Services","Premises-Related Expenditure","Repairs, alterations and maintenance of buildings","08/10/2020","6,388,397","1,501.84","VENDOR","SIX DEGREES TECHNOLOGY GROUP LTD","137,034"
"Portsmouth City Council","PCC","Support Service / Transparency Costs Unallocated","Personnel","Corporate Services","Employees","Indirect employee expenses","09/10/2020","6,388,531","1,143.00","VENDOR","MG CARE EXECUTIVE LTD","145,566"
"Portsmouth City Council","PCC","Support Service / Transparency Costs Unallocated","Personnel","Corporate Services","Employees","Indirect employee expenses","09/10/2020","6,388,531","124.00","VENDOR","MG CARE EXECUTIVE LTD","145,566"
"Portsmouth City Council","PCC","Support Service / Transparency Costs Unallocated","Personnel","Corporate Services","Employees","Indirect employee expenses","16/10/2020","6,389,674","1,309.00","VENDOR","MG CARE EXECUTIVE LTD","145,566"
"Portsmouth City Council","PCC","Support Service / Transparency Costs Unallocated","Personnel","Corporate Services","Employees","Indirect employee expenses","16/10/2020","6,389,674","140.00","VENDOR","MG CARE EXECUTIVE LTD","145,566"
"Portsmouth City Council","PCC","Support Service / Transparency Costs Unallocated","Personnel","Corporate Services","Employees","Indirect employee expenses","23/10/2020","6,391,081","1,726.00","VENDOR","MG CARE EXECUTIVE LTD","145,566"
"Portsmouth City Council","PCC","Support Service / Transparency Costs Unallocated","Personnel","Corporate Services","Employees","Indirect employee expenses","23/10/2020","6,391,081","188.00","VENDOR","MG CARE EXECUTIVE LTD","145,566"
"Portsmouth City Council","PCC","Support Service / Transparency Costs Unallocated","Procurement","Finance & Resources","Supplies and Services","Communications and computing","26/10/2020","6,391,243","3,433.49","VENDOR","IN-TEND LTD","121,323"
"Portsmouth City Council","PCC","Support Service / Transparency Costs Unallocated","Personnel","Corporate Services","Employees","Indirect employee expenses","30/10/2020","6,392,232","1,503.00","VENDOR","MG CARE EXECUTIVE LTD","145,566"
"Portsmouth City Council","PCC","Support Service / Transparency Costs Unallocated","Personnel","Corporate Services","Employees","Indirect employee expenses","30/10/2020","6,392,232","165.00","VENDOR","MG CARE EXECUTIVE LTD","145,566"
"Portsmouth City Council","PCC","Other","Suspense and Capital Schemes","Capital - Leader - Port","Capital Charges","Capital Expenditure (WIP)","08/10/2020","6,388,386","226,335.81","COMPANY","KNIGHTS BROWN CONSTRUCTION LTD","106,683"
"Portsmouth City Council","PCC","Children's and Education Services","Children Looked After","Children's Services and Education","Third Party Payments","Other establishments","09/10/2020","6,388,544","10,047.00","VENDOR","PBS4","143,265"
"Portsmouth City Council","PCC","Other","Suspense and Capital Schemes","Capital - Resources","Capital Charges","Capital Expenditure (WIP)","13/10/2020","6,388,890","17,000.00","VENDOR","NDL SOFTWARE LTD","147,216"
"Portsmouth City Council","PCC","Other","Suspense and Capital Schemes","Capital - Resources","Capital Charges","Capital Expenditure (WIP)","13/10/2020","6,388,890","39,000.00","VENDOR","NDL SOFTWARE LTD","147,216"
"Portsmouth City Council","PCC","Adult Social Care","Support with Memory and Cognition Older People (85+)","Adult Services","Third Party Payments","Other establishments","12/10/2020","6,388,611","2,338.64","VENDOR","ALTON MANOR CARE HOME","130,289"
"Portsmouth City Council","PCC","Adult Social Care","Support with Memory and Cognition Older People (85+)","Adult Services","Third Party Payments","Other establishments","12/10/2020","6,388,611","2,338.64","VENDOR","ALTON MANOR CARE HOME","130,289"
"Portsmouth City Council","PCC","Adult Social Care","Support with Memory and Cognition Older People (85+)","Adult Services","Third Party Payments","Other establishments","12/10/2020","6,388,611","2,574.86","VENDOR","ALTON MANOR CARE HOME","130,289"
"Portsmouth City Council","PCC","Adult Social Care","Support with Memory and Cognition Older People (85+)","Adult Services","Third Party Payments","Other establishments","12/10/2020","6,388,611","2,338.64","VENDOR","ALTON MANOR CARE HOME","130,289"
"Portsmouth City Council","PCC","Adult Social Care","Support with Memory and Cognition Older People (85+)","Adult Services","Third Party Payments","Other establishments","12/10/2020","6,388,611","240.42","VENDOR","ALTON MANOR CARE HOME","130,289"
"Portsmouth City Council","PCC","Adult Social Care","Support with Memory and Cognition Older People (85+)","Adult Services","Third Party Payments","Other establishments","12/10/2020","6,388,611","2,338.64","VENDOR","ALTON MANOR CARE HOME","130,289"
"Portsmouth City Council","PCC","Adult Social Care","Support with Memory and Cognition Older People (85+)","Adult Services","Third Party Payments","Other establishments","12/10/2020","6,388,611","2,338.64","VENDOR","ALTON MANOR CARE HOME","130,289"
"Portsmouth City Council","PCC","Adult Social Care","Support with Memory and Cognition Older People (85+)","Adult Services","Third Party Payments","Other establishments","12/10/2020","6,388,611","2,338.64","VENDOR","ALTON MANOR CARE HOME","130,289"
"Portsmouth City Council","PCC","Adult Social Care","Support with Memory and Cognition Older People (85+)","Adult Services","Third Party Payments","Other establishments","12/10/2020","6,388,611","2,878.66","VENDOR","ALTON MANOR CARE HOME","130,289"
"Portsmouth City Council","PCC","Adult Social Care","Support with Memory and Cognition Older People (85+)","Adult Services","Third Party Payments","Other establishments","12/10/2020","6,388,611","3,162.00","VENDOR","ALTON MANOR CARE HOME","130,289"
"Portsmouth City Council","PCC","Adult Social Care","Support with Memory and Cognition Older People (85+)","Adult Services","Third Party Payments","Other establishments","12/10/2020","6,388,611","-1,207.04","VENDOR","ALTON MANOR CARE HOME","130,289"
"Portsmouth City Council","PCC","Adult Social Care","Support with Memory and Cognition Older People (85+)","Adult Services","Third Party Payments","Other establishments","12/10/2020","6,388,611","2,338.64","VENDOR","ALTON MANOR CARE HOME","130,289"
"Portsmouth City Council","PCC","Adult Social Care","Mental Health Support Adults (18 - 64)","Adult Services","Third Party Payments","Other establishments","12/10/2020","6,388,611","2,201.31","VENDOR","ALTON MANOR CARE HOME","130,289"
"Portsmouth City Council","PCC","Adult Social Care","Social Care Activities","Adult Services","Third Party Payments","Other establishments","26/10/2020","6,391,171","11,645.74","VENDOR","ALTON MANOR CARE HOME","130,289"
"Portsmouth City Council","PCC","Adult Social Care","Learning Disability Support  Adults (18 - 64)","Adult Services","Third Party Payments","Other establishments","12/10/2020","6,388,614","10,232.17","VENDOR","ASPENS CHARITIES","119,343"
"Portsmouth City Council","PCC","Adult Social Care","Learning Disability Support  Adults (18 - 64)","Adult Services","Third Party Payments","Other establishments","23/10/2020","6,390,997","9,483.21","VENDOR","ASSURE HEALTH CARE GROUP","140,779"
"Portsmouth City Council","PCC","Adult Social Care","Learning Disability Support  Adults (18 - 64)","Adult Services","Third Party Payments","Other establishments","23/10/2020","6,390,997","7,481.23","VENDOR","ASSURE HEALTH CARE GROUP","140,779"
"Portsmouth City Council","PCC","Adult Social Care","Mental Health Support Adults (18 - 64)","Adult Services","Third Party Payments","Other establishments","23/10/2020","6,390,996","4,908.54","VENDOR","ASSURE HEALTH CARE GROUP","140,779"
"Portsmouth City Council","PCC","Adult Social Care","Learning Disability Support  Adults (18 - 64)","Adult Services","Third Party Payments","Other establishments","12/10/2020","6,388,618","12.52","VENDOR","AUTISM HAMPSHIRE","139,112"
"Portsmouth City Council","PCC","Support Service / Transparency Costs Unallocated","Personnel","Corporate Services","Employees","Indirect employee expenses","26/10/2020","6,391,270","60.00","VENDOR","RMC EMEA LIMITED","122,070"
"Portsmouth City Council","PCC","Support Service / Transparency Costs Unallocated","Personnel","Corporate Services","Employees","Indirect employee expenses","26/10/2020","6,391,270","180.00","VENDOR","RMC EMEA LIMITED","122,070"
"Portsmouth City Council","PCC","Support Service / Transparency Costs Unallocated","Personnel","Corporate Services","Employees","Indirect employee expenses","26/10/2020","6,391,270","180.00","VENDOR","RMC EMEA LIMITED","122,070"
"Portsmouth City Council","PCC","Support Service / Transparency Costs Unallocated","Personnel","Corporate Services","Employees","Indirect employee expenses","26/10/2020","6,391,270","60.00","VENDOR","RMC EMEA LIMITED","122,070"
"Portsmouth City Council","PCC","Support Service / Transparency Costs Unallocated","Personnel","Corporate Services","Employees","Indirect employee expenses","26/10/2020","6,391,270","120.00","VENDOR","RMC EMEA LIMITED","122,070"
"Portsmouth City Council","PCC","Support Service / Transparency Costs Unallocated","Personnel","Corporate Services","Employees","Indirect employee expenses","27/10/2020","6,391,396","48.00","VENDOR","RMC EMEA LIMITED","122,070"
"Portsmouth City Council","PCC","Support Service / Transparency Costs Unallocated","Personnel","Corporate Services","Employees","Indirect employee expenses","27/10/2020","6,391,396","48.00","VENDOR","RMC EMEA LIMITED","122,070"
"Portsmouth City Council","PCC","Support Service / Transparency Costs Unallocated","Personnel","Corporate Services","Employees","Indirect employee expenses","27/10/2020","6,391,396","48.00","VENDOR","RMC EMEA LIMITED","122,070"
"Portsmouth City Council","PCC","Support Service / Transparency Costs Unallocated","Personnel","Corporate Services","Employees","Indirect employee expenses","27/10/2020","6,391,396","144.00","VENDOR","RMC EMEA LIMITED","122,070"
"Portsmouth City Council","PCC","Support Service / Transparency Costs Unallocated","Personnel","Corporate Services","Employees","Indirect employee expenses","27/10/2020","6,391,396","48.00","VENDOR","RMC EMEA LIMITED","122,070"
"Portsmouth City Council","PCC","Adult Social Care","Learning Disability Support  Adults (18 - 64)","Adult Services","Third Party Payments","Other establishments","23/10/2020","6,391,008","605.83","VENDOR","CARE MANAGEMENT GROUP LIMITED","101,894"
"Portsmouth City Council","PCC","Adult Social Care","Social Care Activities","Adult Services","Third Party Payments","Other establishments","12/10/2020","6,388,618","16,177.66","VENDOR","AUTISM HAMPSHIRE","139,112"
"Portsmouth City Council","PCC","Adult Social Care","Learning Disability Support  Adults (18 - 64)","Adult Services","Third Party Payments","Other establishments","12/10/2020","6,388,618","6,084.06","VENDOR","AUTISM HAMPSHIRE","139,112"
"Portsmouth City Council","PCC","Adult Social Care","Learning Disability Support  Adults (18 - 64)","Adult Services","Third Party Payments","Other establishments","12/10/2020","6,388,618","6,332.68","VENDOR","AUTISM HAMPSHIRE","139,112"
"Portsmouth City Council","PCC","Adult Social Care","Learning Disability Support  Adults (18 - 64)","Adult Services","Third Party Payments","Other establishments","12/10/2020","6,388,618","3,863.22","VENDOR","AUTISM HAMPSHIRE","139,112"
"Portsmouth City Council","PCC","Adult Social Care","Learning Disability Support  Adults (18 - 64)","Adult Services","Third Party Payments","Other establishments","12/10/2020","6,388,618","9,095.40","VENDOR","AUTISM HAMPSHIRE","139,112"
"Portsmouth City Council","PCC","Adult Social Care","Social Care Activities","Adult Services","Third Party Payments","Other establishments","12/10/2020","6,388,619","2,759.00","VENDOR","AUTUMN VALE REST HOME","100,551"
"Portsmouth City Council","PCC","Adult Social Care","Support with Memory and Cognition Older People (85+)","Adult Services","Third Party Payments","Other establishments","12/10/2020","6,388,619","1,550.00","VENDOR","AUTUMN VALE REST HOME","100,551"
"Portsmouth City Council","PCC","Adult Social Care","Support with Memory and Cognition Older People (85+)","Adult Services","Third Party Payments","Other establishments","12/10/2020","6,388,619","2,428.23","VENDOR","AUTUMN VALE REST HOME","100,551"
"Portsmouth City Council","PCC","Adult Social Care","Mental Health Support Adults (18 - 64)","Adult Services","Third Party Payments","Other establishments","12/10/2020","6,388,619","2,167.83","VENDOR","AUTUMN VALE REST HOME","100,551"
"Portsmouth City Council","PCC","Adult Social Care","Mental Health Support Adults (18 - 64)","Adult Services","Third Party Payments","Other establishments","12/10/2020","6,388,619","1,430.03","VENDOR","AUTUMN VALE REST HOME","100,551"
"Portsmouth City Council","PCC","Adult Social Care","Mental Health Support Adults (18 - 64)","Adult Services","Third Party Payments","Other establishments","12/10/2020","6,388,619","3,558.18","VENDOR","AUTUMN VALE REST HOME","100,551"
"Portsmouth City Council","PCC","Adult Social Care","Mental Health Support Adults (18 - 64)","Adult Services","Third Party Payments","Other establishments","12/10/2020","6,388,619","2,351.35","VENDOR","AUTUMN VALE REST HOME","100,551"
"Portsmouth City Council","PCC","Adult Social Care","Mental Health Support Adults (18 - 64)","Adult Services","Third Party Payments","Other establishments","12/10/2020","6,388,619","3,419.61","VENDOR","AUTUMN VALE REST HOME","100,551"
"Portsmouth City Council","PCC","Adult Social Care","Mental Health Support Adults (18 - 64)","Adult Services","Third Party Payments","Other establishments","12/10/2020","6,388,619","2,519.06","VENDOR","AUTUMN VALE REST HOME","100,551"
"Portsmouth City Council","PCC","Adult Social Care","Social Care Activities","Adult Services","Third Party Payments","Other establishments","29/10/2020","6,391,998","8,563.04","VENDOR","AUTUMN VALE REST HOME","100,551"
"Portsmouth City Council","PCC","Adult Social Care","Physical Support Older People (85+)","Adult Services","Third Party Payments","Other establishments","26/10/2020","6,391,176","275.00","SOLETRADER","RED SQUIRREL","145,135"
"Portsmouth City Council","PCC","Adult Social Care","Physical Support Older People (85+)","Adult Services","Third Party Payments","Other establishments","26/10/2020","6,391,176","257.14","SOLETRADER","RED SQUIRREL","145,135"
"Portsmouth City Council","PCC","Adult Social Care","Physical Support Older People (85+)","Adult Services","Third Party Payments","Other establishments","26/10/2020","6,391,176","423.86","SOLETRADER","RED SQUIRREL","145,135"
"Portsmouth City Council","PCC","Adult Social Care","Social Care Activities","Adult Services","Third Party Payments","Other establishments","12/10/2020","6,388,623","98.00","VENDOR","BEACONSFIELD RESIDENTIAL CARE HOME","100,568"
"Portsmouth City Council","PCC","Adult Social Care","Social Care Activities","Adult Services","Third Party Payments","Other establishments","12/10/2020","6,388,623","3,393.88","VENDOR","BEACONSFIELD RESIDENTIAL CARE HOME","100,568"
"Portsmouth City Council","PCC","Adult Social Care","Learning Disability Support  Adults (18 - 64)","Adult Services","Third Party Payments","Other establishments","12/10/2020","6,388,623","3,489.36","VENDOR","BEACONSFIELD RESIDENTIAL CARE HOME","100,568"
"Portsmouth City Council","PCC","Adult Social Care","Learning Disability Support  Adults (18 - 64)","Adult Services","Third Party Payments","Other establishments","12/10/2020","6,388,623","2,559.36","VENDOR","BEACONSFIELD RESIDENTIAL CARE HOME","100,568"
"Portsmouth City Council","PCC","Adult Social Care","Mental Health Support Adults (18 - 64)","Adult Services","Third Party Payments","Other establishments","12/10/2020","6,388,623","1,861.55","VENDOR","BEACONSFIELD RESIDENTIAL CARE HOME","100,568"
"Portsmouth City Council","PCC","Adult Social Care","Mental Health Support Adults (18 - 64)","Adult Services","Third Party Payments","Other establishments","12/10/2020","6,388,623","1,934.40","VENDOR","BEACONSFIELD RESIDENTIAL CARE HOME","100,568"
"Portsmouth City Council","PCC","Adult Social Care","Mental Health Support Adults (18 - 64)","Adult Services","Third Party Payments","Other establishments","12/10/2020","6,388,623","1,806.37","VENDOR","BEACONSFIELD RESIDENTIAL CARE HOME","100,568"
"Portsmouth City Council","PCC","Adult Social Care","Mental Health Support Adults (18 - 64)","Adult Services","Third Party Payments","Other establishments","12/10/2020","6,388,623","2,484.65","VENDOR","BEACONSFIELD RESIDENTIAL CARE HOME","100,568"
"Portsmouth City Council","PCC","Adult Social Care","Mental Health Support Adults (18 - 64)","Adult Services","Third Party Payments","Other establishments","12/10/2020","6,388,623","1,898.13","VENDOR","BEACONSFIELD RESIDENTIAL CARE HOME","100,568"
"Portsmouth City Council","PCC","Adult Social Care","Mental Health Support Adults (18 - 64)","Adult Services","Third Party Payments","Other establishments","12/10/2020","6,388,623","2,430.40","VENDOR","BEACONSFIELD RESIDENTIAL CARE HOME","100,568"
"Portsmouth City Council","PCC","Adult Social Care","Mental Health Support Adults (18 - 64)","Adult Services","Third Party Payments","Other establishments","12/10/2020","6,388,623","1,898.13","VENDOR","BEACONSFIELD RESIDENTIAL CARE HOME","100,568"
"Portsmouth City Council","PCC","Adult Social Care","Mental Health Support Adults (18 - 64)","Adult Services","Third Party Payments","Other establishments","12/10/2020","6,388,623","1,898.13","VENDOR","BEACONSFIELD RESIDENTIAL CARE HOME","100,568"
"Portsmouth City Council","PCC","Adult Social Care","Mental Health Support Adults (18 - 64)","Adult Services","Third Party Payments","Other establishments","12/10/2020","6,388,623","1,824.97","VENDOR","BEACONSFIELD RESIDENTIAL CARE HOME","100,568"
"Portsmouth City Council","PCC","Adult Social Care","Mental Health Support Adults (18 - 64)","Adult Services","Third Party Payments","Other establishments","12/10/2020","6,388,623","2,657.63","VENDOR","BEACONSFIELD RESIDENTIAL CARE HOME","100,568"
"Portsmouth City Council","PCC","Adult Social Care","Mental Health Support Adults (18 - 64)","Adult Services","Third Party Payments","Other establishments","12/10/2020","6,388,623","1,861.55","VENDOR","BEACONSFIELD RESIDENTIAL CARE HOME","100,568"
"Portsmouth City Council","PCC","Adult Social Care","Mental Health Support Adults (18 - 64)","Adult Services","Third Party Payments","Other establishments","12/10/2020","6,388,623","1,898.13","VENDOR","BEACONSFIELD RESIDENTIAL CARE HOME","100,568"
"Portsmouth City Council","PCC","Adult Social Care","Mental Health Support Adults (18 - 64)","Adult Services","Third Party Payments","Other establishments","12/10/2020","6,388,623","1,861.55","VENDOR","BEACONSFIELD RESIDENTIAL CARE HOME","100,568"
"Portsmouth City Council","PCC","Adult Social Care","Mental Health Support Adults (18 - 64)","Adult Services","Third Party Payments","Other establishments","12/10/2020","6,388,623","2,007.25","VENDOR","BEACONSFIELD RESIDENTIAL CARE HOME","100,568"
"Portsmouth City Council","PCC","Adult Social Care","Mental Health Support Adults (18 - 64)","Adult Services","Third Party Payments","Other establishments","12/10/2020","6,388,623","2,063.98","VENDOR","BEACONSFIELD RESIDENTIAL CARE HOME","100,568"
"Portsmouth City Council","PCC","Adult Social Care","Mental Health Support Adults (18 - 64)","Adult Services","Third Party Payments","Other establishments","12/10/2020","6,388,623","1,970.98","VENDOR","BEACONSFIELD RESIDENTIAL CARE HOME","100,568"
"Portsmouth City Council","PCC","Adult Social Care","Social Care Activities","Adult Services","Third Party Payments","Other establishments","26/10/2020","6,391,178","7,535.48","VENDOR","BEACONSFIELD RESIDENTIAL CARE HOME","100,568"
"Portsmouth City Council","PCC","Adult Social Care","Physical Support Adults (18 - 64)","Adult Services","Third Party Payments","Other establishments","12/10/2020","6,388,625","-1,671.48","VENDOR","BEDHAMPTON NURSING HOME","100,569"
"Portsmouth City Council","PCC","Adult Social Care","Physical Support Adults (18 - 64)","Adult Services","Third Party Payments","Other establishments","12/10/2020","6,388,625","6,200.00","VENDOR","BEDHAMPTON NURSING HOME","100,569"
"Portsmouth City Council","PCC","Adult Social Care","Physical Support Adults (18 - 64)","Adult Services","Third Party Payments","Other establishments","12/10/2020","6,388,625","-371.44","VENDOR","BEDHAMPTON NURSING HOME","100,569"
"Portsmouth City Council","PCC","Adult Social Care","Social Care Activities","Adult Services","Third Party Payments","Other establishments","12/10/2020","6,388,625","11,684.52","VENDOR","BEDHAMPTON NURSING HOME","100,569"
"Portsmouth City Council","PCC","Adult Social Care","Social Care Activities","Adult Services","Third Party Payments","Other establishments","12/10/2020","6,388,625","4,674.49","VENDOR","BEDHAMPTON NURSING HOME","100,569"
"Portsmouth City Council","PCC","Adult Social Care","Social Care Activities","Adult Services","Third Party Payments","Other establishments","12/10/2020","6,388,625","5,872.33","VENDOR","BEDHAMPTON NURSING HOME","100,569"
"Portsmouth City Council","PCC","Adult Social Care","Social Care Activities","Adult Services","Third Party Payments","Other establishments","12/10/2020","6,388,625","814.50","VENDOR","BEDHAMPTON NURSING HOME","100,569"
"Portsmouth City Council","PCC","Adult Social Care","Physical Support Older People (85+)","Adult Services","Third Party Payments","Other establishments","12/10/2020","6,388,625","5,881.32","VENDOR","BEDHAMPTON NURSING HOME","100,569"
"Portsmouth City Council","PCC","Adult Social Care","Physical Support Older People (85+)","Adult Services","Third Party Payments","Other establishments","12/10/2020","6,388,625","2,887.65","VENDOR","BEDHAMPTON NURSING HOME","100,569"
"Portsmouth City Council","PCC","Adult Social Care","Social Care Activities","Adult Services","Third Party Payments","Other establishments","12/10/2020","6,388,626","3,321.65","VENDOR","BETHESDA HEALTHCARE","143,824"
"Portsmouth City Council","PCC","Adult Social Care","Social Care Activities","Adult Services","Third Party Payments","Other establishments","12/10/2020","6,388,626","642.90","VENDOR","BETHESDA HEALTHCARE","143,824"
"Portsmouth City Council","PCC","Adult Social Care","Social Care Activities","Adult Services","Third Party Payments","Other establishments","12/10/2020","6,388,626","3,321.65","VENDOR","BETHESDA HEALTHCARE","143,824"
"Portsmouth City Council","PCC","Adult Social Care","Social Care Activities","Adult Services","Third Party Payments","Other establishments","12/10/2020","6,388,626","107.15","VENDOR","BETHESDA HEALTHCARE","143,824"
"Portsmouth City Council","PCC","Adult Social Care","Social Care Activities","Adult Services","Third Party Payments","Other establishments","12/10/2020","6,388,626","3,321.65","VENDOR","BETHESDA HEALTHCARE","143,824"
"Portsmouth City Council","PCC","Adult Social Care","Social Care Activities","Adult Services","Third Party Payments","Other establishments","12/10/2020","6,388,626","750.05","VENDOR","BETHESDA HEALTHCARE","143,824"
"Portsmouth City Council","PCC","Adult Social Care","Social Care Activities","Adult Services","Third Party Payments","Other establishments","12/10/2020","6,388,626","3,321.65","VENDOR","BETHESDA HEALTHCARE","143,824"
"Portsmouth City Council","PCC","Adult Social Care","Social Care Activities","Adult Services","Third Party Payments","Other establishments","12/10/2020","6,388,626","535.75","VENDOR","BETHESDA HEALTHCARE","143,824"
"Portsmouth City Council","PCC","Adult Social Care","Social Care Activities","Adult Services","Third Party Payments","Other establishments","12/10/2020","6,388,626","2,893.05","VENDOR","BETHESDA HEALTHCARE","143,824"
"Portsmouth City Council","PCC","Adult Social Care","Physical Support Adults (18 - 64)","Adult Services","Third Party Payments","Other establishments","12/10/2020","6,388,626","-3,214.50","VENDOR","BETHESDA HEALTHCARE","143,824"
"Portsmouth City Council","PCC","Adult Social Care","Physical Support Adults (18 - 64)","Adult Services","Third Party Payments","Other establishments","12/10/2020","6,388,626","3,323.20","VENDOR","BETHESDA HEALTHCARE","143,824"
"Portsmouth City Council","PCC","Adult Social Care","Physical Support Adults (18 - 64)","Adult Services","Third Party Payments","Other establishments","12/10/2020","6,388,626","3,321.65","VENDOR","BETHESDA HEALTHCARE","143,824"
"Portsmouth City Council","PCC","Adult Social Care","Physical Support Adults (18 - 64)","Adult Services","Third Party Payments","Other establishments","12/10/2020","6,388,626","-1,942.88","VENDOR","BETHESDA HEALTHCARE","143,824"
"Portsmouth City Council","PCC","Adult Social Care","Physical Support Adults (18 - 64)","Adult Services","Third Party Payments","Other establishments","12/10/2020","6,388,626","2,435.98","VENDOR","BETHESDA HEALTHCARE","143,824"
"Portsmouth City Council","PCC","Adult Social Care","Physical Support Adults (18 - 64)","Adult Services","Third Party Payments","Other establishments","12/10/2020","6,388,626","4,406.65","VENDOR","BETHESDA HEALTHCARE","143,824"
"Portsmouth City Council","PCC","Adult Social Care","Physical Support Adults (18 - 64)","Adult Services","Third Party Payments","Other establishments","12/10/2020","6,388,626","-1,828.64","VENDOR","BETHESDA HEALTHCARE","143,824"
"Portsmouth City Council","PCC","Adult Social Care","Physical Support Adults (18 - 64)","Adult Services","Third Party Payments","Other establishments","12/10/2020","6,388,626","-1,500.80","VENDOR","BETHESDA HEALTHCARE","143,824"
"Portsmouth City Council","PCC","Adult Social Care","Physical Support Older People (85+)","Adult Services","Third Party Payments","Other establishments","12/10/2020","6,388,626","2,435.67","VENDOR","BETHESDA HEALTHCARE","143,824"
"Portsmouth City Council","PCC","Adult Social Care","Physical Support Older People (85+)","Adult Services","Third Party Payments","Other establishments","12/10/2020","6,388,626","1,021.41","VENDOR","BETHESDA HEALTHCARE","143,824"
"Portsmouth City Council","PCC","Adult Social Care","Support with Memory and Cognition Older People (85+)","Adult Services","Third Party Payments","Other establishments","12/10/2020","6,388,626","1,948.66","VENDOR","BETHESDA HEALTHCARE","143,824"
"Portsmouth City Council","PCC","Cultural and Related Services","Allocation of Management & Admin","Corporate Services","Supplies and Services","Communications and computing","07/10/2020","6,387,963","14,175.00","VENDOR","FIRMSTEP LTD","113,245"
"Portsmouth City Council","PCC","Highways and Transport Services","Airports, Harbours and Toll Facilities","Portsmouth International Port","Premises-Related Expenditure","Cleaning and domestic supplies","01/10/2020","6,387,340","16,930.33","VENDOR","NVIRO LTD","124,507"
"Portsmouth City Council","PCC","Highways and Transport Services","Airports, Harbours and Toll Facilities","Portsmouth International Port","Premises-Related Expenditure","Cleaning and domestic supplies","01/10/2020","6,387,340","2,375.00","VENDOR","NVIRO LTD","124,507"
"Portsmouth City Council","PCC","Highways and Transport Services","Airports, Harbours and Toll Facilities","Portsmouth International Port","Premises-Related Expenditure","Cleaning and domestic supplies","01/10/2020","6,387,340","510.00","VENDOR","NVIRO LTD","124,507"
"Portsmouth City Council","PCC","Highways and Transport Services","Airports, Harbours and Toll Facilities","Portsmouth International Port","Premises-Related Expenditure","Cleaning and domestic supplies","30/10/2020","6,392,241","16,930.33","VENDOR","NVIRO LTD","124,507"
"Portsmouth City Council","PCC","Highways and Transport Services","Airports, Harbours and Toll Facilities","Portsmouth International Port","Premises-Related Expenditure","Cleaning and domestic supplies","30/10/2020","6,392,241","2,375.00","VENDOR","NVIRO LTD","124,507"
"Portsmouth City Council","PCC","Other","Suspense and Capital Schemes","Portsmouth International Port","Supplies and Services","Miscellaneous expenses","30/10/2020","6,392,241","295.00","VENDOR","NVIRO LTD","124,507"
"Portsmouth City Council","PCC","Environmental and Regulatory Services","Regulatory Services","Culture, Leisure & Regulatory Services","Supplies and Services","Equipment, furniture and materials","13/10/2020","6,388,894","473.20","VENDOR","PELSIS LIMITED","133,905"
"Portsmouth City Council","PCC","Adult Social Care","Social Care Activities","Adult Services","Third Party Payments","Other establishments","23/10/2020","6,390,989","1,096.20","VENDOR","APEX PROPERTY VENTURES LTD","108,437"
"Portsmouth City Council","PCC","Adult Social Care","Support with Memory and Cognition Older People (85+)","Adult Services","Third Party Payments","Other establishments","12/10/2020","6,388,626","3,117.67","VENDOR","BETHESDA HEALTHCARE","143,824"
"Portsmouth City Council","PCC","Adult Social Care","Social Care Activities","Adult Services","Third Party Payments","Other establishments","23/10/2020","6,390,989","1,096.20","VENDOR","APEX PROPERTY VENTURES LTD","108,437"
"Portsmouth City Council","PCC","Adult Social Care","Social Care Activities","Adult Services","Third Party Payments","Other establishments","23/10/2020","6,390,989","2,436.00","VENDOR","APEX PROPERTY VENTURES LTD","108,437"
"Portsmouth City Council","PCC","Other","Suspense and Capital Schemes","Capital - Housing General Fund","Capital Charges","REFCUS","16/10/2020","6,389,677","10,505.60","COMPANY","MUSSON SERVICES BUILDERS LTD","110,933"
"Portsmouth City Council","PCC","Housing Services","Private Sector Housing Renewal","Housing, Neighbourhood and Building Services","Income","Other grants reimbursements and contributions","16/10/2020","6,389,677","-938.00","COMPANY","MUSSON SERVICES BUILDERS LTD","110,933"
"Portsmouth City Council","PCC","Children's and Education Services","Other Children and Family Services","Children's Services and Education","Supplies and Services","Services","02/10/2020","6,387,486","500.00","SOLETRADER","Classified as 'personal data' (under the Data Protection Act 2018)","134,578"
"Portsmouth City Council","PCC","Environmental and Regulatory Services","Regulatory Services","Culture, Leisure & Regulatory Services","Third Party Payments","Private contractors","02/10/2020","6,387,391","520.00","VENDOR","ADAMS MOREY LTD","100,446"
"Portsmouth City Council","PCC","Environmental and Regulatory Services","Regulatory Services","Culture, Leisure & Regulatory Services","Third Party Payments","Private contractors","02/10/2020","6,387,391","1,144.00","VENDOR","ADAMS MOREY LTD","100,446"
"Portsmouth City Council","PCC","Environmental and Regulatory Services","Regulatory Services","Culture, Leisure & Regulatory Services","Third Party Payments","Private contractors","09/10/2020","6,388,434","468.00","VENDOR","ADAMS MOREY LTD","100,446"
"Portsmouth City Council","PCC","Environmental and Regulatory Services","Regulatory Services","Culture, Leisure & Regulatory Services","Third Party Payments","Private contractors","09/10/2020","6,388,434","1,820.00","VENDOR","ADAMS MOREY LTD","100,446"
"Portsmouth City Council","PCC","Environmental and Regulatory Services","Regulatory Services","Culture, Leisure & Regulatory Services","Third Party Payments","Private contractors","16/10/2020","6,389,573","780.00","VENDOR","ADAMS MOREY LTD","100,446"
"Portsmouth City Council","PCC","Environmental and Regulatory Services","Regulatory Services","Culture, Leisure & Regulatory Services","Third Party Payments","Private contractors","16/10/2020","6,389,573","1,664.00","VENDOR","ADAMS MOREY LTD","100,446"
"Portsmouth City Council","PCC","Environmental and Regulatory Services","Regulatory Services","Culture, Leisure & Regulatory Services","Third Party Payments","Private contractors","22/10/2020","6,390,804","832.00","VENDOR","ADAMS MOREY LTD","100,446"
"Portsmouth City Council","PCC","Environmental and Regulatory Services","Regulatory Services","Culture, Leisure & Regulatory Services","Third Party Payments","Private contractors","22/10/2020","6,390,804","1,404.00","VENDOR","ADAMS MOREY LTD","100,446"
"Portsmouth City Council","PCC","Environmental and Regulatory Services","Regulatory Services","Culture, Leisure & Regulatory Services","Third Party Payments","Private contractors","27/10/2020","6,391,303","208.00","VENDOR","ADAMS MOREY LTD","100,446"
"Portsmouth City Council","PCC","Environmental and Regulatory Services","Regulatory Services","Culture, Leisure & Regulatory Services","Third Party Payments","Private contractors","27/10/2020","6,391,303","1,560.00","VENDOR","ADAMS MOREY LTD","100,446"
"Portsmouth City Council","PCC","Children's and Education Services","Other Children and Family Services","Children's Services and Education","Supplies and Services","Services","20/10/2020","6,390,237","475.00","SOLETRADER","Classified as 'personal data' (under the Data Protection Act 2018)","145,209"
"Portsmouth City Council","PCC","Environmental and Regulatory Services","Regulatory Services","Culture, Leisure & Regulatory Services","Third Party Payments","Private contractors","30/10/2020","6,392,109","156.00","VENDOR","ADAMS MOREY LTD","100,446"
"Portsmouth City Council","PCC","Environmental and Regulatory Services","Regulatory Services","Culture, Leisure & Regulatory Services","Third Party Payments","Private contractors","30/10/2020","6,392,109","832.00","VENDOR","ADAMS MOREY LTD","100,446"
"Portsmouth City Council","PCC","Children's and Education Services","Other Children and Family Services","Children's Services and Education","Supplies and Services","Services","30/10/2020","6,392,202","650.00","SOLETRADER","Classified as 'personal data' (under the Data Protection Act 2018)","107,906"
"Portsmouth City Council","PCC","Children's and Education Services","Other Children and Family Services","Children's Services and Education","Supplies and Services","Services","22/10/2020","6,390,893","525.00","SOLETRADER","Classified as 'personal data' (under the Data Protection Act 2018)","134,578"
"Portsmouth City Council","PCC","Children's and Education Services","Other Children and Family Services","Children's Services and Education","Supplies and Services","Services","22/10/2020","6,390,893","400.00","SOLETRADER","Classified as 'personal data' (under the Data Protection Act 2018)","134,578"
"Portsmouth City Council","PCC","Highways and Transport Services","Airports, Harbours and Toll Facilities","Portsmouth International Port","Third Party Payments","Private contractors","01/10/2020","6,387,358","2,680.00","VENDOR","SOUTHERN MARITIME SERVICES LIMITED","120,765"
"Portsmouth City Council","PCC","Highways and Transport Services","Airports, Harbours and Toll Facilities","Portsmouth International Port","Transport-Related Expenditure","Direct transport costs","01/10/2020","6,387,358","17,038.13","VENDOR","SOUTHERN MARITIME SERVICES LIMITED","120,765"
"Portsmouth City Council","PCC","Highways and Transport Services","Airports, Harbours and Toll Facilities","Portsmouth International Port","Transport-Related Expenditure","Direct transport costs","30/10/2020","6,392,256","14,866.88","VENDOR","SOUTHERN MARITIME SERVICES LIMITED","120,765"
"Portsmouth City Council","PCC","Children's and Education Services","Other Children and Family Services","Children's Services and Education","Supplies and Services","Services","22/10/2020","6,390,883","550.00","SOLETRADER","Classified as 'personal data' (under the Data Protection Act 2018)","107,906"
"Portsmouth City Council","PCC","Children's and Education Services","Other Children and Family Services","Children's Services and Education","Supplies and Services","Services","29/10/2020","6,392,058","550.00","SOLETRADER","Classified as 'personal data' (under the Data Protection Act 2018)","107,906"
"Portsmouth City Council","PCC","Children's and Education Services","Management and Support Services","Children's Services and Education","Supplies and Services","Services","15/10/2020","6,389,453","1,793.00","VENDOR","ALL SIMPLE INTERNET SERVICES LLP","147,307"
"Portsmouth City Council","PCC","Highways and Transport Services","Airports, Harbours and Toll Facilities","Portsmouth International Port","Transport-Related Expenditure","Direct transport costs","22/10/2020","6,390,952","17,505.00","VENDOR","SOUTHERN MARITIME SERVICES LIMITED","120,765"
"Portsmouth City Council","PCC","Children's and Education Services","Children Looked After","Children's Services and Education","Third Party Payments","Other establishments","30/10/2020","6,392,266","-89.28","VENDOR","THE BEEHIVE ENTERPRISE","147,200"
"Portsmouth City Council","PCC","Children's and Education Services","Children Looked After","Children's Services and Education","Third Party Payments","Other establishments","30/10/2020","6,392,266","6,069.28","VENDOR","THE BEEHIVE ENTERPRISE","147,200"
"Portsmouth City Council","PCC","Housing Revenue Account","Supervision and Management","Housing, Neighbourhood and Building Services","Supplies and Services","Miscellaneous expenses","29/10/2020","6,392,068","450.00","VENDOR","LJ WASTE & MAINTENANCE LTD","146,759"
"Portsmouth City Council","PCC","Housing Revenue Account","Supervision and Management","Housing, Neighbourhood and Building Services","Supplies and Services","Miscellaneous expenses","29/10/2020","6,392,068","150.00","VENDOR","LJ WASTE & MAINTENANCE LTD","146,759"
"Portsmouth City Council","PCC","Highways and Transport Services","Transport Planning, Policy and Strategy","Regeneration","Third Party Payments","Private contractors","09/10/2020","6,388,591","2,625.00","VENDOR","VESPASIAN SECURITY LTD","126,345"
"Portsmouth City Council","PCC","Adult Social Care","Social Care Activities","Adult Services","Third Party Payments","Other establishments","23/10/2020","6,390,989","1,218.00","VENDOR","APEX PROPERTY VENTURES LTD","108,437"
"Portsmouth City Council","PCC","Adult Social Care","Social Care Activities","Adult Services","Third Party Payments","Other establishments","23/10/2020","6,390,989","1,218.00","VENDOR","APEX PROPERTY VENTURES LTD","108,437"
"Portsmouth City Council","PCC","Adult Social Care","Physical Support Adults (18 - 64)","Adult Services","Third Party Payments","Other establishments","23/10/2020","6,390,989","456.75","VENDOR","APEX PROPERTY VENTURES LTD","108,437"
"Portsmouth City Council","PCC","Adult Social Care","Physical Support Adults (18 - 64)","Adult Services","Third Party Payments","Other establishments","23/10/2020","6,390,989","104.40","VENDOR","APEX PROPERTY VENTURES LTD","108,437"
"Portsmouth City Council","PCC","Adult Social Care","Physical Support Adults (18 - 64)","Adult Services","Third Party Payments","Other establishments","23/10/2020","6,390,989","104.40","VENDOR","APEX PROPERTY VENTURES LTD","108,437"
"Portsmouth City Council","PCC","Adult Social Care","Physical Support Adults (18 - 64)","Adult Services","Third Party Payments","Other establishments","23/10/2020","6,390,989","174.00","VENDOR","APEX PROPERTY VENTURES LTD","108,437"
"Portsmouth City Council","PCC","Adult Social Care","Physical Support Adults (18 - 64)","Adult Services","Third Party Payments","Other establishments","23/10/2020","6,390,989","539.40","VENDOR","APEX PROPERTY VENTURES LTD","108,437"
"Portsmouth City Council","PCC","Adult Social Care","Physical Support Adults (18 - 64)","Adult Services","Third Party Payments","Other establishments","23/10/2020","6,390,989","539.40","VENDOR","APEX PROPERTY VENTURES LTD","108,437"
"Portsmouth City Council","PCC","Adult Social Care","Physical Support Adults (18 - 64)","Adult Services","Third Party Payments","Other establishments","23/10/2020","6,390,989","487.20","VENDOR","APEX PROPERTY VENTURES LTD","108,437"
"Portsmouth City Council","PCC","Adult Social Care","Physical Support Adults (18 - 64)","Adult Services","Third Party Payments","Other establishments","23/10/2020","6,390,989","513.30","VENDOR","APEX PROPERTY VENTURES LTD","108,437"
"Portsmouth City Council","PCC","Adult Social Care","Physical Support Adults (18 - 64)","Adult Services","Third Party Payments","Other establishments","23/10/2020","6,390,989","487.20","VENDOR","APEX PROPERTY VENTURES LTD","108,437"
"Portsmouth City Council","PCC","Adult Social Care","Physical Support Adults (18 - 64)","Adult Services","Third Party Payments","Other establishments","23/10/2020","6,390,989","243.60","VENDOR","APEX PROPERTY VENTURES LTD","108,437"
"Portsmouth City Council","PCC","Cultural and Related Services","Open Spaces","Culture, Leisure & Regulatory Services","Premises-Related Expenditure","Grounds maintenance costs","14/10/2020","6,389,319","1,925.00","COMPANY","REDS BUILDERS LTD","108,228"
"Portsmouth City Council","PCC","Cultural and Related Services","Open Spaces","Culture, Leisure & Regulatory Services","Premises-Related Expenditure","Grounds maintenance costs","14/10/2020","6,389,319","1,537.78","COMPANY","REDS BUILDERS LTD","108,228"
"Portsmouth City Council","PCC","Cultural and Related Services","Open Spaces","Culture, Leisure & Regulatory Services","Premises-Related Expenditure","Grounds maintenance costs","19/10/2020","6,389,909","1,800.00","COMPANY","REDS BUILDERS LTD","108,228"
"Portsmouth City Council","PCC","Other","Suspense and Capital Schemes","Capital - Children, Families and Education","Capital Charges","REFCUS","07/10/2020","6,388,194","1,502.55","COMPANY","REDS BUILDERS LTD","108,228"
"Portsmouth City Council","PCC","Adult Social Care","Support with Memory and Cognition Older People (85+)","Adult Services","Third Party Payments","Other establishments","12/10/2020","6,388,626","-2,622.90","VENDOR","BETHESDA HEALTHCARE","143,824"
"Portsmouth City Council","PCC","Adult Social Care","Support with Memory and Cognition Older People (85+)","Adult Services","Third Party Payments","Other establishments","12/10/2020","6,388,626","3,542.99","VENDOR","BETHESDA HEALTHCARE","143,824"
"Portsmouth City Council","PCC","Adult Social Care","Support with Memory and Cognition Older People (85+)","Adult Services","Third Party Payments","Other establishments","12/10/2020","6,388,626","1,828.64","VENDOR","BETHESDA HEALTHCARE","143,824"
"Portsmouth City Council","PCC","Adult Social Care","Support with Memory and Cognition Older People (85+)","Adult Services","Third Party Payments","Other establishments","12/10/2020","6,388,626","1,328.04","VENDOR","BETHESDA HEALTHCARE","143,824"
"Portsmouth City Council","PCC","Cultural and Related Services","Recreation and Sport","Culture, Leisure & Regulatory Services","Employees","Indirect employee expenses","14/10/2020","6,389,227","500.00","VENDOR","MCG TRAINING","137,327"
"Portsmouth City Council","PCC","Housing Revenue Account","Special Services","Housing, Neighbourhood and Building Services","Employees","Direct employee expenses","19/10/2020","6,389,936","4,020.40","VENDOR","THE PORTSMOUTH SITTING SERVICE AND COMMUNITY CARE SERVICES LTD T/A ASSURED CARE","100,201"
"Portsmouth City Council","PCC","Adult Social Care","Physical Support Adults (18 - 64)","Adult Services","Third Party Payments","Other establishments","23/10/2020","6,390,989","126.15","VENDOR","APEX PROPERTY VENTURES LTD","108,437"
"Portsmouth City Council","PCC","Adult Social Care","Physical Support Adults (18 - 64)","Adult Services","Third Party Payments","Other establishments","23/10/2020","6,390,989","174.00","VENDOR","APEX PROPERTY VENTURES LTD","108,437"
"Portsmouth City Council","PCC","Adult Social Care","Physical Support Adults (18 - 64)","Adult Services","Third Party Payments","Other establishments","23/10/2020","6,390,989","826.50","VENDOR","APEX PROPERTY VENTURES LTD","108,437"
"Portsmouth City Council","PCC","Adult Social Care","Physical Support Adults (18 - 64)","Adult Services","Third Party Payments","Other establishments","23/10/2020","6,390,989","130.50","VENDOR","APEX PROPERTY VENTURES LTD","108,437"
"Portsmouth City Council","PCC","Adult Social Care","Physical Support Adults (18 - 64)","Adult Services","Third Party Payments","Other establishments","23/10/2020","6,390,989","487.20","VENDOR","APEX PROPERTY VENTURES LTD","108,437"
"Portsmouth City Council","PCC","Adult Social Care","Physical Support Adults (18 - 64)","Adult Services","Third Party Payments","Other establishments","23/10/2020","6,390,989","487.20","VENDOR","APEX PROPERTY VENTURES LTD","108,437"
"Portsmouth City Council","PCC","Adult Social Care","Physical Support Older People (85+)","Adult Services","Third Party Payments","Other establishments","23/10/2020","6,390,989","365.40","VENDOR","APEX PROPERTY VENTURES LTD","108,437"
"Portsmouth City Council","PCC","Adult Social Care","Physical Support Older People (85+)","Adult Services","Third Party Payments","Other establishments","23/10/2020","6,390,989","208.80","VENDOR","APEX PROPERTY VENTURES LTD","108,437"
"Portsmouth City Council","PCC","Adult Social Care","Physical Support Older People (85+)","Adult Services","Third Party Payments","Other establishments","23/10/2020","6,390,989","78.30","VENDOR","APEX PROPERTY VENTURES LTD","108,437"
"Portsmouth City Council","PCC","Adult Social Care","Physical Support Older People (85+)","Adult Services","Third Party Payments","Other establishments","23/10/2020","6,390,989","174.00","VENDOR","APEX PROPERTY VENTURES LTD","108,437"
"Portsmouth City Council","PCC","Adult Social Care","Physical Support Older People (85+)","Adult Services","Third Party Payments","Other establishments","23/10/2020","6,390,989","730.80","VENDOR","APEX PROPERTY VENTURES LTD","108,437"
"Portsmouth City Council","PCC","Adult Social Care","Physical Support Older People (85+)","Adult Services","Third Party Payments","Other establishments","23/10/2020","6,390,989","365.40","VENDOR","APEX PROPERTY VENTURES LTD","108,437"
"Portsmouth City Council","PCC","Adult Social Care","Physical Support Older People (85+)","Adult Services","Third Party Payments","Other establishments","23/10/2020","6,390,989","495.90","VENDOR","APEX PROPERTY VENTURES LTD","108,437"
"Portsmouth City Council","PCC","Adult Social Care","Physical Support Older People (85+)","Adult Services","Third Party Payments","Other establishments","23/10/2020","6,390,989","382.80","VENDOR","APEX PROPERTY VENTURES LTD","108,437"
"Portsmouth City Council","PCC","Adult Social Care","Physical Support Older People (85+)","Adult Services","Third Party Payments","Other establishments","23/10/2020","6,390,989","765.60","VENDOR","APEX PROPERTY VENTURES LTD","108,437"
"Portsmouth City Council","PCC","Adult Social Care","Physical Support Older People (85+)","Adult Services","Third Party Payments","Other establishments","23/10/2020","6,390,989","487.20","VENDOR","APEX PROPERTY VENTURES LTD","108,437"
"Portsmouth City Council","PCC","Adult Social Care","Physical Support Older People (85+)","Adult Services","Third Party Payments","Other establishments","23/10/2020","6,390,989","704.70","VENDOR","APEX PROPERTY VENTURES LTD","108,437"
"Portsmouth City Council","PCC","Adult Social Care","Physical Support Older People (85+)","Adult Services","Third Party Payments","Other establishments","23/10/2020","6,390,989","156.60","VENDOR","APEX PROPERTY VENTURES LTD","108,437"
"Portsmouth City Council","PCC","Adult Social Care","Physical Support Older People (85+)","Adult Services","Third Party Payments","Other establishments","23/10/2020","6,390,989","1,074.45","VENDOR","APEX PROPERTY VENTURES LTD","108,437"
"Portsmouth City Council","PCC","Adult Social Care","Physical Support Older People (85+)","Adult Services","Third Party Payments","Other establishments","23/10/2020","6,390,989","730.80","VENDOR","APEX PROPERTY VENTURES LTD","108,437"
"Portsmouth City Council","PCC","Adult Social Care","Physical Support Older People (85+)","Adult Services","Third Party Payments","Other establishments","23/10/2020","6,390,989","752.55","VENDOR","APEX PROPERTY VENTURES LTD","108,437"
"Portsmouth City Council","PCC","Adult Social Care","Physical Support Older People (85+)","Adult Services","Third Party Payments","Other establishments","23/10/2020","6,390,989","1,078.80","VENDOR","APEX PROPERTY VENTURES LTD","108,437"
"Portsmouth City Council","PCC","Adult Social Care","Physical Support Older People (85+)","Adult Services","Third Party Payments","Other establishments","23/10/2020","6,390,989","1,078.80","VENDOR","APEX PROPERTY VENTURES LTD","108,437"
"Portsmouth City Council","PCC","Adult Social Care","Physical Support Older People (85+)","Adult Services","Third Party Payments","Other establishments","23/10/2020","6,390,989","1,096.20","VENDOR","APEX PROPERTY VENTURES LTD","108,437"
"Portsmouth City Council","PCC","Adult Social Care","Physical Support Older People (85+)","Adult Services","Third Party Payments","Other establishments","23/10/2020","6,390,989","1,096.20","VENDOR","APEX PROPERTY VENTURES LTD","108,437"
"Portsmouth City Council","PCC","Adult Social Care","Physical Support Older People (85+)","Adult Services","Third Party Payments","Other establishments","23/10/2020","6,390,989","487.20","VENDOR","APEX PROPERTY VENTURES LTD","108,437"
"Portsmouth City Council","PCC","Adult Social Care","Physical Support Older People (85+)","Adult Services","Third Party Payments","Other establishments","23/10/2020","6,390,989","487.20","VENDOR","APEX PROPERTY VENTURES LTD","108,437"
"Portsmouth City Council","PCC","Adult Social Care","Physical Support Older People (85+)","Adult Services","Third Party Payments","Other establishments","23/10/2020","6,390,989","352.35","VENDOR","APEX PROPERTY VENTURES LTD","108,437"
"Portsmouth City Council","PCC","Adult Social Care","Physical Support Older People (85+)","Adult Services","Third Party Payments","Other establishments","23/10/2020","6,390,989","730.80","VENDOR","APEX PROPERTY VENTURES LTD","108,437"
"Portsmouth City Council","PCC","Adult Social Care","Physical Support Older People (85+)","Adult Services","Third Party Payments","Other establishments","23/10/2020","6,390,989","243.60","VENDOR","APEX PROPERTY VENTURES LTD","108,437"
"Portsmouth City Council","PCC","Adult Social Care","Physical Support Older People (85+)","Adult Services","Third Party Payments","Other establishments","23/10/2020","6,390,989","174.00","VENDOR","APEX PROPERTY VENTURES LTD","108,437"
"Portsmouth City Council","PCC","Adult Social Care","Physical Support Older People (85+)","Adult Services","Third Party Payments","Other establishments","23/10/2020","6,390,989","17.40","VENDOR","APEX PROPERTY VENTURES LTD","108,437"
"Portsmouth City Council","PCC","Adult Social Care","Physical Support Older People (85+)","Adult Services","Third Party Payments","Other establishments","23/10/2020","6,390,989","730.80","VENDOR","APEX PROPERTY VENTURES LTD","108,437"
"Portsmouth City Council","PCC","Adult Social Care","Physical Support Older People (85+)","Adult Services","Third Party Payments","Other establishments","23/10/2020","6,390,989","730.80","VENDOR","APEX PROPERTY VENTURES LTD","108,437"
"Portsmouth City Council","PCC","Adult Social Care","Physical Support Older People (85+)","Adult Services","Third Party Payments","Other establishments","23/10/2020","6,390,989","278.40","VENDOR","APEX PROPERTY VENTURES LTD","108,437"
"Portsmouth City Council","PCC","Adult Social Care","Physical Support Older People (85+)","Adult Services","Third Party Payments","Other establishments","23/10/2020","6,390,989","348.00","VENDOR","APEX PROPERTY VENTURES LTD","108,437"
"Portsmouth City Council","PCC","Adult Social Care","Physical Support Older People (85+)","Adult Services","Third Party Payments","Other establishments","23/10/2020","6,390,989","817.80","VENDOR","APEX PROPERTY VENTURES LTD","108,437"
"Portsmouth City Council","PCC","Costs below Net Cost of Services","Trading","Finance & Resources","Supplies and Services","Miscellaneous expenses","02/10/2020","6,387,454","1,250.00","VENDOR","DWF LLP","138,783"
"Portsmouth City Council","PCC","Support Service / Transparency Costs Unallocated","Information Services","Corporate Services","Supplies and Services","Services","01/10/2020","6,387,342","8,400.00","VENDOR","ORCHID IT SOLUTIONS LTD","147,142"
"Portsmouth City Council","PCC","Highways and Transport Services","Parking Services","Regeneration","Supplies and Services","Communications and computing","20/10/2020","6,390,172","1,350.00","VENDOR","CONDUENT PARKING ENFORCEMENT SOLUTIONS LIMITED","113,838"
"Portsmouth City Council","PCC","Cultural and Related Services","Open Spaces","Culture, Leisure & Regulatory Services","Premises-Related Expenditure","Grounds maintenance costs","13/10/2020","6,388,821","3,210.00","COMPANY","BARHILL PLANT LTD","100,355"
"Portsmouth City Council","PCC","Cultural and Related Services","Open Spaces","Culture, Leisure & Regulatory Services","Premises-Related Expenditure","Grounds maintenance costs","13/10/2020","6,388,821","3,592.00","COMPANY","BARHILL PLANT LTD","100,355"
"Portsmouth City Council","PCC","Central Services","Registration of Births, Deaths and Marriages","Culture, Leisure & Regulatory Services","Supplies and Services","Printing, stationery and general office expenses","13/10/2020","6,388,821","162.96","COMPANY","BARHILL PLANT LTD","100,355"
"Portsmouth City Council","PCC","Other","Suspense and Capital Schemes","Capital - Culture, Leisure and Economic Development","Capital Charges","Capital Expenditure (WIP)","13/10/2020","6,388,821","250.00","COMPANY","BARHILL PLANT LTD","100,355"
"Portsmouth City Council","PCC","Cultural and Related Services","Open Spaces","Culture, Leisure & Regulatory Services","Premises-Related Expenditure","Grounds maintenance costs","19/10/2020","6,389,752","995.80","COMPANY","BARHILL PLANT LTD","100,355"
"Portsmouth City Council","PCC","Other","Suspense and Capital Schemes","Capital - Culture, Leisure and Economic Development","Capital Charges","Capital Expenditure (WIP)","19/10/2020","6,389,752","2,862.50","COMPANY","BARHILL PLANT LTD","100,355"
"Portsmouth City Council","PCC","Cultural and Related Services","Open Spaces","Culture, Leisure & Regulatory Services","Premises-Related Expenditure","Grounds maintenance costs","19/10/2020","6,389,752","4,581.84","COMPANY","BARHILL PLANT LTD","100,355"
"Portsmouth City Council","PCC","Cultural and Related Services","Open Spaces","Culture, Leisure & Regulatory Services","Premises-Related Expenditure","Grounds maintenance costs","19/10/2020","6,389,752","2,358.57","COMPANY","BARHILL PLANT LTD","100,355"
"Portsmouth City Council","PCC","Cultural and Related Services","Open Spaces","Culture, Leisure & Regulatory Services","Third Party Payments","Private contractors","26/10/2020","6,391,177","179.50","COMPANY","BARHILL PLANT LTD","100,355"
"Portsmouth City Council","PCC","Cultural and Related Services","Open Spaces","Culture, Leisure & Regulatory Services","Third Party Payments","Private contractors","26/10/2020","6,391,177","249.76","COMPANY","BARHILL PLANT LTD","100,355"
"Portsmouth City Council","PCC","Other","Suspense and Capital Schemes","Capital - Culture, Leisure and Economic Development","Capital Charges","Capital Expenditure (WIP)","26/10/2020","6,391,177","2,369.00","COMPANY","BARHILL PLANT LTD","100,355"
"Portsmouth City Council","PCC","Other","Suspense and Capital Schemes","Capital - Culture, Leisure and Economic Development","Capital Charges","Capital Expenditure (WIP)","26/10/2020","6,391,177","2,368.00","COMPANY","BARHILL PLANT LTD","100,355"
"Portsmouth City Council","PCC","Other","Suspense and Capital Schemes","Capital - Culture, Leisure and Economic Development","Capital Charges","Capital Expenditure (WIP)","26/10/2020","6,391,177","2,517.00","COMPANY","BARHILL PLANT LTD","100,355"
"Portsmouth City Council","PCC","Cultural and Related Services","Open Spaces","Culture, Leisure & Regulatory Services","Premises-Related Expenditure","Grounds maintenance costs","26/10/2020","6,391,177","4,562.43","COMPANY","BARHILL PLANT LTD","100,355"
"Portsmouth City Council","PCC","Cultural and Related Services","Open Spaces","Culture, Leisure & Regulatory Services","Premises-Related Expenditure","Grounds maintenance costs","26/10/2020","6,391,177","1,866.60","COMPANY","BARHILL PLANT LTD","100,355"
"Portsmouth City Council","PCC","Support Service / Transparency Costs Unallocated","Information Services","Corporate Services","Supplies and Services","Services","27/10/2020","6,391,387","9,240.00","VENDOR","ORCHID IT SOLUTIONS LTD","147,142"
"Portsmouth City Council","PCC","Highways and Transport Services","Traffic Management and Road Safety","Regeneration","Supplies and Services","Clothes, uniform and laundry","15/10/2020","6,389,531","836.40","VENDOR","KELTIC","116,675"
"Portsmouth City Council","PCC","Adult Social Care","Physical Support Older People (85+)","Adult Services","Third Party Payments","Other establishments","23/10/2020","6,390,989","730.80","VENDOR","APEX PROPERTY VENTURES LTD","108,437"
"Portsmouth City Council","PCC","Adult Social Care","Physical Support Older People (85+)","Adult Services","Third Party Payments","Other establishments","23/10/2020","6,390,989","243.60","VENDOR","APEX PROPERTY VENTURES LTD","108,437"
"Portsmouth City Council","PCC","Adult Social Care","Physical Support Older People (85+)","Adult Services","Third Party Payments","Other establishments","23/10/2020","6,390,989","469.80","VENDOR","APEX PROPERTY VENTURES LTD","108,437"
"Portsmouth City Council","PCC","Adult Social Care","Physical Support Older People (85+)","Adult Services","Third Party Payments","Other establishments","23/10/2020","6,390,989","852.60","VENDOR","APEX PROPERTY VENTURES LTD","108,437"
"Portsmouth City Council","PCC","Housing Revenue Account","Special Services","Housing, Neighbourhood and Building Services","Employees","Direct employee expenses","26/10/2020","6,391,275","3,777.20","VENDOR","SEVACARE (UK) LTD","136,163"
"Portsmouth City Council","PCC","Adult Social Care","Support with Memory and Cognition Older People (85+)","Adult Services","Third Party Payments","Other establishments","12/10/2020","6,388,626","3,985.67","VENDOR","BETHESDA HEALTHCARE","143,824"
"Portsmouth City Council","PCC","Adult Social Care","Social Care Activities","Adult Services","Third Party Payments","Other establishments","26/10/2020","6,391,180","9,933.13","VENDOR","BETHESDA HEALTHCARE","143,824"
"Portsmouth City Council","PCC","Adult Social Care","Physical Support Adults (18 - 64)","Adult Services","Third Party Payments","Other establishments","12/10/2020","6,388,626","3,816.00","VENDOR","BETHESDA HEALTHCARE","143,824"
"Portsmouth City Council","PCC","Adult Social Care","Commissioning & service delivery","Adult Services","Employees","Indirect employee expenses","14/10/2020","6,388,984","6,000.00","VENDOR","BIRMINGHAM CITY UNIVERSITY","140,428"
"Portsmouth City Council","PCC","Adult Social Care","Physical Support Adults (18 - 64)","Adult Services","Third Party Payments","Other establishments","12/10/2020","6,388,628","4,805.00","VENDOR","BLUEBELL NURSING HOME","100,112"
"Portsmouth City Council","PCC","Adult Social Care","Physical Support Adults (18 - 64)","Adult Services","Third Party Payments","Other establishments","12/10/2020","6,388,628","5,216.68","VENDOR","BLUEBELL NURSING HOME","100,112"
"Portsmouth City Council","PCC","Adult Social Care","Physical Support Adults (18 - 64)","Adult Services","Third Party Payments","Other establishments","12/10/2020","6,388,628","-4,710.00","VENDOR","BLUEBELL NURSING HOME","100,112"
"Portsmouth City Council","PCC","Adult Social Care","Social Care Activities","Adult Services","Third Party Payments","Other establishments","12/10/2020","6,388,628","5,084.00","VENDOR","BLUEBELL NURSING HOME","100,112"
"Portsmouth City Council","PCC","Adult Social Care","Social Care Activities","Adult Services","Third Party Payments","Other establishments","12/10/2020","6,388,628","1,727.00","VENDOR","BLUEBELL NURSING HOME","100,112"
"Portsmouth City Council","PCC","Adult Social Care","Social Care Activities","Adult Services","Third Party Payments","Other establishments","12/10/2020","6,388,628","4,867.00","VENDOR","BLUEBELL NURSING HOME","100,112"
"Portsmouth City Council","PCC","Adult Social Care","Social Care Activities","Adult Services","Third Party Payments","Other establishments","12/10/2020","6,388,628","4,710.00","VENDOR","BLUEBELL NURSING HOME","100,112"
"Portsmouth City Council","PCC","Adult Social Care","Social Care Activities","Adult Services","Third Party Payments","Other establishments","12/10/2020","6,388,628","5,263.18","VENDOR","BLUEBELL NURSING HOME","100,112"
"Portsmouth City Council","PCC","Adult Social Care","Social Care Activities","Adult Services","Third Party Payments","Other establishments","12/10/2020","6,388,628","4,078.98","VENDOR","BLUEBELL NURSING HOME","100,112"
"Portsmouth City Council","PCC","Adult Social Care","Social Care Activities","Adult Services","Third Party Payments","Other establishments","12/10/2020","6,388,628","4,458.42","VENDOR","BLUEBELL NURSING HOME","100,112"
"Portsmouth City Council","PCC","Adult Social Care","Social Care Activities","Adult Services","Third Party Payments","Other establishments","12/10/2020","6,388,628","4,410.99","VENDOR","BLUEBELL NURSING HOME","100,112"
"Portsmouth City Council","PCC","Adult Social Care","Social Care Activities","Adult Services","Third Party Payments","Other establishments","12/10/2020","6,388,628","5,699.66","VENDOR","BLUEBELL NURSING HOME","100,112"
"Portsmouth City Council","PCC","Adult Social Care","Social Care Activities","Adult Services","Third Party Payments","Other establishments","12/10/2020","6,388,628","5,536.60","VENDOR","BLUEBELL NURSING HOME","100,112"
"Portsmouth City Council","PCC","Adult Social Care","Social Care Activities","Adult Services","Third Party Payments","Other establishments","12/10/2020","6,388,628","5,375.40","VENDOR","BLUEBELL NURSING HOME","100,112"
"Portsmouth City Council","PCC","Adult Social Care","Social Care Activities","Adult Services","Third Party Payments","Other establishments","12/10/2020","6,388,628","5,581.97","VENDOR","BLUEBELL NURSING HOME","100,112"
"Portsmouth City Council","PCC","Adult Social Care","Social Care Activities","Adult Services","Third Party Payments","Other establishments","12/10/2020","6,388,628","814.50","VENDOR","BLUEBELL NURSING HOME","100,112"
"Portsmouth City Council","PCC","Adult Social Care","Social Care Activities","Adult Services","Third Party Payments","Other establishments","12/10/2020","6,388,628","814.50","VENDOR","BLUEBELL NURSING HOME","100,112"
"Portsmouth City Council","PCC","Adult Social Care","Social Care Activities","Adult Services","Third Party Payments","Other establishments","12/10/2020","6,388,628","814.50","VENDOR","BLUEBELL NURSING HOME","100,112"
"Portsmouth City Council","PCC","Adult Social Care","Social Care Activities","Adult Services","Third Party Payments","Other establishments","12/10/2020","6,388,628","814.50","VENDOR","BLUEBELL NURSING HOME","100,112"
"Portsmouth City Council","PCC","Adult Social Care","Social Care Activities","Adult Services","Third Party Payments","Other establishments","12/10/2020","6,388,628","814.50","VENDOR","BLUEBELL NURSING HOME","100,112"
"Portsmouth City Council","PCC","Adult Social Care","Social Care Activities","Adult Services","Third Party Payments","Other establishments","12/10/2020","6,388,628","814.50","VENDOR","BLUEBELL NURSING HOME","100,112"
"Portsmouth City Council","PCC","Adult Social Care","Social Care Activities","Adult Services","Third Party Payments","Other establishments","12/10/2020","6,388,628","814.50","VENDOR","BLUEBELL NURSING HOME","100,112"
"Portsmouth City Council","PCC","Adult Social Care","Social Care Activities","Adult Services","Third Party Payments","Other establishments","12/10/2020","6,388,628","814.50","VENDOR","BLUEBELL NURSING HOME","100,112"
"Portsmouth City Council","PCC","Adult Social Care","Social Care Activities","Adult Services","Third Party Payments","Other establishments","12/10/2020","6,388,628","814.50","VENDOR","BLUEBELL NURSING HOME","100,112"
"Portsmouth City Council","PCC","Adult Social Care","Social Care Activities","Adult Services","Third Party Payments","Other establishments","12/10/2020","6,388,628","814.50","VENDOR","BLUEBELL NURSING HOME","100,112"
"Portsmouth City Council","PCC","Adult Social Care","Social Care Activities","Adult Services","Third Party Payments","Other establishments","12/10/2020","6,388,628","814.50","VENDOR","BLUEBELL NURSING HOME","100,112"
"Portsmouth City Council","PCC","Adult Social Care","Social Care Activities","Adult Services","Third Party Payments","Other establishments","12/10/2020","6,388,628","814.50","VENDOR","BLUEBELL NURSING HOME","100,112"
"Portsmouth City Council","PCC","Adult Social Care","Social Care Activities","Adult Services","Third Party Payments","Other establishments","12/10/2020","6,388,628","814.50","VENDOR","BLUEBELL NURSING HOME","100,112"
"Portsmouth City Council","PCC","Adult Social Care","Social Care Activities","Adult Services","Third Party Payments","Other establishments","12/10/2020","6,388,628","814.50","VENDOR","BLUEBELL NURSING HOME","100,112"
"Portsmouth City Council","PCC","Adult Social Care","Social Care Activities","Adult Services","Third Party Payments","Other establishments","12/10/2020","6,388,628","814.50","VENDOR","BLUEBELL NURSING HOME","100,112"
"Portsmouth City Council","PCC","Adult Social Care","Social Care Activities","Adult Services","Third Party Payments","Other establishments","12/10/2020","6,388,628","814.50","VENDOR","BLUEBELL NURSING HOME","100,112"
"Portsmouth City Council","PCC","Adult Social Care","Social Care Activities","Adult Services","Third Party Payments","Other establishments","12/10/2020","6,388,628","183.92","VENDOR","BLUEBELL NURSING HOME","100,112"
"Portsmouth City Council","PCC","Adult Social Care","Social Care Activities","Adult Services","Third Party Payments","Other establishments","12/10/2020","6,388,628","814.50","VENDOR","BLUEBELL NURSING HOME","100,112"
"Portsmouth City Council","PCC","Adult Social Care","Social Care Activities","Adult Services","Third Party Payments","Other establishments","12/10/2020","6,388,628","814.50","VENDOR","BLUEBELL NURSING HOME","100,112"
"Portsmouth City Council","PCC","Adult Social Care","Social Care Activities","Adult Services","Third Party Payments","Other establishments","12/10/2020","6,388,628","814.50","VENDOR","BLUEBELL NURSING HOME","100,112"
"Portsmouth City Council","PCC","Adult Social Care","Social Care Activities","Adult Services","Third Party Payments","Other establishments","12/10/2020","6,388,628","814.50","VENDOR","BLUEBELL NURSING HOME","100,112"
"Portsmouth City Council","PCC","Other","Suspense and Capital Schemes","Capital - Housing RA","Capital Charges","Capital Expenditure (WIP)","27/10/2020","6,391,381","200.00","VENDOR","MCANDREW MARTIN LIMITED","100,997"
"Portsmouth City Council","PCC","Other","Suspense and Capital Schemes","Capital - Housing RA","Capital Charges","Capital Expenditure (WIP)","27/10/2020","6,391,381","200.00","VENDOR","MCANDREW MARTIN LIMITED","100,997"
"Portsmouth City Council","PCC","Other","Suspense and Capital Schemes","Capital - Housing RA","Capital Charges","Capital Expenditure (WIP)","27/10/2020","6,391,381","200.00","VENDOR","MCANDREW MARTIN LIMITED","100,997"
"Portsmouth City Council","PCC","Other","Suspense and Capital Schemes","Capital - Housing RA","Capital Charges","Capital Expenditure (WIP)","27/10/2020","6,391,381","200.00","VENDOR","MCANDREW MARTIN LIMITED","100,997"
"Portsmouth City Council","PCC","Other","Suspense and Capital Schemes","Capital - Housing RA","Capital Charges","Capital Expenditure (WIP)","27/10/2020","6,391,381","200.00","VENDOR","MCANDREW MARTIN LIMITED","100,997"
"Portsmouth City Council","PCC","Other","Suspense and Capital Schemes","Capital - Housing RA","Capital Charges","Capital Expenditure (WIP)","27/10/2020","6,391,381","200.00","VENDOR","MCANDREW MARTIN LIMITED","100,997"
"Portsmouth City Council","PCC","Other","Suspense and Capital Schemes","Capital - Housing RA","Capital Charges","Capital Expenditure (WIP)","27/10/2020","6,391,381","200.00","VENDOR","MCANDREW MARTIN LIMITED","100,997"
"Portsmouth City Council","PCC","Other","Suspense and Capital Schemes","Capital - Housing RA","Capital Charges","Capital Expenditure (WIP)","27/10/2020","6,391,381","200.00","VENDOR","MCANDREW MARTIN LIMITED","100,997"
"Portsmouth City Council","PCC","Other","Suspense and Capital Schemes","Capital - Housing RA","Capital Charges","Capital Expenditure (WIP)","27/10/2020","6,391,381","200.00","VENDOR","MCANDREW MARTIN LIMITED","100,997"
"Portsmouth City Council","PCC","Adult Social Care","Social Care Activities","Adult Services","Third Party Payments","Other establishments","12/10/2020","6,388,628","814.50","VENDOR","BLUEBELL NURSING HOME","100,112"
"Portsmouth City Council","PCC","Environmental and Regulatory Services","Agricultural and Fisheries Services","Portsmouth International Port","Third Party Payments","Private contractors","01/10/2020","6,387,325","2,949.80","VENDOR","KEN BROWN BOATS LTD","100,926"
"Portsmouth City Council","PCC","Support Service / Transparency Costs Unallocated","Financial Services","Finance & Resources","Third Party Payments","Private contractors","23/10/2020","6,391,058","758.47","VENDOR","GEMINI CONSULTANTS LIMTED","100,036"
"Portsmouth City Council","PCC","Environmental and Regulatory Services","Agricultural and Fisheries Services","Portsmouth International Port","Third Party Payments","Private contractors","30/10/2020","6,392,217","2,949.80","VENDOR","KEN BROWN BOATS LTD","100,926"
"Portsmouth City Council","PCC","Environmental and Regulatory Services","Agricultural and Fisheries Services","Portsmouth International Port","Third Party Payments","Private contractors","30/10/2020","6,392,217","95.40","VENDOR","KEN BROWN BOATS LTD","100,926"
"Portsmouth City Council","PCC","Adult Social Care","Physical Support Older People (85+)","Adult Services","Third Party Payments","Other establishments","23/10/2020","6,390,989","852.60","VENDOR","APEX PROPERTY VENTURES LTD","108,437"
"Portsmouth City Council","PCC","Adult Social Care","Physical Support Older People (85+)","Adult Services","Third Party Payments","Other establishments","23/10/2020","6,390,989","1,218.00","VENDOR","APEX PROPERTY VENTURES LTD","108,437"
"Portsmouth City Council","PCC","Adult Social Care","Physical Support Older People (85+)","Adult Services","Third Party Payments","Other establishments","23/10/2020","6,390,989","1,218.00","VENDOR","APEX PROPERTY VENTURES LTD","108,437"
"Portsmouth City Council","PCC","Adult Social Care","Physical Support Older People (85+)","Adult Services","Third Party Payments","Other establishments","23/10/2020","6,390,989","139.20","VENDOR","APEX PROPERTY VENTURES LTD","108,437"
"Portsmouth City Council","PCC","Adult Social Care","Physical Support Older People (85+)","Adult Services","Third Party Payments","Other establishments","23/10/2020","6,390,989","174.00","VENDOR","APEX PROPERTY VENTURES LTD","108,437"
"Portsmouth City Council","PCC","Adult Social Care","Physical Support Older People (85+)","Adult Services","Third Party Payments","Other establishments","23/10/2020","6,390,989","548.10","VENDOR","APEX PROPERTY VENTURES LTD","108,437"
"Portsmouth City Council","PCC","Adult Social Care","Physical Support Older People (85+)","Adult Services","Third Party Payments","Other establishments","23/10/2020","6,390,989","730.80","VENDOR","APEX PROPERTY VENTURES LTD","108,437"
"Portsmouth City Council","PCC","Adult Social Care","Physical Support Older People (85+)","Adult Services","Third Party Payments","Other establishments","23/10/2020","6,390,989","259.76","VENDOR","APEX PROPERTY VENTURES LTD","108,437"
"Portsmouth City Council","PCC","Adult Social Care","Physical Support Older People (85+)","Adult Services","Third Party Payments","Other establishments","23/10/2020","6,390,989","543.75","VENDOR","APEX PROPERTY VENTURES LTD","108,437"
"Portsmouth City Council","PCC","Adult Social Care","Physical Support Older People (85+)","Adult Services","Third Party Payments","Other establishments","23/10/2020","6,390,989","156.60","VENDOR","APEX PROPERTY VENTURES LTD","108,437"
"Portsmouth City Council","PCC","Adult Social Care","Physical Support Older People (85+)","Adult Services","Third Party Payments","Other establishments","23/10/2020","6,390,989","852.60","VENDOR","APEX PROPERTY VENTURES LTD","108,437"
"Portsmouth City Council","PCC","Adult Social Care","Physical Support Older People (85+)","Adult Services","Third Party Payments","Other establishments","23/10/2020","6,390,989","852.60","VENDOR","APEX PROPERTY VENTURES LTD","108,437"
"Portsmouth City Council","PCC","Adult Social Care","Physical Support Older People (85+)","Adult Services","Third Party Payments","Other establishments","23/10/2020","6,390,989","130.50","VENDOR","APEX PROPERTY VENTURES LTD","108,437"
"Portsmouth City Council","PCC","Adult Social Care","Physical Support Older People (85+)","Adult Services","Third Party Payments","Other establishments","23/10/2020","6,390,989","730.80","VENDOR","APEX PROPERTY VENTURES LTD","108,437"
"Portsmouth City Council","PCC","Adult Social Care","Physical Support Older People (85+)","Adult Services","Third Party Payments","Other establishments","23/10/2020","6,390,989","1,087.50","VENDOR","APEX PROPERTY VENTURES LTD","108,437"
"Portsmouth City Council","PCC","Adult Social Care","Physical Support Older People (85+)","Adult Services","Third Party Payments","Other establishments","23/10/2020","6,390,989","130.50","VENDOR","APEX PROPERTY VENTURES LTD","108,437"
"Portsmouth City Council","PCC","Adult Social Care","Physical Support Older People (85+)","Adult Services","Third Party Payments","Other establishments","23/10/2020","6,390,989","69.60","VENDOR","APEX PROPERTY VENTURES LTD","108,437"
"Portsmouth City Council","PCC","Adult Social Care","Physical Support Older People (85+)","Adult Services","Third Party Payments","Other establishments","23/10/2020","6,390,989","796.05","VENDOR","APEX PROPERTY VENTURES LTD","108,437"
"Portsmouth City Council","PCC","Adult Social Care","Physical Support Older People (85+)","Adult Services","Third Party Payments","Other establishments","23/10/2020","6,390,989","796.05","VENDOR","APEX PROPERTY VENTURES LTD","108,437"
"Portsmouth City Council","PCC","Adult Social Care","Physical Support Older People (85+)","Adult Services","Third Party Payments","Other establishments","23/10/2020","6,390,989","69.60","VENDOR","APEX PROPERTY VENTURES LTD","108,437"
"Portsmouth City Council","PCC","Adult Social Care","Physical Support Older People (85+)","Adult Services","Third Party Payments","Other establishments","23/10/2020","6,390,989","243.60","VENDOR","APEX PROPERTY VENTURES LTD","108,437"
"Portsmouth City Council","PCC","Adult Social Care","Physical Support Older People (85+)","Adult Services","Third Party Payments","Other establishments","23/10/2020","6,390,989","1,191.90","VENDOR","APEX PROPERTY VENTURES LTD","108,437"
"Portsmouth City Council","PCC","Adult Social Care","Physical Support Older People (85+)","Adult Services","Third Party Payments","Other establishments","23/10/2020","6,390,989","278.40","VENDOR","APEX PROPERTY VENTURES LTD","108,437"
"Portsmouth City Council","PCC","Adult Social Care","Physical Support Older People (85+)","Adult Services","Third Party Payments","Other establishments","23/10/2020","6,390,989","591.60","VENDOR","APEX PROPERTY VENTURES LTD","108,437"
"Portsmouth City Council","PCC","Adult Social Care","Physical Support Older People (85+)","Adult Services","Third Party Payments","Other establishments","23/10/2020","6,390,989","487.20","VENDOR","APEX PROPERTY VENTURES LTD","108,437"
"Portsmouth City Council","PCC","Adult Social Care","Physical Support Older People (85+)","Adult Services","Third Party Payments","Other establishments","23/10/2020","6,390,989","365.40","VENDOR","APEX PROPERTY VENTURES LTD","108,437"
"Portsmouth City Council","PCC","Adult Social Care","Physical Support Older People (85+)","Adult Services","Third Party Payments","Other establishments","23/10/2020","6,390,989","43.50","VENDOR","APEX PROPERTY VENTURES LTD","108,437"
"Portsmouth City Council","PCC","Adult Social Care","Physical Support Older People (85+)","Adult Services","Third Party Payments","Other establishments","23/10/2020","6,390,989","104.40","VENDOR","APEX PROPERTY VENTURES LTD","108,437"
"Portsmouth City Council","PCC","Adult Social Care","Physical Support Older People (85+)","Adult Services","Third Party Payments","Other establishments","23/10/2020","6,390,989","95.70","VENDOR","APEX PROPERTY VENTURES LTD","108,437"
"Portsmouth City Council","PCC","Adult Social Care","Physical Support Older People (85+)","Adult Services","Third Party Payments","Other establishments","23/10/2020","6,390,989","852.60","VENDOR","APEX PROPERTY VENTURES LTD","108,437"
"Portsmouth City Council","PCC","Adult Social Care","Physical Support Older People (85+)","Adult Services","Third Party Payments","Other establishments","23/10/2020","6,390,989","587.25","VENDOR","APEX PROPERTY VENTURES LTD","108,437"
"Portsmouth City Council","PCC","Adult Social Care","Physical Support Older People (85+)","Adult Services","Third Party Payments","Other establishments","23/10/2020","6,390,989","487.20","VENDOR","APEX PROPERTY VENTURES LTD","108,437"
"Portsmouth City Council","PCC","Adult Social Care","Physical Support Older People (85+)","Adult Services","Third Party Payments","Other establishments","23/10/2020","6,390,989","130.50","VENDOR","APEX PROPERTY VENTURES LTD","108,437"
"Portsmouth City Council","PCC","Adult Social Care","Physical Support Older People (85+)","Adult Services","Third Party Payments","Other establishments","23/10/2020","6,390,989","365.40","VENDOR","APEX PROPERTY VENTURES LTD","108,437"
"Portsmouth City Council","PCC","Adult Social Care","Physical Support Older People (85+)","Adult Services","Third Party Payments","Other establishments","23/10/2020","6,390,989","139.20","VENDOR","APEX PROPERTY VENTURES LTD","108,437"
"Portsmouth City Council","PCC","Adult Social Care","Physical Support Older People (85+)","Adult Services","Third Party Payments","Other establishments","23/10/2020","6,390,989","826.50","VENDOR","APEX PROPERTY VENTURES LTD","108,437"
"Portsmouth City Council","PCC","Adult Social Care","Physical Support Older People (85+)","Adult Services","Third Party Payments","Other establishments","23/10/2020","6,390,989","69.60","VENDOR","APEX PROPERTY VENTURES LTD","108,437"
"Portsmouth City Council","PCC","Adult Social Care","Physical Support Older People (85+)","Adult Services","Third Party Payments","Other establishments","23/10/2020","6,390,989","461.10","VENDOR","APEX PROPERTY VENTURES LTD","108,437"
"Portsmouth City Council","PCC","Adult Social Care","Physical Support Older People (85+)","Adult Services","Third Party Payments","Other establishments","23/10/2020","6,390,989","1,096.20","VENDOR","APEX PROPERTY VENTURES LTD","108,437"
"Portsmouth City Council","PCC","Adult Social Care","Physical Support Older People (85+)","Adult Services","Third Party Payments","Other establishments","23/10/2020","6,390,989","1,096.20","VENDOR","APEX PROPERTY VENTURES LTD","108,437"
"Portsmouth City Council","PCC","Adult Social Care","Physical Support Older People (85+)","Adult Services","Third Party Payments","Other establishments","23/10/2020","6,390,989","487.20","VENDOR","APEX PROPERTY VENTURES LTD","108,437"
"Portsmouth City Council","PCC","Adult Social Care","Physical Support Older People (85+)","Adult Services","Third Party Payments","Other establishments","23/10/2020","6,390,989","113.10","VENDOR","APEX PROPERTY VENTURES LTD","108,437"
"Portsmouth City Council","PCC","Adult Social Care","Physical Support Older People (85+)","Adult Services","Third Party Payments","Other establishments","23/10/2020","6,390,989","34.80","VENDOR","APEX PROPERTY VENTURES LTD","108,437"
"Portsmouth City Council","PCC","Adult Social Care","Physical Support Older People (85+)","Adult Services","Third Party Payments","Other establishments","23/10/2020","6,390,989","843.90","VENDOR","APEX PROPERTY VENTURES LTD","108,437"
"Portsmouth City Council","PCC","Adult Social Care","Physical Support Older People (85+)","Adult Services","Third Party Payments","Other establishments","23/10/2020","6,390,989","974.40","VENDOR","APEX PROPERTY VENTURES LTD","108,437"
"Portsmouth City Council","PCC","Adult Social Care","Physical Support Older People (85+)","Adult Services","Third Party Payments","Other establishments","23/10/2020","6,390,989","974.40","VENDOR","APEX PROPERTY VENTURES LTD","108,437"
"Portsmouth City Council","PCC","Adult Social Care","Physical Support Older People (85+)","Adult Services","Third Party Payments","Other establishments","23/10/2020","6,390,989","730.80","VENDOR","APEX PROPERTY VENTURES LTD","108,437"
"Portsmouth City Council","PCC","Adult Social Care","Physical Support Older People (85+)","Adult Services","Third Party Payments","Other establishments","23/10/2020","6,390,989","730.80","VENDOR","APEX PROPERTY VENTURES LTD","108,437"
"Portsmouth City Council","PCC","Adult Social Care","Physical Support Older People (85+)","Adult Services","Third Party Payments","Other establishments","23/10/2020","6,390,989","195.75","VENDOR","APEX PROPERTY VENTURES LTD","108,437"
"Portsmouth City Council","PCC","Adult Social Care","Physical Support Older People (85+)","Adult Services","Third Party Payments","Other establishments","23/10/2020","6,390,989","278.40","VENDOR","APEX PROPERTY VENTURES LTD","108,437"
